﻿Directorate,Service,Division,Responsible Unit,Expense Type,Payment Date,Trans No,Net Amount,Supplier Name
Childrens Services,Education Services,Other Strategic Functions,High Needs FE Colleges,Third Party Payments - Payments to Schools,01/09/2017,3907465,"-4,528.47",Newham College of Further Education
Childrens Services,Education Services,Other Strategic Functions,Special Education Needs DSG,Third Party Payments - Payments to Schools,01/09/2017,3917577,"13,500.00",The Complete Works Ltd
Childrens Services,Education Services,Other Strategic Functions,High Needs Other Boroughs,Third Party Payments - Payments to Schools,01/09/2017,3918881,"1,650.00",London Borough Of Redbridge
Childrens Services,Education Services,Other Strategic Functions,High Needs Other Boroughs,Third Party Payments - Payments to Schools,01/09/2017,3918932,"4,254.67",LONDON BOROUGH OF HAMMERSMITH & FULHAM
Childrens Services,Education Services,Other Strategic Functions,Special Education Needs DSG,Third Party Payments - Payments to Schools,01/09/2017,3918949,"4,556.86",Gatehouse Educational Trust Ltd
Childrens Services,Education Services,Other Strategic Functions,Special Education Needs DSG,Third Party Payments - Payments to Schools,01/09/2017,3919008,"5,257.92",Gatehouse Educational Trust Ltd
Childrens Services,Education Services,Other Strategic Functions,High Needs FE Colleges,Third Party Payments - Payments to Schools,01/09/2017,3919779,"276,121.51",Tower Hamlets College
Childrens Services,Education Services,Other Strategic Functions,Special Education Needs DSG,Third Party Payments - Payments to Schools,01/09/2017,3919824,643.50,The Complete Works Ltd
Childrens Services,Education Services,Other Strategic Functions,Special Education Needs DSG,Third Party Payments - Payments to Schools,01/09/2017,3919826,"3,870.43",UK Behaviour Analysis & Research Group CIC
Childrens Services,Education Services,Other Strategic Functions,High Needs FE Colleges,Third Party Payments - Payments to Schools,01/09/2017,3919839,"6,426.04",Newham College of Further Education
Childrens Services,Education Services,Other Strategic Functions,High Needs Other Boroughs,Third Party Payments - Payments to Schools,01/09/2017,3919858,"66,618.00",Frank Barnes School for Deaf Children
Childrens Services,Children's Social Care,Children Looked After,LCS/Allowances-Accom,Leaving Care Financial Assistance - Supp Accom/Hous Rents,01/09/2017,3919935,-289.50,Netpex
Childrens Services,Education Services,Other Strategic Functions,High Needs FE Colleges,Third Party Payments - Payments to Schools,01/09/2017,3919939,"6,989.98",Newham College of Further Education
Childrens Services,Education Services,Other Strategic Functions,High Needs FE Colleges,Third Party Payments - Payments to Schools,01/09/2017,3919956,"4,528.47",Newham College of Further Education
Childrens Services,Education Services,Other Strategic Functions,High Needs FE Colleges,Third Party Payments - Payments to Schools,01/09/2017,3920523,709.10,Newham College of Further Education
Childrens Services,Adult Social Care,Support Service and Management Costs,Org Development L&D Training,Training Expenses - Staff External Training (UK Based),01/09/2017,3922413,650.00,A1 Risk Solutions Ltd
Childrens Services,Adult Social Care,Support Service and Management Costs,Org Development L&D Training,Training Expenses - Staff External Training (UK Based),01/09/2017,3922414,650.00,A1 Risk Solutions Ltd
Childrens Services,Adult Social Care,Support Service and Management Costs,Org Development L&D Training,Training Expenses - Staff External Training (UK Based),01/09/2017,3922415,650.00,A1 Risk Solutions Ltd
Childrens Services,Adult Social Care,Support Service and Management Costs,Org Development L&D Training,Training Expenses - Staff External Training (UK Based),01/09/2017,3922416,"4,125.00",A1 Risk Solutions Ltd
Childrens Services,Adult Social Care,Support Service and Management Costs,Org Development L&D Training,Training Expenses - Staff External Training (UK Based),01/09/2017,3922417,750.00,A1 Risk Solutions Ltd
Childrens Services,Adult Social Care,Support Service and Management Costs,Org Development L&D Training,Training Expenses - Staff External Training (UK Based),01/09/2017,3922418,650.00,A1 Risk Solutions Ltd
Childrens Services,Education Services,Other Strategic Functions,Education Arts Grants,Third Party Payments - Other Agencies,01/09/2017,3922468,"23,664.00",Tower Hamlets EBP
Childrens Services,Children's Social Care,Children Looked After,LCS/Allowances-Accom,Leaving Care Financial Assistance - Grant Pay Special Needs,01/09/2017,3922480,"1,660.71",Netpex
Childrens Services,Children's Social Care,Children Looked After,LCS/Allowances-Accom,Leaving Care Financial Assistance - Supp Accom/Hous Rents,01/09/2017,3922480,"3,100.25",Netpex
Childrens Services,Children's Social Care,Children Looked After,S23 Fam Pl P&V-F/Care,Childrens Act Section 23 - Placement Fee,01/09/2017,3922755,"-2,311.47",COMPASS FOSTERING LONDON LIMITED
Childrens Services,Education Services,Other Strategic Functions,High Needs FE Colleges,Third Party Payments - Payments to Schools,01/09/2017,3922767,796.83,THE BRIT SCHOOL
Childrens Services,Children's Social Care,Children Looked After,LCS/Allowances-Accom,Leaving Care Financial Assistance - Grant Pay Special Needs,01/09/2017,3922781,"1,357.17",Netpex
Childrens Services,Children's Social Care,Children Looked After,LCS/Allowances-Accom,Leaving Care Financial Assistance - Supp Accom/Hous Rents,01/09/2017,3922781,"1,764.34",Netpex
Childrens Services,Children's Social Care,Children Looked After,LCS/Allowances-Accom,Leaving Care Financial Assistance - Supp Accom/Hous Rents,01/09/2017,3922783,"4,207.32",Netpex
Childrens Services,Children's Social Care,Children Looked After,LCS/Allowances-Accom,Leaving Care Financial Assistance - Grant Pay Special Needs,01/09/2017,3922784,"2,657.17",Netpex
Childrens Services,Children's Social Care,Children Looked After,LCS/Allowances-Accom,Leaving Care Financial Assistance - Supp Accom/Hous Rents,01/09/2017,3922784,"3,077.84",Netpex
Childrens Services,Children's Social Care,Children Looked After,S23 Fam Pl P&V-F/Care,Childrens Act Section 23 - Placement Fee,01/09/2017,3922837,"-2,311.47",COMPASS FOSTERING LONDON LIMITED
Childrens Services,Children's Social Care,Children Looked After,LCS/Allowances-Accom,Leaving Care Financial Assistance - Grant Pay Special Needs,01/09/2017,3922845,"1,660.98",Netpex
Childrens Services,Children's Social Care,Children Looked After,LCS/Allowances-Accom,Leaving Care Financial Assistance - Supp Accom/Hous Rents,01/09/2017,3922845,"3,100.00",Netpex
Childrens Services,Children's Social Care,Children Looked After,S23 Fam Pl P&V-F/Care,Childrens Act Section 23 - Placement Fee,01/09/2017,3922857,"-2,311.47",COMPASS FOSTERING LONDON LIMITED
Childrens Services,Children's Social Care,Children Looked After,LCS/Allowances-Accom,Leaving Care Financial Assistance - Grant Pay Special Needs,01/09/2017,3922947,"1,217.68",Netpex
Childrens Services,Children's Social Care,Children Looked After,LCS/Allowances-Accom,Leaving Care Financial Assistance - Supp Accom/Hous Rents,01/09/2017,3922947,"2,103.97",Netpex
Childrens Services,Children's Social Care,Support Service and Management Costs,Welfare Catering,Kitchen Supplies - Food and Beverages,01/09/2017,3923056,332.79,William White Meats Ltd
Childrens Services,Children's Social Care,Support Service and Management Costs,Welfare Catering,Kitchen Supplies - Food and Beverages,01/09/2017,3923072,374.09,William White Meats Ltd
Childrens Services,Education Services,Other Strategic Functions,Special Education Needs DSG,Training Expenses - Staff External Training (UK Based),01/09/2017,3923116,"2,500.00",IPSEA
Childrens Services,Children's Social Care,Children Looked After,S23-Resi-P&V/OLA-Child Home,Childrens Act Section 23 - Placement Fee,01/09/2017,3923143,"13,285.71",Area Camden LTD
Childrens Services,Education Services,Other Strategic Functions,High Needs Academies & Free Schs,Third Party Payments - Payments to Schools,01/09/2017,3923201,"8,763.20",London Enterprise Academy
Childrens Services,Children's Social Care,Children Looked After,LCS/Allowances-Accom,Leaving Care Financial Assistance - Supp Accom/Hous Rents,01/09/2017,3923225,"3,321.42",Transforming Lives Co
Childrens Services,Children's Social Care,Children Looked After,S23 Family Placements P&V,Childrens Act Section 23 - Placement Fee,01/09/2017,3924387,"5,143.52",COMPASS FOSTERING LONDON LIMITED
Childrens Services,Children's Social Care,Children Looked After,S23 Fam Pl P&V-F/Care,Childrens Act Section 23 - Placement Fee,01/09/2017,3924389,"3,272.67",COMPASS FOSTERING LONDON LIMITED
Childrens Services,Children's Social Care,Children Looked After,S23 Fam Pl P&V-F/Care,Childrens Act Section 23 - Placement Fee,01/09/2017,3924390,"3,272.67",COMPASS FOSTERING LONDON LIMITED
Childrens Services,Education Services,Other Strategic Functions,Special Education Needs DSG,Third Party Payments - Payments to Schools,01/09/2017,3924399,"4,772.00",Chigwell School
Childrens Services,Children's Social Care,Children Looked After,S23-Other-Semi-Ind. Unit,Childrens Act Section 23 - Placement Fee,01/09/2017,3924410,272.00,Netpex
Childrens Services,Children's Social Care,Service Strategy,FS&P - NRPF,Social Care - Day Care,01/09/2017,3924418,"1,128.00",Limehouse Children Contact Centre LTD
Childrens Services,Children's Social Care,Children Looked After,S23-Other-Semi-Ind. Unit,Childrens Act Section 23 - Placement Fee,01/09/2017,3924451,"4,207.32",Netpex
Childrens Services,Education Services,Other Strategic Functions,High Needs Other Boroughs,Third Party Payments - Payments to Schools,01/09/2017,3924841,"160,545.00",Ickburgh School
Childrens Services,Children's Social Care,Children Looked After,Leaving Care-UASC,Leaving Care Financial Assistance - Supp Accom/Hous Rents,01/09/2017,3925298,"1,307.89",Newhaven 16 Plus
Childrens Services,Children's Social Care,Children Looked After,LCS/Allowances-Accom,Leaving Care Financial Assistance - Supp Accom/Hous Rents,01/09/2017,3925302,"1,550.00",Newhaven 16 Plus
Childrens Services,Children's Social Care,Children Looked After,LCS/Allowances-Accom,Leaving Care Financial Assistance - Supp Accom/Hous Rents,01/09/2017,3925377,"3,689.62",Newhaven 16 Plus
Childrens Services,Education Services,Other Strategic Functions,Education Arts Grants,Environmental Health Supplies - Baits and Poisons,01/09/2017,3926292,"4,922.00",Stepney City Farm
Childrens Services,Children's Social Care,Children Looked After,S23 Fam Pl P&V-F/Care,Childrens Act Section 23 - Placement Fee,01/09/2017,3927205,"6,421.43",Five Rivers Childcare Limited
Childrens Services,Children's Social Care,Children Looked After,S23 Fam Pl P&V-F/Care,Childrens Act Section 23 - Placement Fee,01/09/2017,3927206,"3,018.65",Five Rivers Childcare Limited
Childrens Services,Children's Social Care,Children Looked After,S23 Fam Pl P&V-F/Care,Childrens Act Section 23 - Placement Fee,01/09/2017,3927207,"3,511.99",Five Rivers Childcare Limited
Childrens Services,Education Services,Other Strategic Functions,Attendance & Welf Service GF,Training Expenses - Staff External Training (UK Based),01/09/2017,3927208,385.00,GovNet Communications
Childrens Services,Children's Social Care,Children Looked After,S23-Other-Semi-Ind. Unit,Childrens Act Section 23 - Placement Fee,01/09/2017,3927251,340.00,Netpex
Childrens Services,Children's Social Care,Children Looked After,S23-Other-Semi-Ind. Unit,Childrens Act Section 23 - Placement Fee,01/09/2017,3927305,"4,071.60",Netpex
Childrens Services,Children's Social Care,Support Service and Management Costs,Sch. Meals A/c - Mulberry,Kitchen Supplies - Food and Beverages,01/09/2017,3930216,331.66,Chicken Joes
Childrens Services,Children's Social Care,Children's and Young People's Safety,Prevention of Violent Extremism Section 17 � FSP,Childrens Act Section 17 - Spec Pymnts Legal,01/09/2017,3930271,324.00,The Priory Hospital
Childrens Services,Children's Social Care,Youth Justice,Youth Justice Team,Services - Professional Fees - Consultants Fees,01/09/2017,3930720,"1,525.00",YCTCS Ltd
Childrens Services,No Service Specified,No Division Specified,Capital-Minor Works (SC),Building Works - Main Works,01/09/2017,3931544,"2,938.27",St Matthias Conservation Trust LTD
Childrens Services,No Service Specified,No Division Specified,Capital-Minor Works (SC),Building Works - Main Works,01/09/2017,3931545,"5,375.00",DATE PALM PRIMARY
Childrens Services,Children's Social Care,Children Looked After,S23 Fam Pl In-Hse-Kinshp Care,Childrens Act Section 23 - Medical Expenses,01/09/2017,3931649,593.00,E4 Law Limited T/A Lextox
Childrens Services,Education Services,Other Strategic Functions,Parental Engagement,Education & Training - Non Staff Tuition Fees,01/09/2017,3931692,"2,000.00",National Literacy Trust
Childrens Services,Children's Social Care,Service Strategy,FS&P - NRPF,Meeting Expenses,01/09/2017,3931696,555.00,PARK HOTEL
Childrens Services,Children's Social Care,Service Strategy,FS&P - NRPF,Meeting Expenses,01/09/2017,3931697,"1,147.00",PARK HOTEL
Childrens Services,Children's Social Care,Family Support Services,CNN Pool: Children Direct Paym,Social Care - Direct Payments,01/09/2017,3931756,482.25,DH TOWER HAMLETS
Childrens Services,No Service Specified,No Division Specified,Capital-Minor Works (SC),Other External Fees - Other External Fees,01/09/2017,3931763,454.95,SEARCHFLOW LTD
Childrens Services,Children's Social Care,Children Looked After,S23 Fam Pl In-Hse-S/Term F/C,Childrens Act Section 23 - Spec Pymnts Miscellaneous,01/09/2017,3931765,315.00,EE Limited
Childrens Services,Children's Social Care,Children Looked After,S23 Fam Pl In-Hse-Kinshp Care,Childrens Act Section 23 - Spec Pymnts Legal,01/09/2017,3931772,500.00,CooleBevis
Childrens Services,Children's Social Care,Children Looked After,S23 Fam Pl P&V-F/Care,Childrens Act Section 23 - Placement Fee,01/09/2017,3945660,"3,167.10",COMPASS FOSTERING LONDON LIMITED
Childrens Services,Education Services,Other Strategic Functions,Special Education Needs DSG,Third Party Payments - Payments to Schools,04/09/2017,3917569,"6,261.00",St Johns School
Childrens Services,Education Services,Other Strategic Functions,Special Education Needs DSG,Third Party Payments - Payments to Schools,04/09/2017,3917569,"120,096.00",St Johns School
Childrens Services,Education Services,Other Strategic Functions,High Needs FE Colleges,Third Party Payments - Payments to Schools,04/09/2017,3917789,"6,426.04",Newham College of Further Education
Childrens Services,Education Services,Other Strategic Functions,High Needs FE Colleges,Third Party Payments - Payments to Schools,04/09/2017,3917833,"6,709.10",Newham College of Further Education
Childrens Services,Education Services,Other Strategic Functions,Special Education Needs DSG,Third Party Payments - Payments to Schools,04/09/2017,3920511,"3,870.43",UK Behaviour Analysis & Research Group CIC
Childrens Services,Children's Social Care,Support Service and Management Costs,Welfare Catering,Kitchen Supplies - Food and Beverages,04/09/2017,3922768,512.67,Thomas Ridley & Son Ltd
Childrens Services,Children's Social Care,Support Service and Management Costs,Sch. Meals A/c - Central Production Unit,Kitchen Supplies - Food and Beverages,04/09/2017,3922769,448.97,Thomas Ridley & Son Ltd
Childrens Services,Children's Social Care,Support Service and Management Costs,"Mulberry Caf�		",Kitchen Supplies - Food and Beverages,04/09/2017,3922770,289.71,Thomas Ridley & Son Ltd
Childrens Services,Education Services,Other Education and Community Budget,Community Languages,Stationery,04/09/2017,3922889,444.80,Office Depot (Catalogue)
Childrens Services,Children's Social Care,Services for young people,Youth Service Management,Repairs and Maintenance - Responsive - Repair & Maintenance,04/09/2017,3922921,"4,150.00",JC Coster (Metalworks) Ltd
Childrens Services,Children's Social Care,Children Looked After,S23 Fam Pl P&V-F/Care,Childrens Act Section 23 - All Contact Expenses,04/09/2017,3922956,307.00,Limehouse Children Contact Centre LTD
Childrens Services,Children's Social Care,Children Looked After,S23 Fam Pl In-Hse-S/Term F/C,Childrens Act Section 23 - All Contact Expenses,04/09/2017,3922962,319.50,Limehouse Children Contact Centre LTD
Childrens Services,Children's Social Care,Other Children's and Family Services,Permanancy and Adoption Support Team 1,Services - Professional Fees - Legal Fees/Expenses,04/09/2017,3922971,"5,364.94",WillisPalmer
Childrens Services,Children's Social Care,Other Children's and Family Services,Permanancy and Adoption Support Team 1,Services - Professional Fees - Legal Fees/Expenses,04/09/2017,3922972,"6,027.86",WillisPalmer
Childrens Services,Education Services,Other Strategic Functions,Special Education Needs DSG,Third Party Payments - Payments to Schools,04/09/2017,3923039,"24,564.92",Ambitious about Autism
Childrens Services,Children's Social Care,Children Looked After,S23 Family Placements P&V,Childrens Act Section 23 - Placement Fee,04/09/2017,3924689,"5,601.24",Credo Care ltd
Childrens Services,Children's Social Care,Children Looked After,S23 Family Placements P&V,Childrens Act Section 23 - Placement Fee,04/09/2017,3924690,"4,400.31",Credo Care ltd
Childrens Services,Children's Social Care,Children Looked After,S23-Other-Semi-Ind. Unit,Childrens Act Section 23 - Placement Fee,04/09/2017,3924749,"3,844.00",Transforming Lives Co
Childrens Services,Cultural and Related Services,Open Spaces,Stepney Green,Services - Professional Fees - Security Fees,04/09/2017,3924828,"3,859.49",Manpower Direct UK
Childrens Services,Children's Social Care,Children Looked After,S23-Resi-P&V/OLA-Child Home,Childrens Act Section 23 - Placement Fee,04/09/2017,3924843,"12,626.65",Ethelbert Specialist Homes LTD
Childrens Services,Cultural and Related Services,Open Spaces,Victoria Park,Services - Professional Fees - Security Fees,04/09/2017,3924881,"4,609.08",Manpower Direct UK
Childrens Services,Children's Social Care,Support Service and Management Costs,Welfare Catering,Kitchen Supplies - Food and Beverages,04/09/2017,3925083,527.58,William White Meats Ltd
Childrens Services,Children's Social Care,Services for young people,Youth Service Management,SLA Services (Expenditure) - Service Level Agreements,04/09/2017,3925972,"8,333.33",Society Links
Childrens Services,Cultural and Related Services,Open Spaces,Mile End Park,Payments to Private Contractors - Special Events,04/09/2017,3925986,500.00,Mikes Donkeys
Childrens Services,Cultural and Related Services,Open Spaces,Mile End Park,Events & Exhibition Supplies,04/09/2017,3925987,500.00,Mikes Donkeys
Childrens Services,Children's Social Care,Children Looked After,S23 Fam Pl P&V-F/Care,Childrens Act Section 23 - Placement Fee,04/09/2017,3927237,"4,588.66",Welcome Foster Care
Childrens Services,Children's Social Care,Children Looked After,S23 Fam Pl In-Hse-S/Term F/C,Childrens Act Section 23 - All Contact Expenses,04/09/2017,3927254,431.25,Limehouse Children Contact Centre LTD
Childrens Services,Children's Social Care,Children Looked After,S23-Other-Semi-Ind. Unit,Childrens Act Section 23 - Placement Fee,04/09/2017,3927500,"5,545.93",The Way Care Services Ltd
Childrens Services,Cultural and Related Services,Culture & Heritage,Arts-Park Events,Events & Exhibition Supplies,04/09/2017,3929376,"2,620.25",Christain Faversham Ltd
Childrens Services,Education Services,Other Strategic Functions,Education Arts Grants,Environmental Health Supplies - Baits and Poisons,04/09/2017,3929385,"4,922.00",Stepney City Farm
Childrens Services,Education Services,Other Strategic Functions,SEN External Travel,Non Staff Transport Costs - Reimbursement,04/09/2017,3930176,"3,998.00",Sam's Cars
Childrens Services,Education Services,Other Strategic Functions,Central Pupil Database Project,Computing - Purchase of Software,06/09/2017,3917436,"2,250.00",Serverlec Synergy Ltd
Childrens Services,Children's Social Care,Children Looked After,S23 Fam Pl P&V-F/Care,Childrens Act Section 23 - Placement Fee,06/09/2017,3920248,"3,520.67",Affinity Fostering Services Ltd
Childrens Services,Children's Social Care,Support Service and Management Costs,Building Cleaning,Contract Cleaning,06/09/2017,3922762,550.00,ACL Cleaning
Childrens Services,Children's Social Care,Support Service and Management Costs,Welfare Catering,Kitchen Supplies - Food and Beverages,06/09/2017,3923157,887.99,Thomas Ridley & Son Ltd
Childrens Services,Children's Social Care,Support Service and Management Costs,"Mulberry Caf�		",Kitchen Supplies - Food and Beverages,06/09/2017,3923158,377.02,Thomas Ridley & Son Ltd
Childrens Services,Cultural and Related Services,Open Spaces,Victoria Park,Events & Exhibition Supplies,06/09/2017,3923195,300.00,Mudchute Association
Childrens Services,Cultural and Related Services,Open Spaces,Victoria Park,Events & Exhibition Supplies,06/09/2017,3924366,600.00,Anglo Asiatic Arts and Heritage Alliance
Childrens Services,Children's Social Care,Support Service and Management Costs,"Mulberry Caf�		",Kitchen Supplies - Food and Beverages,06/09/2017,3924403,533.95,Thomas Ridley & Son Ltd
Childrens Services,Children's Social Care,Support Service and Management Costs,Welfare Catering,Kitchen Supplies - Food and Beverages,06/09/2017,3924404,296.07,Thomas Ridley & Son Ltd
Childrens Services,No Service Specified,No Division Specified,Capital-Minor Works (SC),Building Works - Main Works,06/09/2017,3924412,"11,142.50",Bowmite LTD
Childrens Services,No Service Specified,No Division Specified,Capital-Minor Works (SC),Building Works - Main Works,06/09/2017,3924413,"10,677.50",Bowmite LTD
Childrens Services,Highways and Transport Services,Management and Support Services,Contract Services M & A,Subscriptions - Associations,06/09/2017,3924643,"8,637.75",APSE
Childrens Services,Education Services,Early Years,Ocean CC,Environmental Health Supplies - Baits and Poisons,06/09/2017,3924698,320.00,Raptor Services Ltd
Childrens Services,Education Services,Other Strategic Functions,Music Trading Account,Educational/Training Supplies - Arts & Crafts,06/09/2017,3924995,489.15,LMS Music Supplies
Childrens Services,Children's Social Care,Children Looked After,S23 Fam Pl In-Hse-S/Term F/C,Childrens Act Section 23 - Interpreting/Translation,06/09/2017,3925090,"1,607.60",DA Languages Ltd
Childrens Services,Children's Social Care,Children Looked After,S23 Fam Pl P&V-F/Care,Childrens Act Section 23 - Interpreting/Translation,06/09/2017,3925095,871.70,DA Languages Ltd
Childrens Services,Cultural and Related Services,Open Spaces,Mile End Park,Events & Exhibition Supplies,06/09/2017,3925098,"2,500.00",Irvin Leisure Ltd
Childrens Services,Children's Social Care,Children Looked After,S23 Fam Pl In-Hse-S/Term F/C,Childrens Act Section 23 - Spec Pymnts Miscellaneous,06/09/2017,3925950,300.00,ROC Private Clinic Ltd
Childrens Services,Children's Social Care,Children Looked After,S23 Fam Pl In-Hse-S/Term F/C,Childrens Act Section 23 - Spec Pymnts Miscellaneous,06/09/2017,3925951,300.00,ROC Private Clinic Ltd
Childrens Services,Children's Social Care,Children Looked After,Virtual School PPG,Agency Staff - Associations,06/09/2017,3926230,"1,035.68",Academics ltd
Childrens Services,Education Services,Other Education and Community Budget,Community Languages,Catering - Hospitality,06/09/2017,3927223,454.00,Biryani Hut Ltd
Childrens Services,Children's Social Care,Service Strategy,89 CA Sec 17 Chld in Need BOW,Services - Professional Fees - Translation Fees,06/09/2017,3927475,804.00,Oncall Interpreters LTD
Childrens Services,Children's Social Care,Service Strategy,FS&P - NRPF,Services - Professional Fees - Translation Fees,06/09/2017,3927476,551.50,Oncall Interpreters LTD
Childrens Services,Children's Social Care,Service Strategy,89 CA Sec 17 Chld in Need POPS,Services - Professional Fees - Translation Fees,06/09/2017,3927477,907.00,Oncall Interpreters LTD
Childrens Services,Children's Social Care,Family Support Services,CNN Pool: Joint Family Support,Services - Professional Fees - Translation Fees,06/09/2017,3927481,"2,006.50",Oncall Interpreters LTD
Childrens Services,Children's Social Care,Children Looked After,S23 Fam Pl P&V-F/Care,Childrens Act Section 23 - Interpreting/Translation,06/09/2017,3927485,396.00,Oncall Interpreters LTD
Childrens Services,Children's Social Care,Children Looked After,S23 Fam Pl P&V-F/Care,Childrens Act Section 23 - Interpreting/Translation,06/09/2017,3927486,396.00,Oncall Interpreters LTD
Childrens Services,Children's Social Care,Children Looked After,S23-Other-Semi-Ind. Unit,Childrens Act Section 23 - Placement Fee,06/09/2017,3927503,"5,545.93",The Way Care Services Ltd
Childrens Services,Children's Social Care,Children Looked After,Virtual School PPG,Agency Staff - Associations,06/09/2017,3927509,920.60,Academics ltd
Childrens Services,Children's Social Care,Other Children's and Family Services,Permanancy and Adoption Support Team 1,Services - Professional Fees - Translation Fees,06/09/2017,3927560,367.50,Oncall Interpreters LTD
Childrens Services,Children's Social Care,Children Looked After,S23-Other-Semi-Ind. Unit,Childrens Act Section 23 - Placement Fee,06/09/2017,3927570,"1,114.26",Real Life
Childrens Services,Cultural and Related Services,Culture & Heritage,Arts-Park Events,Non Staff Advertising - General,06/09/2017,3930789,550.00,Bangla Post
Childrens Services,Cultural and Related Services,Culture & Heritage,Event Fund,Third Party Payments - Voluntary Associations,06/09/2017,3931684,"2,500.00",Alice Bigelow
Childrens Services,Education Services,Other Strategic Functions,Schools Library,Printing - External,06/09/2017,3931706,461.52,Bertram Library Services
Childrens Services,Children's Social Care,Children Looked After,S23-Other-Semi-Ind. Unit,Childrens Act Section 23 - Placement Fee,06/09/2017,3931931,"7,601.33",KPMS LTD
Childrens Services,Children's Social Care,Children Looked After,LCS/Allowances-Accom,Leaving Care Financial Assistance - Supp Accom/Hous Rents,06/09/2017,3931937,"6,310.71",Inclusive Care Support Ltd
Childrens Services,Children's Social Care,Support Service and Management Costs,Schools Catering,Tools and Equipment - Purchase,06/09/2017,3932233,"10,807.50",Rational UK LTD
Childrens Services,Children's Social Care,Support Service and Management Costs,Schools Catering,Kitchen Supplies - Catering Equipment,06/09/2017,3932234,869.00,Rational UK LTD
Childrens Services,Cultural and Related Services,Open Spaces,Mile End Park,Water Services - Metered,06/09/2017,3933200,945.20,CASTLE WATER
Childrens Services,Cultural and Related Services,Open Spaces,Victoria Park,Water Services - Metered,06/09/2017,3933257,992.30,CASTLE WATER
Childrens Services,Cultural and Related Services,Open Spaces,Parks & Open Spaces Man&Admin,Water Services - Metered,06/09/2017,3933265,863.15,CASTLE WATER
Childrens Services,Children's Social Care,Children Looked After,S23 Fam Pl In-Hse-S/Term F/C,Childrens Act Section 23 - Interpreting/Translation,08/09/2017,3904523,393.00,Oncall Interpreters LTD
Childrens Services,Children's Social Care,Children Looked After,S23 Fam Pl In-Hse-S/Term F/C,Childrens Act Section 23 - Interpreting/Translation,08/09/2017,3915669,352.00,Oncall Interpreters LTD
Childrens Services,Children's Social Care,Children Looked After,S23 Fam Pl In-Hse-S/Term F/C,Childrens Act Section 23 - Non-Contact Trans/Travel Costs,08/09/2017,3923144,422.00,Wrixon Care Services
Childrens Services,No Service Specified,No Division Specified,Capital-Minor Works (SC),Other External Fees - Consultants Fees,08/09/2017,3923166,"61,603.00",Architype
Childrens Services,Children's Social Care,Children Looked After,S23 Fam Pl In-Hse-S/Term F/C,Childrens Act Section 23 - Non-Contact Trans/Travel Costs,08/09/2017,3923278,440.00,Wrixon Care Services
Childrens Services,Children's Social Care,Children Looked After,Staying Put,Childrens Act Section 23 - Placement Fee,08/09/2017,3924383,"1,780.02",CAPSTONE VISION FOSTER CARE LTD
Childrens Services,Children's Social Care,Children Looked After,S23 Fam Pl P&V-F/Care,Childrens Act Section 23 - Placement Fee,08/09/2017,3924386,"3,932.86",COMPASS FOSTERING LONDON LIMITED
Childrens Services,Cultural and Related Services,Open Spaces,Mile End Park,Repairs and Maintenance - Responsive - Buildings,08/09/2017,3924395,749.00,The Play Inspection Company
Childrens Services,Education Services,Other Strategic Functions,High Needs LBTH Mainstream Schs,Services - Professional Fees - Consultants Fees,08/09/2017,3924789,"4,750.00",Chrow Solutions Ltd
Childrens Services,Children's Social Care,Service Strategy,FS&P - NRPF,Social Care - Day Care,08/09/2017,3925064,282.00,Limehouse Children Contact Centre LTD
Childrens Services,Children's Social Care,Support Service and Management Costs,Welfare Catering,Kitchen Supplies - Food and Beverages,08/09/2017,3925153,367.67,William White Meats Ltd
Childrens Services,Children's Social Care,Support Service and Management Costs,Welfare Catering,Kitchen Supplies - Food and Beverages,08/09/2017,3925173,563.29,William White Meats Ltd
Childrens Services,Children's Social Care,Children Looked After,Leaving Care-UASC,Leaving Care Financial Assistance - Supp Accom/Hous Rents,08/09/2017,3925370,442.68,Newhaven 16 Plus
Childrens Services,Children's Social Care,Service Strategy,CSC Childrens Resources M & A,Training Expenses - Other External Training (Non UK Based),08/09/2017,3926180,"1,508.10",Post-Adoption Centre
Childrens Services,Children's Social Care,Children Looked After,S23-Other-Mother & Baby Unit,Childrens Act Section 23 - Placement Fee,08/09/2017,3926291,"13,464.41",Care 2 Share LTD
Childrens Services,Children's Social Care,Other Children's and Family Services,Adoption Concortium,Training Expenses - Other External Training (Non UK Based),08/09/2017,3927222,"5,985.74",Post-Adoption Centre
Childrens Services,Children's Social Care,Support Service and Management Costs,Welfare Catering,Kitchen Supplies - Food and Beverages,08/09/2017,3927255,294.66,Apetito LTD
Childrens Services,Children's Social Care,Commissioning and Social Work,Advice and Assessment Section 17,Childrens Act Section 17 - Interpreting/Translation,08/09/2017,3927473,"2,211.00",Oncall Interpreters LTD
Childrens Services,Children's Social Care,Children Looked After,S23-Other-Semi-Ind. Unit,Childrens Act Section 23 - Placement Fee,08/09/2017,3927502,"2,707.27",The Way Care Services Ltd
Childrens Services,Education Services,Other Strategic Functions,Education Psychologists GF,Newspapers and Magazines - General Purchases,08/09/2017,3930156,278.75,Pearson Education Ltd
Childrens Services,Children's Social Care,Service Strategy,89 CA Sec 17 Chld in Need WAPP,Childrens Act Section 17 - Expert Assessmt/Witness Costs,08/09/2017,3931755,510.00,The Lucy Faithfull Foundation
Childrens Services,Children's Social Care,Support Service and Management Costs,Welfare Catering,Kitchen Supplies - Food and Beverages,08/09/2017,3932053,"1,339.96",Raj Foods LTD
Childrens Services,Children's Social Care,Support Service and Management Costs,Welfare Catering,Kitchen Supplies - Food and Beverages,08/09/2017,3932093,"1,001.42",Raj Foods LTD
Childrens Services,Education Services,Other Strategic Functions,Governors Services,Subscriptions - Associations,08/09/2017,3932235,270.00,The National Governors Association
Childrens Services,Children's Social Care,Support Service and Management Costs,Schools Catering,Third Party Payments - Other Agencies,08/09/2017,3932922,"4,045.00",Barts Health NHS Trust
Childrens Services,Children's Social Care,Family Support Services,IPST S17 NRPF,Childrens Act Section 17 - Other Placements Bed & Breakfast,08/09/2017,3932942,"1,240.00",Apolonia Property Services (Exodus Housing)
Childrens Services,Cultural and Related Services,Culture & Heritage,Event Fund,Third Party Payments - Voluntary Associations,08/09/2017,3933206,"1,200.00",CARDBOARD CITIZENS
Childrens Services,Cultural and Related Services,Culture & Heritage,Event Fund,Third Party Payments - Voluntary Associations,08/09/2017,3933207,"1,400.00",KAYD SOMALI ARTS & CULTURE
Childrens Services,Cultural and Related Services,Culture & Heritage,Event Fund,Third Party Payments - Voluntary Associations,08/09/2017,3933208,400.00,Bangladeshi Mental Health Forum
Childrens Services,Cultural and Related Services,Culture & Heritage,Event Fund,Third Party Payments - Voluntary Associations,08/09/2017,3933209,"1,200.00",Spitalfields City Farm
Childrens Services,Children's Social Care,Children Looked After,LCS/Allowances-Accom,Leaving Care Financial Assistance - Grant Payment Setting up Grant,08/09/2017,3933789,250.00,SOCIAL SERVICES LEAVING CARE SERVICE
Childrens Services,Education Services,Services to Young People and Other Community Learners,Supported Housing - Young People,Leaving Care Financial Assistance - Supp Accom/Hous Sup Lod,08/09/2017,3934224,"20,416.67",One Housing Group
Childrens Services,Education Services,Services to Young People and Other Community Learners,Supported Housing - Young People,Leaving Care Financial Assistance - Supp Accom/Hous Sup Lod,08/09/2017,3934226,"12,166.67",Providence Row Housing Association
Childrens Services,Children's Social Care,Support Service and Management Costs,Schools Catering,Tools and Equipment - Purchase,08/09/2017,3934356,287.25,Hobart UK
Childrens Services,Education Services,Other Strategic Functions,Auxilary Aids,Educational/Training Supplies - Resources,11/09/2017,3918954,"2,320.00",HumanWare Europe Ltd
Childrens Services,Children's Social Care,Children Looked After,S23 Family Placements P&V,Childrens Act Section 23 - Placement Fee,11/09/2017,3919686,"4,871.34",Scope
Childrens Services,Children's Social Care,Services for young people,Youth Service Management,SLA Services (Expenditure) - Service Level Agreements,11/09/2017,3920756,"8,333.33",Ocean Youth Connexions
Childrens Services,Children's Social Care,Children Looked After,S23-Other-Prison,Childrens Act Section 23 - Placement Fee,11/09/2017,3922850,354.00,The Youth Justice Board
Childrens Services,Children's Social Care,Children Looked After,S23 Fam Pl P&V-F/Care,Childrens Act Section 23 - Placement Fee,11/09/2017,3922883,"5,460.96",Integrated Service Programme
Childrens Services,Children's Social Care,Children Looked After,S23 Fam Pl P&V-F/Care,Childrens Act Section 23 - Placement Fee,11/09/2017,3922925,"3,255.00",Children First Fostering Agency LTD
Childrens Services,Children's Social Care,Children Looked After,S23 Fam Pl P&V-F/Care,Childrens Act Section 23 - Placement Fee,11/09/2017,3923194,"3,410.00",Fostering People Too
Childrens Services,Children's Social Care,Support Service and Management Costs,Welfare Catering,Kitchen Supplies - Food and Beverages,11/09/2017,3924812,546.93,Thomas Ridley & Son Ltd
Childrens Services,Children's Social Care,Support Service and Management Costs,Sch. Meals A/c - Central Production Unit,Kitchen Supplies - Food and Beverages,11/09/2017,3924813,356.78,Thomas Ridley & Son Ltd
Childrens Services,Children's Social Care,Support Service and Management Costs,Professional Dev Centre,Stationery,11/09/2017,3924977,318.93,Office Depot (Catalogue)
Childrens Services,Children's Social Care,Other Children's and Family Services,Permanancy and Adoption Support Team 1,Services - Professional Fees - Feasibility Studies,11/09/2017,3924998,850.00,Intuitive Blue Social Care Ltd
Childrens Services,Children's Social Care,Children Looked After,S23 Fam Pl P&V-F/Care,Childrens Act Section 23 - All Contact Expenses,11/09/2017,3925053,843.75,Limehouse Children Contact Centre LTD
Childrens Services,Children's Social Care,Children Looked After,LCS/Allowances-Accom,Leaving Care Financial Assistance - Grant Pay Special Needs,11/09/2017,3925300,442.68,Newhaven 16 Plus
Childrens Services,Children's Social Care,Children Looked After,Leaving Care-UASC,Leaving Care Financial Assistance - Grant Pay Special Needs,11/09/2017,3925309,"3,689.62",Newhaven 16 Plus
Childrens Services,Children's Social Care,Children Looked After,LCS/Allowances-Accom,Leaving Care Financial Assistance - Grant Pay Special Needs,11/09/2017,3925371,885.67,Newhaven 16 Plus
Childrens Services,Children's Social Care,Children Looked After,LCS/Allowances-Accom,Leaving Care Financial Assistance - Grant Pay Special Needs,11/09/2017,3925372,"3,689.62",Newhaven 16 Plus
Childrens Services,Children's Social Care,Children Looked After,LCS/Allowances-Accom,Leaving Care Financial Assistance - Grant Pay Special Needs,11/09/2017,3925376,"3,689.62",Newhaven 16 Plus
Childrens Services,Children's Social Care,Children Looked After,S23 Fam Pl P&V-F/Care,Childrens Act Section 23 - All Contact Expenses,11/09/2017,3926002,357.00,Limehouse Children Contact Centre LTD
Childrens Services,Education Services,Other Strategic Functions,Governors Services,Computing - Purchase of Software,11/09/2017,3926017,"4,300.00",Paritor Ltd
Childrens Services,Education Services,Other Strategic Functions,Governors Services,Computing - Licences - Software,11/09/2017,3926017,"1,650.00",Paritor Ltd
Childrens Services,Children's Social Care,Other Children's and Family Services,Permanancy and Adoption Support Team 1,Services - Professional Fees - Legal Fees/Expenses,11/09/2017,3926236,"11,016.05",WillisPalmer
Childrens Services,Children's Social Care,Children Looked After,S23-Other-Semi-Ind. Unit,Childrens Act Section 23 - Placement Fee,11/09/2017,3927455,"2,910.00",Real Life
Childrens Services,Children's Social Care,Service Strategy,89 CA Sec 17 Chld in Need BGW,Services - Professional Fees - Translation Fees,11/09/2017,3927479,576.00,Oncall Interpreters LTD
Childrens Services,Children's Social Care,Children Looked After,S23 Fam Pl In-Hse-S/Term F/C,Childrens Act Section 23 - All Contact Expenses,11/09/2017,3927514,469.00,Limehouse Children Contact Centre LTD
Childrens Services,Children's Social Care,Children's and Young People's Safety,CLA Reviewing Service,Office Furniture/Equipment,11/09/2017,3927539,288.75,Posturite (UK) Ltd
Childrens Services,Children's Social Care,Children Looked After,S23-Other-Semi-Ind. Unit,Childrens Act Section 23 - Placement Fee,11/09/2017,3927558,"6,014.00",Real Life
Childrens Services,Children's Social Care,Children Looked After,S23-Other-Semi-Ind. Unit,Childrens Act Section 23 - Placement Fee,11/09/2017,3927569,"1,164.00",Real Life
Childrens Services,Children's Social Care,Service Strategy,89 CA Sec 17 Chld in Need POPS,Social Care - Day Care,11/09/2017,3927694,"2,387.00",Limehouse Children Contact Centre LTD
Childrens Services,Education Services,Other Strategic Functions,SLS - SEN Training SLA,Subscriptions - Subscriptions to Associations,11/09/2017,3930149,"2,340.00",UCL (Institute of Education)
Childrens Services,Education Services,Other Strategic Functions,Special Education Needs DSG,Third Party Payments - Payments to Schools,11/09/2017,3930373,"16,788.47",St Elizabeth's Centre
Childrens Services,Children's Social Care,Children Looked After,S23-Resi-P&V/OLA-Boarding Sch,Childrens Act Section 23 - Placement Fee,11/09/2017,3930373,"16,788.48",St Elizabeth's Centre
Childrens Services,Children's Social Care,Other Children's and Family Services,Permanancy and Adoption Support Team 1,Services - Professional Fees - Legal Fees/Expenses,11/09/2017,3932948,"2,600.00",Core Assets Childrens Services Ltd
Childrens Services,Children's Social Care,Family Support Services,IPST S17 NRPF,Childrens Act Section 17 - Other Placements Bed & Breakfast,11/09/2017,3933152,"1,054.00",Apolonia Property Services (Exodus Housing)
Childrens Services,Children's Social Care,Family Support Services,IPST S17 NRPF,Childrens Act Section 17 - Other Placements Bed & Breakfast,11/09/2017,3933167,"1,110.00",Apolonia Property Services (Exodus Housing)
Childrens Services,Children's Social Care,Family Support Services,IPST S17 NRPF,Childrens Act Section 17 - Other Placements Bed & Breakfast,11/09/2017,3933178,"1,054.00",Apolonia Property Services (Exodus Housing)
Childrens Services,Children's Social Care,Family Support Services,IPST S17 NRPF,Childrens Act Section 17 - Other Placements Bed & Breakfast,11/09/2017,3933186,448.00,Apolonia Property Services (Exodus Housing)
Childrens Services,Education Services,Other Strategic Functions,SEN External Travel,Non Staff Transport Costs - Reimbursement,11/09/2017,3933848,843.00,TKG LTD T/A The Keen Group
Childrens Services,Education Services,Other Strategic Functions,SLS - SEN Training SLA,Subscriptions - Associations,11/09/2017,3933858,"1,250.00",STONEWALL
Childrens Services,Education Services,Services to Young People and Other Community Learners,Careers Service - Core,Training Expenses - Staff External Training (UK Based),11/09/2017,3933884,"2,607.30",Career Development Institute
Childrens Services,Children's Social Care,Children Looked After,S23 Fam Pl In-Hse-F&F F/Care,Childrens Act Section 23 - Non-Contact Taxi Costs,11/09/2017,3934422,581.94,Olympic (South) Ltd
Childrens Services,Cultural and Related Services,Open Spaces,Parks & Open Spaces Man&Admin,Water Services - Metered,11/09/2017,3937558,632.47,CASTLE WATER
Childrens Services,Children's Social Care,Children Looked After,Virtual School PPG,Training Expenses - Staff External Training (UK Based),11/09/2017,3937600,432.00,Learn Solutions ltd trading as TLC LIVE
Childrens Services,Children's Social Care,Children Looked After,S23-Other-Semi-Ind. Unit,Childrens Act Section 23 - Retainer,11/09/2017,3937622,428.55,St Christopher's Fellowship
Childrens Services,Education Services,Other Strategic Functions,Parents Advice Centre,Education & Training - Non Staff Tuition Fees,11/09/2017,3937628,275.00,ACE Education Training LLP
Childrens Services,Education Services,Other Strategic Functions,Parents Advice Centre,Education & Training - Non Staff Tuition Fees,11/09/2017,3937629,275.00,ACE Education Training LLP
Childrens Services,Children's Social Care,Children Looked After,Virtual School PPG,Training Expenses - Staff External Training (UK Based),11/09/2017,3937637,"1,450.00",Kate Cairns Associates Ltd
Childrens Services,Children's Social Care,Children Looked After,S23 Fam Pl P&V-F/Care,Childrens Act Section 23 - Placement Fee,11/09/2017,3937656,"3,541.75",Ryancare Fostering Ltd
Childrens Services,Children's Social Care,Children Looked After,Virtual School PPG,Agency Staff - Associations,11/09/2017,3937668,920.60,Academics ltd
Childrens Services,Children's Social Care,Children Looked After,Virtual School PPG,Subscriptions - Associations,11/09/2017,3937669,690.45,Academics ltd
Childrens Services,Children's Social Care,Children Looked After,Virtual School PPG,Third Party Payments - Payments to Schools,11/09/2017,3937704,500.00,St Martins C or E Primary School
Childrens Services,Children's Social Care,Children Looked After,S23-Other-Semi-Ind. Unit,Childrens Act Section 23 - Placement Fee,11/09/2017,3937712,"2,027.45",Pangea Support Services
Childrens Services,Children's Social Care,Children Looked After,S23-Resi-P&V/OLA-Boarding Sch,Childrens Act Section 23 - Placement Fee,13/09/2017,3923211,"12,000.00",Janailah Ltd
Childrens Services,Children's Social Care,Children Looked After,S23 Fam Pl P&V-F/Care,Childrens Act Section 23 - Placement Fee,13/09/2017,3924384,"3,401.32",CAPSTONE VISION FOSTER CARE LTD
Childrens Services,Children's Social Care,Children Looked After,S23 Fam Pl P&V-F/Care,Childrens Act Section 23 - Placement Fee,13/09/2017,3924388,"3,272.67",COMPASS FOSTERING LONDON LIMITED
Childrens Services,Children's Social Care,Children Looked After,S23 Fam Pl P&V-F/Care,Childrens Act Section 23 - Placement Fee,13/09/2017,3925052,"19,750.25",Horizon Care & Education Group Ltd
Childrens Services,Cultural and Related Services,Open Spaces,Mile End Park,Stationery,13/09/2017,3925263,499.97,Office Depot (Catalogue)
Childrens Services,Children's Social Care,Support Service and Management Costs,Welfare Catering,Kitchen Supplies - Food and Beverages,13/09/2017,3925318,833.40,Thomas Ridley & Son Ltd
Childrens Services,Children's Social Care,Support Service and Management Costs,"Mulberry Caf�		",Kitchen Supplies - Food and Beverages,13/09/2017,3925319,444.06,Thomas Ridley & Son Ltd
Childrens Services,No Service Specified,No Division Specified,Capital-Minor Works (SC),Other External Fees - Consultants Fees,13/09/2017,3925322,"3,200.00",Architype
Childrens Services,Children's Social Care,Support Service and Management Costs,Welfare Catering,Kitchen Supplies - Food and Beverages,13/09/2017,3925992,456.40,Thomas Ridley & Son Ltd
Childrens Services,Children's Social Care,Children Looked After,Virtual School PPG,Computing - Purchase of Software,13/09/2017,3927252,"5,250.00",Pearson Publishing Ltd
Childrens Services,Children's Social Care,Children Looked After,S23-Resi-P&V/OLA-Sec Acc-Wel,Childrens Act Section 23 - Placement Fee,13/09/2017,3927302,"4,925.16",Rossie Secure Accommodation Services
Childrens Services,Cultural and Related Services,Recreation & Sport,Sports Development,Recreational Activities,13/09/2017,3927544,285.00,St Hilda's East Community Centre
Childrens Services,Children's Social Care,Children Looked After,S23-Other-Semi-Ind. Unit,Childrens Act Section 23 - Placement Fee,13/09/2017,3927574,"1,300.00",Real Life
Childrens Services,Children's Social Care,Children Looked After,S23-Other-Semi-Ind. Unit,Childrens Act Section 23 - Placement Fee,13/09/2017,3927575,"1,358.00",Real Life
Childrens Services,Education Services,Early Years,Collingwood,Environmental Health Supplies - Baits and Poisons,13/09/2017,3929411,480.00,Raptor Services Ltd
Childrens Services,Children's Social Care,Children Looked After,S23 Fam Pl P&V-F/Care,Childrens Act Section 23 - Placement Fee,13/09/2017,3930226,"3,018.65",Five Rivers Childcare Limited
Childrens Services,Children's Social Care,Children Looked After,S23 Fam Pl P&V-F/Care,Childrens Act Section 23 - All Contact Expenses,13/09/2017,3930786,"2,104.00",Limehouse Children Contact Centre LTD
Childrens Services,Children's Social Care,Support Service and Management Costs,Building Cleaning,Materials - Cleaning Materials,13/09/2017,3931627,408.00,The Maintenance Supply Co Ltd
Childrens Services,Children's Social Care,Children Looked After,S23 Fam Pl In-Hse-For Adopt,Childrens Act Section 23 - Inter-Agency Fees,13/09/2017,3931667,"19,800.00",Bexley Council
Childrens Services,Children's Social Care,Children Looked After,S23-Resi-P&V/OLA-Child Home,Childrens Act Section 23 - Placement Fee,13/09/2017,3931676,"18,339.82",Castle Homes Care Ltd
Childrens Services,Children's Social Care,Children Looked After,S23-Resi-P&V/OLA-Child Home,Childrens Act Section 23 - Placement Fee,13/09/2017,3931677,"17,702.55",Castle Homes Care Ltd
Childrens Services,Cultural and Related Services,Open Spaces,Parks & Open Spaces Man&Admin,Grounds Maintenance - Contract - Horticultural Maintenance,13/09/2017,3932257,464.50,Fresh Acres Nurseries Ltd
Childrens Services,Education Services,Other Strategic Functions,Parental Engagement,Computing - Purchase of Software,13/09/2017,3932924,"2,400.00",Bold Creative LTD
Childrens Services,Children's Social Care,Support Service and Management Costs,Schools Catering,Third Party Payments - Other Agencies,13/09/2017,3933164,"4,045.00",Barts Health NHS Trust
Childrens Services,Children's Social Care,Children Looked After,S23 Fam Pl P&V-F/Care,Childrens Act Section 23 - Expert Assessmt/Witness Costs,13/09/2017,3934004,"1,223.20",The Peter Branston Consultancy
Childrens Services,Children's Social Care,Children Looked After,S23 Family Placements P&V,Childrens Act Section 23 - Placement Fee,13/09/2017,3934327,"3,359.47",Safehouses
Childrens Services,Education Services,Other Strategic Functions,Attendance & Welf Service GF,Training Expenses - Staff External Training (UK Based),13/09/2017,3934339,285.00,Association for Education Welfare Manage
Childrens Services,Children's Social Care,Children Looked After,S23 Fam Pl P&V-F/Care,Childrens Act Section 23 - Placement Fee,13/09/2017,3937657,"3,875.00",Ryancare Fostering Ltd
Childrens Services,Children's Social Care,Children Looked After,S23 Fam Pl P&V-F/Care,Childrens Act Section 23 - Placement Fee,13/09/2017,3937658,791.77,Ryancare Fostering Ltd
Childrens Services,Children's Social Care,Children Looked After,S23-Other-Semi-Ind. Unit,Childrens Act Section 23 - Placement Fee,13/09/2017,3937711,"2,050.81",Pangea Support Services
Childrens Services,Children's Social Care,Children Looked After,Youth Detention- STC,Childrens Act Section 23 - Placement Fee,13/09/2017,3937719,"16,080.00",The Youth Justice Board
Childrens Services,Children's Social Care,Children Looked After,S23-Other-Prison,Childrens Act Section 23 - Placement Fee,13/09/2017,3937720,"5,730.00",The Youth Justice Board
Childrens Services,Children's Social Care,Service Strategy,89 CA Sec 17 Chld in Need WAPP,Childrens Act Section 17 - Other Childcare Support,13/09/2017,3937743,683.80,Alere Toxicology PLC
Childrens Services,Children's Social Care,Children Looked After,S23 Fam Pl P&V-F/Care,Childrens Act Section 23 - Placement Fee,13/09/2017,3937759,"4,650.00",Ryancare Fostering Ltd
Childrens Services,Children's Social Care,Children Looked After,S23 Fam Pl P&V-F/Care,Childrens Act Section 23 - Placement Fee,13/09/2017,3937760,"3,875.00",Ryancare Fostering Ltd
Childrens Services,Children's Social Care,Family Support Services,CNN Pool: Joint Family Support,Childrens Act Section 17 - Respite Care,13/09/2017,3937769,323.40,QALB Centre Short Break Services
Childrens Services,Children's Social Care,Children Looked After,S23 Fam Pl P&V-F/Care,Childrens Act Section 23 - Placement Fee,13/09/2017,3937777,"3,364.74",Ryancare Fostering Ltd
Childrens Services,Children's Social Care,Children Looked After,S23 Fam Pl P&V-F/Care,Childrens Act Section 23 - Placement Fee,13/09/2017,3937794,"3,541.75",Ryancare Fostering Ltd
Childrens Services,Children's Social Care,Children Looked After,S23 Fam Pl P&V-F/Care,Childrens Act Section 23 - Placement Fee,13/09/2017,3937802,"4,650.00",Ryancare Fostering Ltd
Childrens Services,Children's Social Care,Children Looked After,S23 Fam Pl P&V-F/Care,Childrens Act Section 23 - Placement Fee,13/09/2017,3937807,"3,364.74",Ryancare Fostering Ltd
Childrens Services,Children's Social Care,Children Looked After,12 Norman Grove,Training Expenses - Staff External Training (UK Based),13/09/2017,3937989,"1,581.09",NJP Consultancy And Training Ltd
Childrens Services,Children's Social Care,Children Looked After,S23 Fam Pl P&V-F/Care,Childrens Act Section 23 - Non-Contact Trans/Travel Costs,13/09/2017,3938001,"1,788.15",TKG LTD T/A The Keen Group
Childrens Services,Children's Social Care,Children Looked After,S23 Fam Pl P&V-F/Care,Childrens Act Section 23 - Non-Contact Taxi Costs,13/09/2017,3938005,"7,539.50",Children First Fostering Agency LTD
Childrens Services,Education Services,Services to Young People and Other Community Learners,Careers Service - Core,Property Leases - Buildings,13/09/2017,3938015,"11,250.00",REDACTED SECTION 40 FOI ACT
Childrens Services,Children's Social Care,Service Strategy,89 CA Sec 17 Chld in Need BOW,Childrens Act Section 17 - Expert Assessmt/Witness Costs,13/09/2017,3938016,299.25,E4 Law Limited T/A Lextox
Childrens Services,Education Services,Other Strategic Functions,Governors Services,Subscriptions - Associations,13/09/2017,3938031,510.00,The National Governors Association
Childrens Services,Children's Social Care,Children Looked After,S23 Fam Pl P&V-F/Care,Childrens Act Section 23 - Placement Fee,13/09/2017,3938077,"3,629.17",Child Focus Fostering Agency Ltd
Childrens Services,Children's Social Care,Children Looked After,Virtual School PPG,Third Party Payments - Payments to Schools,13/09/2017,3938109,540.00,Footsteps
Childrens Services,Children's Social Care,Children Looked After,Virtual School PPG,Third Party Payments - Payments to Schools,13/09/2017,3938110,360.00,Footsteps
Childrens Services,Children's Social Care,Children Looked After,S23 Fam Pl P&V-F/Care,Childrens Act Section 23 - Placement Fee,13/09/2017,3938171,"3,447.82",Child Focus Fostering Agency Ltd
Childrens Services,Children's Social Care,Children Looked After,S23-Other-Hospital,Childrens Act Section 23 - Expert Assessmt/Witness Costs,13/09/2017,3938180,501.00,E4 Law Limited T/A Lextox
Childrens Services,Children's Social Care,Children Looked After,S23 Fam Pl P&V-F/Care,Childrens Act Section 23 - Placement Fee,13/09/2017,3938194,"2,575.54",Child Focus Fostering Agency Ltd
Childrens Services,Children's Social Care,Children Looked After,S23 Fam Pl P&V-F/Care,Childrens Act Section 23 - Placement Fee,13/09/2017,3938215,"2,446.84",Child Focus Fostering Agency Ltd
Childrens Services,Education Services,Other Strategic Functions,Parents Advice Centre,Meeting Expenses,13/09/2017,3938312,395.83,LBTH - FAMILY INTERVENTION SERVICE
Childrens Services,Cultural and Related Services,Culture & Heritage,Event Fund,Third Party Payments - Voluntary Associations,13/09/2017,3938787,640.00,Half Moon Young People's Theatre
Childrens Services,Cultural and Related Services,Culture & Heritage,Event Fund,Third Party Payments - Voluntary Associations,13/09/2017,3938788,"1,200.00",Half Moon Young People's Theatre
Childrens Services,Children's Social Care,Children Looked After,S23-Other-Semi-Ind. Unit,Childrens Act Section 23 - Placement Fee,13/09/2017,3938888,"1,762.58",Pangea Support Services
Childrens Services,Children's Social Care,Children Looked After,S23-Other-Semi-Ind. Unit,Childrens Act Section 23 - Placement Fee,13/09/2017,3938892,"1,762.58",Pangea Support Services
Childrens Services,Children's Social Care,Children Looked After,S23-Other-Semi-Ind. Unit,Childrens Act Section 23 - Placement Fee,13/09/2017,3938893,796.00,Pangea Support Services
Childrens Services,Children's Social Care,Children Looked After,S23-Other-Semi-Ind. Unit,Childrens Act Section 23 - Placement Fee,13/09/2017,3938898,"1,862.58",Pangea Support Services
Childrens Services,Children's Social Care,Children Looked After,S23-Other-Semi-Ind. Unit,Childrens Act Section 23 - Placement Fee,13/09/2017,3938906,"1,762.58",Pangea Support Services
Childrens Services,Children's Social Care,Children Looked After,S23-Other-Semi-Ind. Unit,Childrens Act Section 23 - Placement Fee,13/09/2017,3938908,"1,762.58",Pangea Support Services
Childrens Services,Children's Social Care,Children Looked After,S23-Other-Semi-Ind. Unit,Childrens Act Section 23 - Placement Fee,13/09/2017,3938913,"1,984.01",Pangea Support Services
Childrens Services,Children's Social Care,Children Looked After,S23-Other-Semi-Ind. Unit,Childrens Act Section 23 - Placement Fee,13/09/2017,3938914,"1,762.58",Pangea Support Services
Childrens Services,Children's Social Care,Children Looked After,S23-Other-Semi-Ind. Unit,Childrens Act Section 23 - Placement Fee,13/09/2017,3938920,"1,943.48",Pangea Support Services
Childrens Services,No Service Specified,No Division Specified,Capital-Minor Works (SC),Other External Fees - Consultants Fees,15/09/2017,3922745,"1,113.37",Frankham Consultancy Group LTD
Childrens Services,No Service Specified,No Division Specified,Capital-Minor Works (SC),Other External Fees - Consultants Fees,15/09/2017,3924637,"8,493.51",Frankham Consultancy Group LTD
Childrens Services,No Service Specified,No Division Specified,Capital-Minor Works (SC),Other External Fees - Consultants Fees,15/09/2017,3924638,"12,740.27",Frankham Consultancy Group LTD
Childrens Services,Education Services,Other Strategic Functions,Central Pupil Database Project,Training Expenses - Staff External Training (UK Based),15/09/2017,3924662,349.00,The Knowledge Academy
Childrens Services,Children's Social Care,Support Service and Management Costs,"Mulberry Caf�		",Kitchen Supplies - Food and Beverages,15/09/2017,3924878,493.40,Thomas Ridley & Son Ltd
Childrens Services,Children's Social Care,Children Looked After,S23 Fam Pl P&V-F/Care,Childrens Act Section 23 - All Contact Expenses,15/09/2017,3925066,307.00,Limehouse Children Contact Centre LTD
Childrens Services,Children's Social Care,Children Looked After,Leaving Care-UASC,Leaving Care Financial Assistance - Supp Accom/Hous Rents,15/09/2017,3925299,960.07,Newhaven 16 Plus
Childrens Services,Children's Social Care,Children Looked After,Leaving Care-UASC,Leaving Care Financial Assistance - Supp Accom/Hous Rents,15/09/2017,3925303,960.07,Newhaven 16 Plus
Childrens Services,Children's Social Care,Children Looked After,LCS/Allowances-Accom,Leaving Care Financial Assistance - Supp Accom/Hous Rents,15/09/2017,3925304,960.07,Newhaven 16 Plus
Childrens Services,Children's Social Care,Children Looked After,LCS/Allowances-Accom,Leaving Care Financial Assistance - Supp Accom/Hous Rents,15/09/2017,3925305,960.07,Newhaven 16 Plus
Childrens Services,Children's Social Care,Children Looked After,LCS/Allowances-Accom,Leaving Care Financial Assistance - Supp Accom/Hous Rents,15/09/2017,3925306,960.07,Newhaven 16 Plus
Childrens Services,Children's Social Care,Children Looked After,LCS/Allowances-Accom,Leaving Care Financial Assistance - Supp Accom/Hous Rents,15/09/2017,3925307,960.07,Newhaven 16 Plus
Childrens Services,Children's Social Care,Children Looked After,LCS/Allowances-Accom,Leaving Care Financial Assistance - Supp Accom/Hous Rents,15/09/2017,3925308,960.07,Newhaven 16 Plus
Childrens Services,Children's Social Care,Children Looked After,LCS/Allowances-Accom,Leaving Care Financial Assistance - Supp Accom/Hous Rents,15/09/2017,3925310,960.07,Newhaven 16 Plus
Childrens Services,Children's Social Care,Children Looked After,LCS/Allowances-Accom,Leaving Care Financial Assistance - Supp Accom/Hous Rents,15/09/2017,3925313,"1,107.01",Newhaven 16 Plus
Childrens Services,Children's Social Care,Children Looked After,Leaving Care-UASC,Leaving Care Financial Assistance - Supp Accom/Hous Rents,15/09/2017,3925314,"1,107.01",Newhaven 16 Plus
Childrens Services,Children's Social Care,Children Looked After,LCS/Allowances-Accom,Leaving Care Financial Assistance - Supp Accom/Hous Rents,15/09/2017,3925315,960.07,Newhaven 16 Plus
Childrens Services,Children's Social Care,Children Looked After,S23-Resi-P&V/OLA-Sec Acc-Wel,Childrens Act Section 23 - Placement Fee,15/09/2017,3925336,"22,142.99",Care 4 Children Residential Services Limited
Childrens Services,Children's Social Care,Children Looked After,LCS/Allowances-Accom,Leaving Care Financial Assistance - Supp Accom/Hous Rents,15/09/2017,3925368,"1,550.00",Newhaven 16 Plus
Childrens Services,Children's Social Care,Children Looked After,Leaving Care-UASC,Leaving Care Financial Assistance - Supp Accom/Hous Rents,15/09/2017,3925373,960.07,Newhaven 16 Plus
Childrens Services,Children's Social Care,Services for young people,LAPS 1 - 8,Educational/Training Supplies - Curriculum Visits/Activities,15/09/2017,3926003,"1,978.00",JS Entertainments Ltd
Childrens Services,Children's Social Care,Children Looked After,S23 Fam Pl P&V-F/Care,Childrens Act Section 23 - Placement Fee,15/09/2017,3926246,"5,580.60",Moments Fostering Ltd
Childrens Services,Children's Social Care,Children Looked After,S23-Resi-P&V/OLA-Child Home,Childrens Act Section 23 - Placement Fee,15/09/2017,3927217,"12,188.40",Bridge Communities Ltd
Childrens Services,Children's Social Care,Children Looked After,S23-Resi-P&V/OLA-Child Home,Childrens Act Section 23 - Placement Fee,15/09/2017,3927220,"25,885.00",Northumberland County Council
Childrens Services,Children's Social Care,Children Looked After,Leaving Care-UASC,Leaving Care Financial Assistance - Supp Accom/Hous Rents,15/09/2017,3927501,"5,570.39",The Way Care Services Ltd
Childrens Services,Children's Social Care,Children Looked After,S23 Fam Pl In-Hse-S/Term F/C,Childrens Act Section 23 - All Contact Expenses,15/09/2017,3927511,267.75,Limehouse Children Contact Centre LTD
Childrens Services,Education Services,Other Strategic Functions,Non-Statemented Ed.Placemts,Social Care - Nursing Care,15/09/2017,3927545,"16,910.50",Kibble Education and Care Centre
Childrens Services,Children's Social Care,Children Looked After,S23-Resi-P&V/OLA-Sec Acc-Wel,Childrens Act Section 23 - Placement Fee,15/09/2017,3927545,"16,910.50",Kibble Education and Care Centre
Childrens Services,Children's Social Care,Children Looked After,LCS/Allowances-Accom,Leaving Care Financial Assistance - Supp Accom/Hous Rents,15/09/2017,3927673,-727.20,Newhaven 16 Plus
Childrens Services,Children's Social Care,Children Looked After,LCS/Allowances-Accom,Leaving Care Financial Assistance - Supp Accom/Hous Rents,15/09/2017,3927674,-422.76,Newhaven 16 Plus
Childrens Services,Children's Social Care,Children Looked After,LCS/Allowances-Accom,Leaving Care Financial Assistance - Supp Accom/Hous Rents,15/09/2017,3927675,-727.20,Newhaven 16 Plus
Childrens Services,Children's Social Care,Children Looked After,LCS/Allowances-Accom,Leaving Care Financial Assistance - Supp Accom/Hous Rents,15/09/2017,3927676,-727.20,Newhaven 16 Plus
Childrens Services,Children's Social Care,Children's and Young People's Safety,CLA Reviewing Service,Non Staff Transport Costs - Reimbursement,15/09/2017,3930135,512.90,RSP Rail Travel (Rail Settlement Plan)
Childrens Services,Children's Social Care,Service Strategy,89 CA Sec 17 Chld in Need WAPP,Services - Professional Fees - Translation Fees,15/09/2017,3930334,915.00,Oncall Interpreters LTD
Childrens Services,Education Services,Other Strategic Functions,Information & Support Services,Services - Professional Fees - Financial Services Fees,15/09/2017,3930353,"1,950.00",Serco Shared Services Centre
Childrens Services,Children's Social Care,Support Service and Management Costs,Professional Dev Centre,Office Furniture/Equipment,15/09/2017,3930358,313.00,Pitney Bowes DMT
Childrens Services,Cultural and Related Services,Recreation & Sport,Sports Development,Recreational Activities,15/09/2017,3930723,300.00,Poplar HARCA LTD
Childrens Services,Education Services,Other Strategic Functions,Project Costs and Training,Computing - Purchase of Software,15/09/2017,3930768,"3,196.00",Atomwide Ltd
Childrens Services,Children's Social Care,Children Looked After,LCS/Allowances-Accom,Leaving Care Financial Assistance - Grant Pay Special Needs,15/09/2017,3931928,398.57,Inclusive Care Support Ltd
Childrens Services,Children's Social Care,Children Looked After,LCS/Allowances-Accom,Leaving Care Financial Assistance - Supp Accom/Hous Rents,15/09/2017,3931928,"3,210.71",Inclusive Care Support Ltd
Childrens Services,Education Services,Secondary Schools,PFI Hldg Account-Grouped Schoo,Payments to Private Contractors - Other Contractors,15/09/2017,3932013,"1,210,531.27",Tower Hamlets Schools LTD
Childrens Services,Children's Social Care,Support Service and Management Costs,Welfare Catering,Kitchen Supplies - Food and Beverages,15/09/2017,3932372,397.86,William White Meats Ltd
Childrens Services,Children's Social Care,Support Service and Management Costs,Welfare Catering,Kitchen Supplies - Food and Beverages,15/09/2017,3932387,414.33,William White Meats Ltd
Childrens Services,Children's Social Care,Children Looked After,LCS/Allowances-Accom,Leaving Care Financial Assistance - Grant Pay Special Needs,15/09/2017,3933870,"1,500.24",Netpex
Childrens Services,Children's Social Care,Children Looked After,LCS/Allowances-Accom,Leaving Care Financial Assistance - Supp Accom/Hous Rents,15/09/2017,3933870,"2,800.00",Netpex
Childrens Services,Children's Social Care,Children Looked After,S23 Fam Pl In-Hse-F&F F/Care,Childrens Act Section 23 - Non-Contact Taxi Costs,15/09/2017,3934282,"1,560.00",Olympic (South) Ltd
Childrens Services,Children's Social Care,Children Looked After,S23 Fam Pl In-Hse-F&F F/Care,Childrens Act Section 23 - Non-Contact Taxi Costs,15/09/2017,3934381,"1,170.00",Olympic (South) Ltd
Childrens Services,Cultural and Related Services,Culture & Heritage,Brady Arts Centre,Water Services - Metered,15/09/2017,3937564,753.41,CASTLE WATER
Childrens Services,Children's Social Care,Family Support Services,CNN Pool: Joint Family Support,Childrens Act Section 17 - Respite Care,15/09/2017,3937715,439.50,QALB Centre Short Break Services
Childrens Services,Education Services,Other Strategic Functions,Children with Complex Needs,Third Party Payments - Payments to Schools,15/09/2017,3937725,"27,010.00",Tunmarsh School
Childrens Services,Children's Social Care,Children Looked After,S23 Fam Pl In-Hse-For Adopt,Social Care - Inter-Agency Fees,15/09/2017,3938842,"28,667.00",Core Assets Childrens Services Ltd
Childrens Services,Children's Social Care,Children Looked After,S23-Other-Semi-Ind. Unit,Childrens Act Section 23 - Placement Fee,15/09/2017,3938910,"1,762.58",Pangea Support Services
Childrens Services,Children's Social Care,Children Looked After,S23-Other-Semi-Ind. Unit,Childrens Act Section 23 - Placement Fee,15/09/2017,3938917,"1,250.87",Pangea Support Services
Childrens Services,Children's Social Care,Children Looked After,S23-Other-Semi-Ind. Unit,Childrens Act Section 23 - Placement Fee,15/09/2017,3938977,"1,783.78",Pangea Support Services
Childrens Services,Children's Social Care,Children Looked After,S23-Resi-P&V/OLA-Sec Acc-Wel,Childrens Act Section 23 - Secure Review Costs,15/09/2017,3939727,592.30,RRC (RRCONSULTANCY) LTD
Childrens Services,Education Services,Services to Young People and Other Community Learners,Careers Service - Core,Social Care - Prevention & Support,15/09/2017,3939734,"1,435.00",15billion
Childrens Services,Education Services,Other Strategic Functions,Schools Library,Comms - Courier,15/09/2017,3939755,265.50,Ram Transport LTD
Childrens Services,Cultural and Related Services,Open Spaces,Mile End Park,Rent Charges,15/09/2017,3939756,"6,543.95",Network Rail
Childrens Services,Cultural and Related Services,Open Spaces,Mile End Park,Rent Charges,15/09/2017,3939757,"10,297.30",Network Rail
Childrens Services,Cultural and Related Services,Open Spaces,Mile End Park,Rent Charges,15/09/2017,3939758,"2,258.37",Network Rail
Childrens Services,Cultural and Related Services,Open Spaces,Mile End Park,Events & Exhibition Supplies,15/09/2017,3939797,"2,000.00",Art Catcher
Childrens Services,Children's Social Care,Children Looked After,S23 Family Placements P&V,Childrens Act Section 23 - Non-Contact Taxi Costs,15/09/2017,3940378,"1,280.00",Scope
Childrens Services,Children's Social Care,Children Looked After,S23 Family Placements P&V,Childrens Act Section 23 - Placement Fee,15/09/2017,3940379,"4,871.34",Scope
Childrens Services,Children's Social Care,Family Support Services,CNN Pool: Joint Family Support,Non Staff Transport Costs - Reimbursement,15/09/2017,3940510,258.00,Mile End Car Hire Limited
Childrens Services,Children's Social Care,Support Service and Management Costs,Schools Catering,Tools and Equipment - Purchase,15/09/2017,3940520,370.18,Hobart UK
Childrens Services,Children's Social Care,Support Service and Management Costs,Welfare Catering,Kitchen Supplies - Food and Beverages,18/09/2017,3927243,423.99,Thomas Ridley & Son Ltd
Childrens Services,Children's Social Care,Support Service and Management Costs,"Mulberry Caf�		",Kitchen Supplies - Food and Beverages,18/09/2017,3927245,439.30,Thomas Ridley & Son Ltd
Childrens Services,Education Services,Other Strategic Functions,Special Education Needs DSG,Third Party Payments - Payments to Schools,18/09/2017,3927253,"6,143.20",SMALL HAVEN SCHOOL
Childrens Services,Education Services,Secondary Schools,PFI Hldg Account-Mulberry Scho,Payments to Private Contractors - Other Contractors,18/09/2017,3927256,"18,744.94",D4E Mulberry LTD
Childrens Services,Children's Social Care,Services for young people,LAPS 1 - 8,Educational/Training Supplies - Curriculum Visits/Activities,18/09/2017,3927513,"1,044.00",JS Entertainments Ltd
Childrens Services,Children's Social Care,Children Looked After,S23 Fam Pl P&V-F/Care,Childrens Act Section 23 - All Contact Expenses,18/09/2017,3927520,307.00,Limehouse Children Contact Centre LTD
Childrens Services,Children's Social Care,Children Looked After,S23 Fam Pl P&V-F/Care,Childrens Act Section 23 - Placement Fee,18/09/2017,3929387,"4,185.00",St Christopher's Fellowship
Childrens Services,Education Services,Other Strategic Functions,Special Education Needs DSG,Third Party Payments - Payments to Schools,18/09/2017,3929417,"6,123.00",Parayhouse School
Childrens Services,Children's Social Care,Children Looked After,S23 Fam Pl P&V-F/Care,Childrens Act Section 23 - Placement Fee,18/09/2017,3929442,"4,650.00",St Christopher's Fellowship
Childrens Services,Education Services,Other Strategic Functions,Special Education Needs DSG,Third Party Payments - Payments to Schools,18/09/2017,3929443,"6,123.00",Parayhouse School
Childrens Services,Education Services,Other Strategic Functions,Special Education Needs DSG,Third Party Payments - Payments to Schools,18/09/2017,3929446,"6,123.00",Parayhouse School
Childrens Services,Education Services,Other Strategic Functions,Special Education Needs DSG,Third Party Payments - Payments to Schools,18/09/2017,3929448,"6,123.00",Parayhouse School
Childrens Services,Education Services,Secondary Schools,Secondary Schools Development,Services - General Licences - Licence Fees,18/09/2017,3931613,"3,995.00",Frontline Data Ltd
Childrens Services,No Service Specified,No Division Specified,Capital-Minor Works (SC),Building Works - Main Works,18/09/2017,3932218,"471,891.32",Tower Hamlets Schools LTD
Childrens Services,Children's Social Care,Support Service and Management Costs,Welfare Catering,Kitchen Supplies - Food and Beverages,18/09/2017,3932396,355.93,William White Meats Ltd
Childrens Services,Children's Social Care,Children Looked After,LCS/Allowances-Accom,Leaving Care Financial Assistance - Grant Pay Special Needs,18/09/2017,3938098,"2,746.10",Heartwood Outreach Services Ltd
Childrens Services,Children's Social Care,Children Looked After,LCS/Allowances-Accom,Leaving Care Financial Assistance - Supp Accom/Hous Rents,18/09/2017,3938098,618.10,Heartwood Outreach Services Ltd
Childrens Services,Children's Social Care,Children Looked After,LCS/Allowances-Accom,Leaving Care Financial Assistance - Grant Pay Special Needs,18/09/2017,3938174,"2,837.64",Heartwood Outreach Services Ltd
Childrens Services,Children's Social Care,Children Looked After,LCS/Allowances-Accom,Leaving Care Financial Assistance - Supp Accom/Hous Rents,18/09/2017,3938174,638.70,Heartwood Outreach Services Ltd
Childrens Services,Children's Social Care,Service Strategy,89 CA Sec 17 Chld in Need POPS,Services - Professional Fees - Legal Fees/Expenses,18/09/2017,3939955,"1,123.40",E.C.P.LTD
Childrens Services,Education Services,Other Strategic Functions,Special Education Needs DSG,Third Party Payments - Payments to Schools,18/09/2017,3940377,"2,437.50",Keys Group
Childrens Services,Children's Social Care,Children Looked After,S23-Resi-P&V/OLA-Child Home,Childrens Act Section 23 - Placement Fee,18/09/2017,3940377,"2,437.50",Keys Group
Childrens Services,Children's Social Care,Service Strategy,89 CA Sec 17 Chld in Need BOW,Meeting Expenses,18/09/2017,3940383,"1,147.00",PARK HOTEL
Childrens Services,Children's Social Care,Children Looked After,S23 Family Placements P&V,Childrens Act Section 23 - Placement Fee,18/09/2017,3940463,"4,000.00",Credo Care ltd
Childrens Services,Education Services,Other Strategic Functions,SLS - SEN Training SLA,Social Care - Others,18/09/2017,3940465,250.00,Kent County Council
Childrens Services,Children's Social Care,Family Support Services,CNN Pool: Joint Family Support,Childrens Act Section 17 - Respite Care,18/09/2017,3940497,"1,507.50",QALB Centre Short Break Services
Childrens Services,Education Services,Other Strategic Functions,Special Education Needs DSG,Third Party Payments - Payments to Schools,18/09/2017,3940528,"10,075.00",Keys Group
Childrens Services,Children's Social Care,Children Looked After,S23-Resi-P&V/OLA-Child Home,Childrens Act Section 23 - Placement Fee,18/09/2017,3940528,"10,075.00",Keys Group
Childrens Services,Children's Social Care,Children Looked After,S23-Resi-P&V/OLA-Child Respite,Childrens Act Section 23 - Placement Fee,18/09/2017,3940544,"3,780.00",QALB Centre Short Break Services
Childrens Services,Children's Social Care,Children Looked After,S23-Resi-P&V/OLA-Child Respite,Childrens Act Section 23 - Placement Fee,18/09/2017,3940572,"3,780.00",QALB Centre Short Break Services
Childrens Services,Children's Social Care,Children Looked After,S23-Resi-P&V/OLA-Child Respite,Childrens Act Section 23 - Placement Fee,18/09/2017,3940580,"3,780.00",QALB Centre Short Break Services
Childrens Services,Children's Social Care,Children Looked After,S23-Resi-P&V/OLA-Child Respite,Childrens Act Section 23 - Placement Fee,18/09/2017,3940597,"3,780.00",QALB Centre Short Break Services
Childrens Services,Cultural and Related Services,Open Spaces,Victoria Park,Events & Exhibition Supplies,18/09/2017,3940691,450.00,Face Painting Co.  terri timms
Childrens Services,Cultural and Related Services,Recreation & Sport,GLL Sports Centres,Payments to Private Contractors - Minor Works,20/09/2017,3911353,"18,833.33",Greenwich Leisure LTD
Childrens Services,Education Services,Other Strategic Functions,Special Education Needs DSG,Third Party Payments - Payments to Schools,20/09/2017,3927306,"6,669.76",SMALL HAVEN SCHOOL
Childrens Services,Education Services,Other Education and Community Budget,Community Languages,Stationery,20/09/2017,3927651,388.63,Office Depot (Catalogue)
Childrens Services,Children's Social Care,Children Looked After,S23 Fam Pl Fost/Adop Advert,Childrens Act Section 23 - Placement Fee,20/09/2017,3927655,900.00,Rehan Jamil Photography
Childrens Services,Cultural and Related Services,Open Spaces,Victoria Park,Events & Exhibition Supplies,20/09/2017,3927656,"1,300.00",Rehan Jamil Photography
Childrens Services,Cultural and Related Services,Open Spaces,Parks & Open Spaces Man&Admin,Events & Exhibition Supplies,20/09/2017,3927657,"2,100.00",Rehan Jamil Photography
Childrens Services,Children's Social Care,Support Service and Management Costs,Welfare Catering,Kitchen Supplies - Food and Beverages,20/09/2017,3927677,"1,066.89",Thomas Ridley & Son Ltd
Childrens Services,Children's Social Care,Support Service and Management Costs,"Mulberry Caf�		",Kitchen Supplies - Food and Beverages,20/09/2017,3927678,419.35,Thomas Ridley & Son Ltd
Childrens Services,Children's Social Care,Support Service and Management Costs,Sch. Meals A/c - Central Production Unit,Kitchen Supplies - Food and Beverages,20/09/2017,3927686,404.12,Prescott-Thomas LTD.
Childrens Services,Children's Social Care,Support Service and Management Costs,"Mulberry Caf�		",Kitchen Supplies - Food and Beverages,20/09/2017,3929393,650.75,Thomas Ridley & Son Ltd
Childrens Services,Children's Social Care,Support Service and Management Costs,Welfare Catering,Kitchen Supplies - Food and Beverages,20/09/2017,3929394,551.04,Thomas Ridley & Son Ltd
Childrens Services,Children's Social Care,Children Looked After,S23 Fam Pl P&V-F/Care,Childrens Act Section 23 - Placement Fee,20/09/2017,3930183,"1,779.66",Five Rivers Childcare Limited
Childrens Services,Cultural and Related Services,Open Spaces,Victoria Park,Events & Exhibition Supplies,20/09/2017,3930744,"1,625.00",Community Link Trading Ltd
Childrens Services,Cultural and Related Services,Open Spaces,Parks & Open Spaces Man&Admin,Events & Exhibition Supplies,20/09/2017,3930745,"1,625.00",Community Link Trading Ltd
Childrens Services,Education Services,Other Strategic Functions,Attendance & Welf Service GF,Computing - Purchase of Hardware,20/09/2017,3931688,673.58,Specialist Computer Centres PLC
Childrens Services,Children's Social Care,Commissioning and Social Work,Advice & Assesment M & A,Computing - Purchase of Software,20/09/2017,3931689,681.28,Specialist Computer Centres PLC
Childrens Services,Education Services,Other Strategic Functions,Parents Advice Centre,Stationery,20/09/2017,3932021,506.00,Love2Reward
Childrens Services,Children's Social Care,Commissioning and Social Work,Advice and Assessment Section 17,Childrens Act Section 17 - Interpreting/Translation,20/09/2017,3932226,961.50,Oncall Interpreters LTD
Childrens Services,Children's Social Care,Support Service and Management Costs,Sch. Meals A/c - Central Production Unit,Repairs and Maintenance - Responsive - General,20/09/2017,3932250,259.30,Lambourne Refrigeration
Childrens Services,Children's Social Care,Support Service and Management Costs,Schools Catering,Environmental Health Supplies - Samples for Testing,20/09/2017,3932317,297.50,Public Analyst Scientific Services
Childrens Services,Children's Social Care,Commissioning and Social Work,Advice and Assessment Section 17,Childrens Act Section 17 - Interpreting/Translation,20/09/2017,3934423,333.45,Oncall Interpreters LTD
Childrens Services,Children's Social Care,Family Support Services,IPST S17 NRPF,Childrens Act Section 17 - Other Placements Bed & Breakfast,20/09/2017,3938058,"1,209.00",METROPOLITAN & CROWN
Childrens Services,Children's Social Care,Family Support Services,IPST S17 NRPF,Childrens Act Section 17 - Other Placements Bed & Breakfast,20/09/2017,3938167,"1,209.00",METROPOLITAN & CROWN
Childrens Services,Children's Social Care,Family Support Services,IPST S17 NRPF,Childrens Act Section 17 - Food Grants,20/09/2017,3938320,"3,762.00",SOCIAL SERVICES CHEVIOT HOUSE
Childrens Services,Children's Social Care,Children Looked After,S23 Fam Pl P&V-F/Care,Childrens Act Section 23 - Placement Fee,20/09/2017,3939697,"6,421.43",Five Rivers Childcare Limited
Childrens Services,Children's Social Care,Children Looked After,S23-Other-Semi-Ind. Unit,Childrens Act Section 23 - Placement Fee,20/09/2017,3939789,"8,170.52",Youth reality homes
Childrens Services,Cultural and Related Services,Recreation & Sport,GLL Sports Centres,Payments to Private Contractors - Sports Club Support,20/09/2017,3939816,"6,112.93",Greenwich Leisure LTD
Childrens Services,Children's Social Care,Children Looked After,Staying Put,Childrens Act Section 23 - Placement Fee,20/09/2017,3939821,"3,132.93",Integrated Fostering Services Ltd
Childrens Services,Children's Social Care,Children Looked After,S23 Fam Pl P&V-F/Care,Childrens Act Section 23 - Placement Fee,20/09/2017,3939824,"6,214.29",Five Rivers Childcare Limited
Childrens Services,Children's Social Care,Children Looked After,S23-Resi-P&V/OLA-Sec Acc-Wel,Childrens Act Section 23 - Secure Review Costs,20/09/2017,3939830,575.60,RRC (RRCONSULTANCY) LTD
Childrens Services,Children's Social Care,Children Looked After,S23 Fam Pl P&V-F/Care,Childrens Act Section 23 - Placement Fee,20/09/2017,3940376,"-6,214.29",Five Rivers Childcare Limited
Childrens Services,Children's Social Care,Family Support Services,IPST S17 NRPF,Childrens Act Section 17 - Other Placements Bed & Breakfast,20/09/2017,3940403,"4,000.00",Finefair Management
Childrens Services,Children's Social Care,Children Looked After,S23-Resi-P&V/OLA-Child Home,Childrens Act Section 23 - Placement Fee,20/09/2017,3940418,"11,071.42",Bellview Homecare
Childrens Services,Children's Social Care,Children Looked After,S23-Other-Semi-Ind. Unit,Childrens Act Section 23 - Placement Fee,20/09/2017,3940485,"1,592.41",Heartwood Outreach Services Ltd
Childrens Services,Children's Social Care,Children Looked After,S23 Fam Pl In-Hse-S/Term F/C,Childrens Act Section 23 - Non-Contact Trans/Travel Costs,20/09/2017,3940509,480.00,Mile End Car Hire Limited
Childrens Services,Children's Social Care,Children Looked After,S23 Fam Pl In-Hse-S/Term F/C,Childrens Act Section 23 - All Contact Expenses,20/09/2017,3940524,880.00,HOPE Superjobs Ltd
Childrens Services,Children's Social Care,Children Looked After,S23 Fam Pl P&V-F/Care,Childrens Act Section 23 - Placement Fee,20/09/2017,3940527,"-5,592.86",Five Rivers Childcare Limited
Childrens Services,Children's Social Care,Family Support Services,IPST S17 NRPF,Childrens Act Section 17 - Other Placements Bed & Breakfast,20/09/2017,3940532,"1,550.00",Finefair Management
Childrens Services,Children's Social Care,Children Looked After,S23 Fam Pl In-Hse-S/Term F/C,Childrens Act Section 23 - All Contact Expenses,20/09/2017,3940551,440.00,HOPE Superjobs Ltd
Childrens Services,Children's Social Care,Children Looked After,S23 Fam Pl P&V-F/Care,Childrens Act Section 23 - Placement Fee,20/09/2017,3940568,"2,071.43",Five Rivers Childcare Limited
Childrens Services,Children's Social Care,Family Support Services,IPST S17 NRPF,Childrens Act Section 17 - Other Placements Bed & Breakfast,20/09/2017,3940569,"4,250.00",Finefair Management
Childrens Services,Children's Social Care,Children Looked After,S23 Fam Pl In-Hse-S/Term F/C,Childrens Act Section 23 - All Contact Expenses,20/09/2017,3940576,440.00,HOPE Superjobs Ltd
Childrens Services,Children's Social Care,Children Looked After,S23 Fam Pl In-Hse-S/Term F/C,Childrens Act Section 23 - All Contact Expenses,20/09/2017,3940583,440.00,HOPE Superjobs Ltd
Childrens Services,Children's Social Care,Children Looked After,12 Norman Grove,Kitchen Supplies - Food and Beverages,20/09/2017,3940949,275.00,LBTH - 12A NORMAN GROVE LONG TERM UNIT
Childrens Services,Cultural and Related Services,Culture & Heritage,Arts-Park Events,Events & Exhibition Supplies,20/09/2017,3941065,500.00,Bishwo Shahitto Kendro
Childrens Services,No Service Specified,No Division Specified,Capital-Minor Works (SC),Other External Fees - Other External Fees,20/09/2017,3941072,712.50,Fred Fountain Ltd
Childrens Services,Children's Social Care,Services for young people,Outdoor,Educational/Training Supplies - Curriculum Visits/Activities,20/09/2017,3942531,864.00,Mile End Climbing Wall
Childrens Services,Children's Social Care,Children Looked After,S23 Fam Pl P&V-F/Care,Childrens Act Section 23 - Non-Contact Trans/Travel Costs,20/09/2017,3942546,330.00,AQUACARS LTD
Childrens Services,Children's Social Care,Support Service and Management Costs,Sch. Meals A/c - Central Production Unit,Kitchen Supplies - Food and Beverages,20/09/2017,3942639,404.12,Prescott-Thomas LTD.
Childrens Services,Children's Social Care,Children Looked After,LCS/Allowances-Accom,Leaving Care Financial Assistance - Reg Plan Maint L-Allow,20/09/2017,3942745,258.50,SOCIAL SERVICES LEAVING CARE SERVICE
Childrens Services,Education Services,Early Years,Wapping C.C - SLA,Electricity,20/09/2017,3942795,365.00,EDF Energy Customer Field Services
Childrens Services,Education Services,Other Strategic Functions,Central Pupil Database Project,Computing - Purchase of Software,22/09/2017,3870997,"9,000.00",Serverlec Synergy Ltd
Childrens Services,Children's Social Care,Services for young people,Youth Service Management,Educational/Training Supplies - Curriculum Visits/Activities,22/09/2017,3929409,"1,075.00",JS Entertainments Ltd
Childrens Services,Children's Social Care,Services for young people,Outdoor,Educational/Training Supplies - Curriculum Visits/Activities,22/09/2017,3930154,250.00,Rehan Jamil Photography
Childrens Services,Cultural and Related Services,Recreation & Sport,Summer Time Out Recreation,Recreational Activities,22/09/2017,3930155,250.00,Rehan Jamil Photography
Childrens Services,Education Services,Other Strategic Functions,Education Psychologists GF,Stationery,22/09/2017,3930311,462.95,Office Depot (Catalogue)
Childrens Services,Children's Social Care,Children Looked After,S23 Fam Pl P&V-F/Care,Childrens Act Section 23 - Placement Fee,22/09/2017,3930322,"3,441.00",Mosaic Foster Care
Childrens Services,Children's Social Care,Children Looked After,S23 Fam Pl P&V-F/Care,Childrens Act Section 23 - Placement Fee,22/09/2017,3930323,"3,441.00",Mosaic Foster Care
Childrens Services,Children's Social Care,Support Service and Management Costs,Sch. Meals A/c - Central Production Unit,Kitchen Supplies - Food and Beverages,22/09/2017,3930341,-376.08,Prescott-Thomas LTD.
Childrens Services,Children's Social Care,Service Strategy,FS&P - NRPF,Social Care - Day Care,22/09/2017,3930398,282.00,Limehouse Children Contact Centre LTD
Childrens Services,No Service Specified,No Division Specified,Capital-Minor Works (SC),Building Works - Main Works,22/09/2017,3930764,"73,274.93",Maguire Brothers
Childrens Services,Children's Social Care,Children Looked After,S23 Fam Pl P&V-F/Care,Childrens Act Section 23 - Placement Fee,22/09/2017,3931640,"3,520.67",Affinity Fostering Services Ltd
Childrens Services,Children's Social Care,Children Looked After,S23 Fam Pl P&V-F/Care,Childrens Act Section 23 - Placement Fee,22/09/2017,3931641,"3,520.67",Affinity Fostering Services Ltd
Childrens Services,Children's Social Care,Children Looked After,S23 Fam Pl P&V-F/Care,Childrens Act Section 23 - Placement Fee,22/09/2017,3931642,"3,520.67",Affinity Fostering Services Ltd
Childrens Services,Children's Social Care,Children Looked After,S23 Fam Pl P&V-F/Care,Childrens Act Section 23 - Placement Fee,22/09/2017,3931643,"6,864.33",Affinity Fostering Services Ltd
Childrens Services,Cultural and Related Services,Recreation & Sport,Summer Time Out Recreation,Recreational Activities,22/09/2017,3931901,995.00,Community Link Trading Ltd
Childrens Services,Cultural and Related Services,Open Spaces,Mile End Park,Events & Exhibition Supplies,22/09/2017,3932258,316.00,Fresh Acres Nurseries Ltd
Childrens Services,Children's Social Care,Support Service and Management Costs,Welfare Catering,Kitchen Supplies - Food and Beverages,22/09/2017,3932402,423.54,William White Meats Ltd
Childrens Services,Children's Social Care,Support Service and Management Costs,Welfare Catering,Kitchen Supplies - Food and Beverages,22/09/2017,3932955,341.35,Apetito LTD
Childrens Services,Education Services,Secondary Schools,PFI Hldg Account-Mulberry Scho,Payments to Private Contractors - Other Contractors,22/09/2017,3934392,349.05,D4E Mulberry LTD
Childrens Services,Children's Social Care,Support Service and Management Costs,Welfare Catering,Kitchen Supplies - Food and Beverages,22/09/2017,3937689,410.65,William White Meats Ltd
Childrens Services,Education Services,Other Strategic Functions,Parental Engagement,Computing - Maint Agreements - Maintenance,22/09/2017,3940419,"2,199.00",Software Add ons Ltd
Childrens Services,Children's Social Care,Children Looked After,S23-Resi-P&V/OLA-Child Respite,Childrens Act Section 23 - Placement Fee,22/09/2017,3940586,"3,780.00",QALB Centre Short Break Services
Childrens Services,Cultural and Related Services,Open Spaces,Mile End Park,Services - Professional Fees - Security Fees,22/09/2017,3942548,323.84,A P Security (North) LTD
Childrens Services,Education Services,Primary Schools,Primary Schools Development,Management & Admin Salaries - Pay & Oncost,22/09/2017,3942614,342.00,REDACTED SECTION 40 FOI ACT
Childrens Services,Children's Social Care,Children Looked After,S23 Fam Pl P&V-F/Care,Childrens Act Section 23 - Non-Contact Trans/Travel Costs,22/09/2017,3942632,814.00,AQUACARS LTD
Childrens Services,Children's Social Care,Children Looked After,Enrichment Projects,Recreational Activities,22/09/2017,3942743,"3,000.00",Roy Leighton Ltd
Childrens Services,Children's Social Care,Family Support Services,Eva Armsby Family Centre,Services - Professional Fees - Legal Fees/Expenses,22/09/2017,3942778,"2,167.98",INSPIREAMILLION LIMITED
Childrens Services,Children's Social Care,Family Support Services,Eva Armsby Family Centre,Services - Professional Fees - Legal Fees/Expenses,22/09/2017,3942779,"3,007.05",INSPIREAMILLION LIMITED
Childrens Services,Education Services,Other Strategic Functions,Central Pupil Database Project,Computing - Purchase of Software,22/09/2017,3943420,"5,850.00",Serverlec Synergy Ltd
Childrens Services,Children's Social Care,Other Children's and Family Services,Permanancy and Adoption Support Team 1,Non Staff Transport Costs - Reimbursement,22/09/2017,3943491,252.00,Mile End Car Hire Limited
Childrens Services,Education Services,Early Years,SSEYCG Two Year Old Pilot,Third Party Payments - Voluntary Associations,22/09/2017,3943565,"3,780.00",ABERTOTS PLAY
Childrens Services,Education Services,Early Years,SSEYCG Two Year Old Pilot,Third Party Payments - Voluntary Associations,22/09/2017,3943566,"8,640.00",Allen Gardens Playgroup
Childrens Services,Education Services,Early Years,SSEYCG Two Year Old Pilot,Third Party Payments - Voluntary Associations,22/09/2017,3943567,"11,610.00",Avebury Playgroup
Childrens Services,Education Services,Early Years,SSEYCG Two Year Old Pilot,Third Party Payments - Voluntary Associations,22/09/2017,3943568,"2,401.20",Barkantine Community Nursery
Childrens Services,Education Services,Early Years,SSEYCG Two Year Old Pilot,Third Party Payments - Voluntary Associations,22/09/2017,3943569,"22,320.40",Barnardo's
Childrens Services,Education Services,Early Years,SSEYCG Two Year Old Pilot,Third Party Payments - Voluntary Associations,22/09/2017,3943570,"7,204.00",BRAYFORD SQUARE PLAYGROUP
Childrens Services,Education Services,Early Years,SSEYCG Two Year Old Pilot,Third Party Payments - Voluntary Associations,22/09/2017,3943571,"7,020.00",Burdett Estate playgroup
Childrens Services,Education Services,Early Years,SSEYCG Two Year Old Pilot,Third Party Payments - Voluntary Associations,22/09/2017,3943572,"6,795.00",Calvary Charismatic Baptist Church
Childrens Services,Education Services,Early Years,SSEYCG Two Year Old Pilot,Third Party Payments - Voluntary Associations,22/09/2017,3943573,"1,140.30",SOMALI INTEGRATION TEAM
Childrens Services,Education Services,Early Years,SSEYCG Two Year Old Pilot,Third Party Payments - Voluntary Associations,22/09/2017,3943574,"16,200.00",DATE PALM PRIMARY
Childrens Services,Education Services,Early Years,SSEYCG Two Year Old Pilot,Third Party Payments - Voluntary Associations,22/09/2017,3943575,"3,239.60",Dreammaker Day Nursery
Childrens Services,Education Services,Early Years,SSEYCG Two Year Old Pilot,Third Party Payments - Voluntary Associations,22/09/2017,3943576,"3,240.00",EXCELLENCE CHRISTIAN SCHOOL
Childrens Services,Education Services,Early Years,SSEYCG Two Year Old Pilot,Third Party Payments - Voluntary Associations,22/09/2017,3943577,"1,375.69",Fairies and  Elves
Childrens Services,Education Services,Early Years,SSEYCG Two Year Old Pilot,Third Party Payments - Voluntary Associations,22/09/2017,3943578,"10,627.75",CITY GATEWAY
Childrens Services,Education Services,Early Years,SSEYCG Two Year Old Pilot,Third Party Payments - Voluntary Associations,22/09/2017,3943579,"27,225.00",GLOBAL KIDS DAY CARE
Childrens Services,Education Services,Early Years,SSEYCG Two Year Old Pilot,Third Party Payments - Voluntary Associations,22/09/2017,3943580,"15,795.00",Account 3 Ltd
Childrens Services,Education Services,Early Years,SSEYCG Two Year Old Pilot,Third Party Payments - Voluntary Associations,22/09/2017,3943581,"15,030.00",Headstart Nursery
Childrens Services,Education Services,Early Years,SSEYCG Two Year Old Pilot,Third Party Payments - Voluntary Associations,22/09/2017,3943582,"5,939.80",Incy Wincy Stars Childcare Ltd
Childrens Services,Education Services,Early Years,SSEYCG Two Year Old Pilot,Third Party Payments - Voluntary Associations,22/09/2017,3943583,"10,710.00",Iqra Pre School
Childrens Services,Education Services,Early Years,SSEYCG Two Year Old Pilot,Third Party Payments - Voluntary Associations,22/09/2017,3943584,859.50,ISLAND HOUSE PRE SCHOOL PLAYGROUP
Childrens Services,Education Services,Early Years,SSEYCG Two Year Old Pilot,Third Party Payments - Voluntary Associations,22/09/2017,3943585,"9,095.16",Jingle Jungle Nursery
Childrens Services,Education Services,Early Years,SSEYCG Two Year Old Pilot,Third Party Payments - Voluntary Associations,22/09/2017,3943586,"18,360.00",Rainbow House
Childrens Services,Education Services,Early Years,SSEYCG Two Year Old Pilot,Third Party Payments - Voluntary Associations,22/09/2017,3943587,"6,705.00",Kids Kingdom Nursery
Childrens Services,Education Services,Early Years,SSEYCG Two Year Old Pilot,Third Party Payments - Voluntary Associations,22/09/2017,3943588,"11,024.65",Limehouse Arches Day Nursery
Childrens Services,Education Services,Early Years,SSEYCG Two Year Old Pilot,Third Party Payments - Voluntary Associations,22/09/2017,3943589,"13,455.00",Lincoln Hall Playgroup
Childrens Services,Education Services,Early Years,SSEYCG Two Year Old Pilot,Third Party Payments - Voluntary Associations,22/09/2017,3943590,"2,700.00",MAGIC ROUNDABOUT NURSERIES LTD
Childrens Services,Education Services,Early Years,SSEYCG Two Year Old Pilot,Third Party Payments - Voluntary Associations,22/09/2017,3943591,"13,320.00",Matchbox Day Nursery Ltd
Childrens Services,Education Services,Early Years,SSEYCG Two Year Old Pilot,Third Party Payments - Voluntary Associations,22/09/2017,3943592,540.00,Matilda Community Day Nursery
Childrens Services,Education Services,Early Years,SSEYCG Two Year Old Pilot,Third Party Payments - Voluntary Associations,22/09/2017,3943593,"7,605.00",MILE END NURSERY
Childrens Services,Education Services,Early Years,SSEYCG Two Year Old Pilot,Third Party Payments - Voluntary Associations,22/09/2017,3943594,"8,640.00",Munchkins Playgroup
Childrens Services,Education Services,Early Years,SSEYCG Two Year Old Pilot,Third Party Payments - Voluntary Associations,22/09/2017,3943595,"3,240.00",New Birth Day Nursery
Childrens Services,Education Services,Early Years,SSEYCG Two Year Old Pilot,Third Party Payments - Voluntary Associations,22/09/2017,3943596,"1,400.70",New Generation Nursery
Childrens Services,Education Services,Early Years,SSEYCG Two Year Old Pilot,Third Party Payments - Voluntary Associations,22/09/2017,3943597,"2,901.45",London Early Years Foundation
Childrens Services,Education Services,Early Years,SSEYCG Two Year Old Pilot,Third Party Payments - Voluntary Associations,22/09/2017,3943598,"1,620.00",Pepe & Friends Ltd
Childrens Services,Education Services,Early Years,SSEYCG Two Year Old Pilot,Third Party Payments - Voluntary Associations,22/09/2017,3943599,"3,960.00",Poplar Play Centre
Childrens Services,Education Services,Early Years,SSEYCG Two Year Old Pilot,Third Party Payments - Voluntary Associations,22/09/2017,3943600,"4,502.00",Precious Kids Day Nursery LTD
Childrens Services,Education Services,Early Years,SSEYCG Two Year Old Pilot,Third Party Payments - Voluntary Associations,22/09/2017,3943601,"5,227.62",RANWELL PLAYGROUP
Childrens Services,Education Services,Early Years,SSEYCG Two Year Old Pilot,Third Party Payments - Voluntary Associations,22/09/2017,3943602,"1,620.00",Scallywags Playgroup
Childrens Services,Education Services,Early Years,SSEYCG Two Year Old Pilot,Third Party Payments - Voluntary Associations,22/09/2017,3943603,"3,149.80",Shining Futures Nursery
Childrens Services,Education Services,Early Years,SSEYCG Two Year Old Pilot,Third Party Payments - Voluntary Associations,22/09/2017,3943604,"1,088.93",CATHOLIC CHILDREN'S SOCIETY(WESTMINSTER)
Childrens Services,Education Services,Early Years,SSEYCG Two Year Old Pilot,Third Party Payments - Voluntary Associations,22/09/2017,3943605,"2,101.18",Step By Step Nursery
Childrens Services,Education Services,Early Years,SSEYCG Two Year Old Pilot,Third Party Payments - Voluntary Associations,22/09/2017,3943606,"8,213.55",TATE HOUSE PLAYGROUP
Childrens Services,Education Services,Early Years,SSEYCG Two Year Old Pilot,Third Party Payments - Voluntary Associations,22/09/2017,3943607,275.14,SELECTIVE LEARNING
Childrens Services,Education Services,Early Years,SSEYCG Two Year Old Pilot,Third Party Payments - Voluntary Associations,22/09/2017,3943608,"7,560.00",Tower Hamlets College
Childrens Services,Education Services,Early Years,SSEYCG Two Year Old Pilot,Third Party Payments - Voluntary Associations,22/09/2017,3943609,"4,095.00",Tower Hamlets Opportunity Group
Childrens Services,Education Services,Early Years,SSEYCG Two Year Old Pilot,Third Party Payments - Voluntary Associations,22/09/2017,3943610,"12,420.00",VERNON PLAYGROUP
Childrens Services,Education Services,Early Years,SSEYCG Two Year Old Pilot,Third Party Payments - Voluntary Associations,22/09/2017,3943611,"3,420.00",WAPPING PLAYGROUP
Childrens Services,Cultural and Related Services,Open Spaces,Mile End Park,Water Services - Metered,22/09/2017,3943720,"1,275.08",CASTLE WATER
Childrens Services,Children's Social Care,Children Looked After,S23 Fam Pl P&V-F/Care,Childrens Act Section 23 - Placement Fee,22/09/2017,3944299,402.85,Sunbeam Fostering Agency Ltd
Childrens Services,Education Services,Services to Young People and Other Community Learners,Further and Higher Education,Education Trust - Grant,22/09/2017,3944368,594.00,Kaplan Financial
Childrens Services,Children's Social Care,Children Looked After,Virtual School PPG,Agency Staff - Associations,22/09/2017,3944390,575.38,Academics ltd
Childrens Services,Education Services,Other Strategic Functions,Empty Properties,Repairs and Maintenance - Responsive - Repair & Maintenance,25/09/2017,3924819,"11,160.00",Manpower Direct UK
Childrens Services,Children's Social Care,Services for young people,Youth Service Management,Stationery,25/09/2017,3930318,838.43,Office Depot (Catalogue)
Childrens Services,Children's Social Care,Support Service and Management Costs,Welfare Catering,Kitchen Supplies - Food and Beverages,25/09/2017,3930396,390.79,Thomas Ridley & Son Ltd
Childrens Services,Children's Social Care,Children Looked After,S23 Fam Pl P&V-F/Care,Childrens Act Section 23 - All Contact Expenses,25/09/2017,3930407,307.20,Limehouse Children Contact Centre LTD
Childrens Services,Children's Social Care,Support Service and Management Costs,"Mulberry Caf�		",Kitchen Supplies - Food and Beverages,25/09/2017,3931660,356.16,Jones Brothers
Childrens Services,Children's Social Care,Support Service and Management Costs,Welfare Catering,Kitchen Supplies - Food and Beverages,25/09/2017,3931662,736.28,Jones Brothers
Childrens Services,Education Services,Early Years,Early Years Health Project,Social Care - Nursing Care,25/09/2017,3932086,370.00,NHS SUPPLY CHAIN
Childrens Services,Cultural and Related Services,Open Spaces,Victoria Park,Events & Exhibition Supplies,25/09/2017,3932208,"1,700.00",Mannings Fairview Co Ltd
Childrens Services,Children's Social Care,Services for young people,LAPS 1 - 8,Educational/Training Supplies - Curriculum Visits/Activities,25/09/2017,3934280,"1,120.83",AVON TYRRELL YOUTH CLUBS UK
Childrens Services,Cultural and Related Services,Recreation & Sport,Sports Development,Third Party Payments - Voluntary Associations,25/09/2017,3937667,"6,000.00",London Sport Ltd
Childrens Services,Children's Social Care,Children Looked After,Fostering and Development Team 1,Training Expenses - Staff External Training (UK Based),25/09/2017,3940495,"1,500.00",Jackie Harrop Ltd
Childrens Services,Children's Social Care,Children Looked After,S23-Resi-P&V/OLA-Child Respite,Childrens Act Section 23 - Placement Fee,25/09/2017,3940592,"3,780.00",QALB Centre Short Break Services
Childrens Services,Children's Social Care,Children Looked After,Special G/Ship Allowances,Social Care - Adoption Allowance,25/09/2017,3942773,290.00,LBTH - Children Looked After
Childrens Services,Education Services,Other Strategic Functions,Special Education Needs DSG,Third Party Payments - Payments to Schools,25/09/2017,3943483,"8,178.15",Cambian Autism Services Ltd
Childrens Services,Children's Social Care,Children Looked After,S23-Resi-P&V/OLA-Boarding Sch,Childrens Act Section 23 - Placement Fee,25/09/2017,3943483,"8,178.15",Cambian Autism Services Ltd
Childrens Services,Education Services,Other Strategic Functions,Special Education Needs DSG,Third Party Payments - Payments to Schools,25/09/2017,3943522,"2,880.60",Cambian Autism Services Ltd
Childrens Services,Children's Social Care,Children Looked After,S23-Resi-P&V/OLA-Boarding Sch,Childrens Act Section 23 - Placement Fee,25/09/2017,3943522,"2,880.60",Cambian Autism Services Ltd
Childrens Services,Children's Social Care,Youth Justice,Youth Justice Team,Services - Professional Fees - Translation Fees,27/09/2017,3927495,339.00,Oncall Interpreters LTD
Childrens Services,Children's Social Care,Support Service and Management Costs,Welfare Catering,Kitchen Supplies - Food and Beverages,27/09/2017,3930772,856.98,Thomas Ridley & Son Ltd
Childrens Services,Cultural and Related Services,Recreation & Sport,Mayors Cup,Events & Exhibition Supplies,27/09/2017,3931571,"1,150.00",Rehan Jamil Photography
Childrens Services,Children's Social Care,Family Support Services,Tackling Troubled Families,Computing - Purchase of Software,27/09/2017,3931604,"1,898.00",Agilisys Professional Services
Childrens Services,Children's Social Care,Services for young people,Outdoor,Materials - Cleaning Materials,27/09/2017,3931631,420.29,The Maintenance Supply Co Ltd
Childrens Services,Children's Social Care,Support Service and Management Costs,Schools Catering,Kitchen Supplies - Food and Beverages,27/09/2017,3931651,421.39,Thomas Ridley & Son Ltd
Childrens Services,Children's Social Care,Support Service and Management Costs,Welfare Catering,Kitchen Supplies - Food and Beverages,27/09/2017,3931653,570.04,Thomas Ridley & Son Ltd
Childrens Services,Children's Social Care,Support Service and Management Costs,Welfare Catering,Kitchen Supplies - Food and Beverages,27/09/2017,3932407,432.35,William White Meats Ltd
Childrens Services,Cultural and Related Services,Recreation & Sport,Summer Time Out Recreation,Recreational Activities,27/09/2017,3932915,995.00,Community Link Trading Ltd
Childrens Services,Children's Social Care,Support Service and Management Costs,Schools Catering,Third Party Payments - Other Agencies,27/09/2017,3933853,"3,379.26",Barts Health NHS Trust
Childrens Services,Children's Social Care,Support Service and Management Costs,Professional Dev Centre,Computing - Purchase of Software,27/09/2017,3933882,"1,295.00",RM Education PLC
Childrens Services,Children's Social Care,Support Service and Management Costs,Schools Catering,Third Party Payments - Other Agencies,27/09/2017,3933902,413.76,Barts Health NHS Trust
Childrens Services,Children's Social Care,Children Looked After,Virtual School PPG,Agency Staff - Associations,27/09/2017,3937763,920.60,Academics ltd
Childrens Services,Education Services,Other Strategic Functions,Project Costs and Training,Computing - Purchase of Software,27/09/2017,3938864,295.00,Parago Software LTD
Childrens Services,Children's Social Care,Children's and Young People's Safety,Child Protect Reviewing Serv.,Computing - Purchase of Software,27/09/2017,3938886,"2,020.74",Specialist Computer Centres PLC
Childrens Services,Children's Social Care,Children Looked After,S23-Other-Semi-Ind. Unit,Childrens Act Section 23 - Placement Fee,27/09/2017,3939792,"5,180.00",Youth reality homes
Childrens Services,Children's Social Care,Children Looked After,S23-Other-Semi-Ind. Unit,Childrens Act Section 23 - Placement Fee,27/09/2017,3939793,"5,000.00",Youth reality homes
Childrens Services,Children's Social Care,Support Service and Management Costs,Building Cleaning,Contract Cleaning,27/09/2017,3940434,595.00,ACL Cleaning
Childrens Services,Education Services,Secondary Schools,PFI Hldg Account-Mulberry Scho,Payments to Private Contractors - Other Contractors,27/09/2017,3940466,"189,535.70",D4E Mulberry LTD
Childrens Services,Cultural and Related Services,Culture & Heritage,Brady Arts Centre,Refuse Collection,27/09/2017,3940760,250.00,VEOLIA ENVIRONMENTAL SERVICES PLC
Childrens Services,Cultural and Related Services,Open Spaces,Parks & Open Spaces Man&Admin,Repairs and Maintenance - Programmed - Environmental Services Fees,27/09/2017,3942521,"2,877.00",Keep Britain Tidy
Childrens Services,Education Services,Other Strategic Functions,CS Prem Retirement (Non-School,Services - Professional Fees - Financial Services Fees,27/09/2017,3942549,"21,772.54",London Pensions Fund Authority
Childrens Services,Education Services,Other Strategic Functions,Humanities Library,Third Party Payments - Other Establishments,27/09/2017,3942780,700.00,Khiyo
Childrens Services,Children's Social Care,Children Looked After,Virtual School PPG,Agency Staff - Associations,27/09/2017,3944326,460.30,Academics ltd
Childrens Services,Children's Social Care,Children Looked After,Virtual School PPG,Agency Staff - Associations,27/09/2017,3944327,690.45,Academics ltd
Childrens Services,Children's Social Care,Children Looked After,Virtual School PPG,Agency Staff - Associations,27/09/2017,3944328,"1,150.75",Academics ltd
Childrens Services,Children's Social Care,Children Looked After,Virtual School PPG,Agency Staff - Associations,27/09/2017,3944388,460.30,Academics ltd
Childrens Services,Children's Social Care,Children Looked After,Virtual School PPG,Agency Staff - Associations,27/09/2017,3944389,920.60,Academics ltd
Childrens Services,No Service Specified,No Division Specified,Capital-Minor Works (SC),Other External Fees - Other External Fees,27/09/2017,3944534,"12,198.00",Tower Hamlets Schools LTD
Childrens Services,Education Services,Other Strategic Functions,Auxilary Aids,Training Expenses - Staff External Training (UK Based),27/09/2017,3944536,418.00,Ewing Foundation
Childrens Services,Education Services,Other Strategic Functions,Auxilary Aids,Training Expenses - Staff External Training (UK Based),27/09/2017,3944537,416.00,Ewing Foundation
Childrens Services,Education Services,Other Strategic Functions,Auxilary Aids,Training Expenses - Staff External Training (UK Based),27/09/2017,3944538,414.40,Ewing Foundation
Childrens Services,Children's Social Care,Children Looked After,S23 Fam Pl P&V-F/Care,Childrens Act Section 23 - Placement Fee,27/09/2017,3944592,"6,554.64",Synergy Fostering Ltd
Childrens Services,Children's Social Care,Children Looked After,S23 Family Placements P&V,Childrens Act Section 23 - Retainer,27/09/2017,3944593,"2,114.43",Synergy Fostering Ltd
Childrens Services,Children's Social Care,Family Support Services,CNN Pool: Joint Family Support,Childrens Act Section 17 - Respite Care,27/09/2017,3944605,297.90,QALB Centre Short Break Services
Childrens Services,Children's Social Care,Children Looked After,S23 Fam Pl P&V-F/Care,Childrens Act Section 23 - Placement Fee,27/09/2017,3945654,784.00,Swiis Foster Care Limited
Childrens Services,Education Services,Early Years,Early Years-Qaulity Assurance Teachers,Comms - Courier,27/09/2017,3945704,"1,325.00",Figurehead Studios
Childrens Services,Children's Social Care,Children Looked After,S23 Fam Pl P&V-F/Care,Childrens Act Section 23 - Placement Fee,27/09/2017,3945771,784.00,Swiis Foster Care Limited
Childrens Services,Children's Social Care,Children Looked After,S23 Fam Pl P&V-F/Care,Childrens Act Section 23 - Placement Fee,27/09/2017,3945810,784.00,Swiis Foster Care Limited
Childrens Services,Children's Social Care,Children Looked After,S23 Fam Pl P&V-F/Care,Childrens Act Section 23 - Placement Fee,27/09/2017,3945828,784.00,Swiis Foster Care Limited
Childrens Services,Children's Social Care,Children Looked After,S23 Fam Pl P&V-F/Care,Childrens Act Section 23 - Placement Fee,27/09/2017,3945837,784.00,Swiis Foster Care Limited
Childrens Services,Children's Social Care,Children Looked After,S23 Fam Pl P&V-F/Care,Childrens Act Section 23 - Placement Fee,27/09/2017,3945846,784.00,Swiis Foster Care Limited
Childrens Services,Children's Social Care,Children Looked After,S23 Fam Pl P&V-F/Care,Childrens Act Section 23 - Placement Fee,27/09/2017,3945851,784.00,Swiis Foster Care Limited
Childrens Services,Children's Social Care,Children Looked After,S23 Fam Pl P&V-F/Care,Childrens Act Section 23 - Placement Fee,27/09/2017,3945856,784.00,Swiis Foster Care Limited
Childrens Services,Children's Social Care,Children Looked After,S23 Fam Pl P&V-F/Care,Childrens Act Section 23 - Placement Fee,27/09/2017,3945861,784.00,Swiis Foster Care Limited
Childrens Services,Children's Social Care,Children Looked After,S23 Fam Pl P&V-F/Care,Childrens Act Section 23 - Placement Fee,27/09/2017,3945866,784.00,Swiis Foster Care Limited
Childrens Services,Children's Social Care,Children Looked After,S23 Fam Pl P&V-F/Care,Childrens Act Section 23 - Placement Fee,27/09/2017,3945871,784.00,Swiis Foster Care Limited
Childrens Services,Children's Social Care,Children Looked After,S23 Fam Pl P&V-F/Care,Childrens Act Section 23 - Placement Fee,27/09/2017,3945876,784.00,Swiis Foster Care Limited
Childrens Services,Children's Social Care,Children Looked After,S23 Fam Pl P&V-F/Care,Childrens Act Section 23 - Placement Fee,27/09/2017,3945881,784.00,Swiis Foster Care Limited
Childrens Services,Children's Social Care,Children Looked After,S23 Fam Pl P&V-F/Care,Childrens Act Section 23 - Placement Fee,27/09/2017,3945886,784.00,Swiis Foster Care Limited
Childrens Services,Children's Social Care,Children Looked After,S23 Fam Pl P&V-F/Care,Childrens Act Section 23 - Placement Fee,27/09/2017,3945891,784.00,Swiis Foster Care Limited
Childrens Services,Children's Social Care,Children Looked After,S23 Fam Pl P&V-F/Care,Childrens Act Section 23 - Placement Fee,27/09/2017,3945896,784.00,Swiis Foster Care Limited
Childrens Services,Children's Social Care,Children Looked After,S23 Fam Pl P&V-F/Care,Childrens Act Section 23 - Placement Fee,27/09/2017,3945901,784.00,Swiis Foster Care Limited
Childrens Services,Children's Social Care,Children Looked After,S23 Fam Pl P&V-F/Care,Childrens Act Section 23 - Placement Fee,27/09/2017,3945905,784.00,Swiis Foster Care Limited
Childrens Services,Children's Social Care,Children Looked After,S23 Fam Pl P&V-F/Care,Childrens Act Section 23 - Placement Fee,27/09/2017,3945909,784.00,Swiis Foster Care Limited
Childrens Services,Children's Social Care,Children Looked After,S23 Fam Pl P&V-F/Care,Childrens Act Section 23 - Placement Fee,27/09/2017,3945913,784.00,Swiis Foster Care Limited
Childrens Services,Children's Social Care,Children Looked After,S23 Fam Pl P&V-F/Care,Childrens Act Section 23 - Placement Fee,27/09/2017,3945917,784.00,Swiis Foster Care Limited
Childrens Services,Education Services,Early Years,3&4 Year old PVI�s,Third Party Payments - Voluntary Associations,27/09/2017,3946013,"17,902.50",GLOBAL KIDS DAY CARE
Childrens Services,Children's Social Care,Children Looked After,S23 Fam Pl In-Hse-Placed Home,Childrens Act Section 23 - All Contact Expenses,27/09/2017,3946742,332.00,Limehouse Children Contact Centre LTD
Childrens Services,Children's Social Care,Family Support Services,Tackling Troubled Families,Computing - Purchase of Software,29/09/2017,3917285,"17,887.00",Agilisys Professional Services
Childrens Services,Cultural and Related Services,Recreation & Sport,"Poplar Baths		",Payments to Private Contractors - Other Contractors,29/09/2017,3924349,"128,715.37",Folera Ltd
Childrens Services,Children's Social Care,Youth Justice,Partnerships,Computing - Purchase of Hardware,29/09/2017,3924811,597.00,Ignite Service Provider Ltd
Childrens Services,Children's Social Care,Family Support Services,Tackling Troubled Families,Computing - Purchase of Software,29/09/2017,3926153,"1,241.00",Agilisys Professional Services
Childrens Services,Education Services,Other Strategic Functions,Special Education Needs DSG,Third Party Payments - Payments to Schools,29/09/2017,3927215,"36,975.50",The Sheiling Special Education Trust
Childrens Services,Children's Social Care,Children Looked After,S23-Resi-P&V/OLA-Boarding Sch,Childrens Act Section 23 - Placement Fee,29/09/2017,3927215,"36,975.50",The Sheiling Special Education Trust
Childrens Services,Children's Social Care,Children Looked After,S23 Fam Pl In-Hse-S/Term F/C,Childrens Act Section 23 - Interpreting/Translation,29/09/2017,3927484,467.50,Oncall Interpreters LTD
Childrens Services,Education Services,Other Strategic Functions,Special Education Needs DSG,Third Party Payments - Payments to Schools,29/09/2017,3930731,"-36,975.50",The Sheiling Special Education Trust
Childrens Services,Children's Social Care,Children Looked After,S23-Resi-P&V/OLA-Boarding Sch,Childrens Act Section 23 - Placement Fee,29/09/2017,3930731,"-36,975.50",The Sheiling Special Education Trust
Childrens Services,Education Services,Other Strategic Functions,Special Education Needs DSG,Third Party Payments - Payments to Schools,29/09/2017,3930880,"32,193.50",The Sheiling Special Education Trust
Childrens Services,Children's Social Care,Children Looked After,S23-Resi-P&V/OLA-Boarding Sch,Childrens Act Section 23 - Placement Fee,29/09/2017,3930880,"32,193.50",The Sheiling Special Education Trust
Childrens Services,Children's Social Care,Children Looked After,S23-Other-Semi-Ind. Unit,Childrens Act Section 23 - Placement Fee,29/09/2017,3931679,"3,985.71",Alpha Care Service Ltd
Childrens Services,Children's Social Care,Children Looked After,S23-Other-Semi-Ind. Unit,Childrens Act Section 23 - Placement Fee,29/09/2017,3931683,"3,985.71",Alpha Care Service Ltd
Childrens Services,Children's Social Care,Children Looked After,S23-Other-Semi-Ind. Unit,Childrens Act Section 23 - Placement Fee,29/09/2017,3931686,"3,985.71",Alpha Care Service Ltd
Childrens Services,Children's Social Care,Services for young people,Outdoor,Stationery,29/09/2017,3931888,387.22,Office Depot (Catalogue)
Childrens Services,Children's Social Care,Support Service and Management Costs,Sch. Meals A/c - Central Production Unit,Kitchen Supplies - Food and Beverages,29/09/2017,3931917,536.58,Thomas Ridley & Son Ltd
Childrens Services,Children's Social Care,Support Service and Management Costs,Toby Lane Function,Kitchen Supplies - Food and Beverages,29/09/2017,3931918,265.36,Thomas Ridley & Son Ltd
Childrens Services,Children's Social Care,Support Service and Management Costs,Schools Catering,Kitchen Supplies - Food and Beverages,29/09/2017,3931919,477.90,Thomas Ridley & Son Ltd
Childrens Services,Children's Social Care,Children Looked After,S23 Fam Pl P&V-F/Care,Childrens Act Section 23 - Placement Fee,29/09/2017,3931930,"3,410.00",Fostering People Too
Childrens Services,Children's Social Care,Youth Justice,Youth Justice Team,Services - Professional Fees - Partnership Arrangement,29/09/2017,3931955,573.75,The Appropriate Adult Service Ltd
Childrens Services,Children's Social Care,Support Service and Management Costs,Schools Catering,Kitchen Supplies - Food and Beverages,29/09/2017,3931958,374.43,Thomas Ridley & Son Ltd
Childrens Services,Education Services,Other Strategic Functions,Central Pupil Database Project,Computing - Apportionment of Costs,29/09/2017,3931999,"4,459.00",Agilisys Professional Services
Childrens Services,Children's Social Care,Support Service and Management Costs,Childrens Services IT Trading,Computing - Apportionment of Costs,29/09/2017,3932000,"3,795.00",Agilisys Professional Services
Childrens Services,Children's Social Care,Support Service and Management Costs,Childrens Services IT Trading,Computing - Apportionment of Costs,29/09/2017,3932002,"4,692.00",Agilisys Professional Services
Childrens Services,Children's Social Care,Support Service and Management Costs,Childrens Services IT Trading,Computing - Apportionment of Costs,29/09/2017,3932003,"6,190.00",Agilisys Professional Services
Childrens Services,Children's Social Care,Family Support Services,Tackling Troubled Families,Agency Staff - Consultants Fees,29/09/2017,3932004,"6,689.00",Agilisys Professional Services
Childrens Services,Children's Social Care,Children Looked After,S23 Fam Pl P&V-F/Care,Childrens Act Section 23 - Placement Fee,29/09/2017,3932017,"3,000.00",Futures for Children Ltd
Childrens Services,Children's Social Care,Children Looked After,S23 Fam Pl P&V-F/Care,Childrens Act Section 23 - Placement Fee,29/09/2017,3932018,"3,248.70",Futures for Children Ltd
Childrens Services,Children's Social Care,Support Service and Management Costs,Swanlea,Kitchen Supplies - Food and Beverages,29/09/2017,3932031,289.45,Prescott-Thomas LTD.
Childrens Services,Cultural and Related Services,Open Spaces,Mile End Park,Repairs and Maintenance - Responsive - Buildings,29/09/2017,3932060,"2,180.00",Broxap Ltd
Childrens Services,Children's Social Care,Children Looked After,S23 Fam Pl P&V-F/Care,Childrens Act Section 23 - Placement Fee,29/09/2017,3932089,"3,000.00",Futures for Children Ltd
Childrens Services,Children's Social Care,Children Looked After,S23 Fam Pl P&V-F/Care,Childrens Act Section 23 - Placement Fee,29/09/2017,3932099,"3,000.00",Futures for Children Ltd
Childrens Services,Children's Social Care,Support Service and Management Costs,Welfare Catering,Kitchen Supplies - Food and Beverages,29/09/2017,3932101,460.05,Raj Foods LTD
Childrens Services,Children's Social Care,Children Looked After,S23 Fam Pl P&V-F/Care,Childrens Act Section 23 - Placement Fee,29/09/2017,3932105,"3,192.90",Futures for Children Ltd
Childrens Services,Children's Social Care,Support Service and Management Costs,Welfare Catering,Kitchen Supplies - Food and Beverages,29/09/2017,3932107,891.28,Raj Foods LTD
Childrens Services,Children's Social Care,Service Strategy,Children's Placement Team,Agency Staff - Financial Services Fees,29/09/2017,3932216,300.00,Joylon Morris Associates
Childrens Services,Children's Social Care,Children Looked After,S23 Fam Pl P&V-F/Care,Childrens Act Section 23 - Placement Fee,29/09/2017,3932221,"5,232.60",Diverse Care (UK) Limited
Childrens Services,Children's Social Care,Children Looked After,S23 Fam Pl P&V-F/Care,Childrens Act Section 23 - Placement Fee,29/09/2017,3932231,"3,885.54",Family Fostering
Childrens Services,Children's Social Care,Family Support Services,CNN Pool: Joint Family Support,Childrens Act Section 23 - All Contact Expenses,29/09/2017,3932265,325.00,Limehouse Children Contact Centre LTD
Childrens Services,Children's Social Care,Service Strategy,FS&P - NRPF,Social Care - Day Care,29/09/2017,3932267,307.00,Limehouse Children Contact Centre LTD
Childrens Services,Children's Social Care,Support Service and Management Costs,Swanlea,Kitchen Supplies - Food and Beverages,29/09/2017,3932279,544.42,William White Meats Ltd
Childrens Services,Children's Social Care,Support Service and Management Costs,Sch. Meals A/c - Central Production Unit,Kitchen Supplies - Food and Beverages,29/09/2017,3932281,863.74,William White Meats Ltd
Childrens Services,Children's Social Care,Support Service and Management Costs,Welfare Catering,Kitchen Supplies - Food and Beverages,29/09/2017,3932412,373.51,William White Meats Ltd
Childrens Services,Children's Social Care,Support Service and Management Costs,Welfare Catering,Kitchen Supplies - Food and Beverages,29/09/2017,3932416,534.81,William White Meats Ltd
Childrens Services,No Service Specified,No Division Specified,Capital-Minor Works (SC),Building Works - Main Works,29/09/2017,3932881,"311,569.53",Poplar HARCA LTD
Childrens Services,No Service Specified,No Division Specified,Capital-Minor Works (SC),Other External Fees - Consultants Fees,29/09/2017,3932910,"1,113.37",Frankham Consultancy Group LTD
Childrens Services,No Service Specified,No Division Specified,Capital-Minor Works (SC),Other External Fees - Consultants Fees,29/09/2017,3932911,742.25,Frankham Consultancy Group LTD
Childrens Services,Children's Social Care,Children Looked After,S23-Resi-P&V/OLA-Child Home,Childrens Act Section 23 - Placement Fee,29/09/2017,3933885,"21,428.70",Care 4 Children Residential Services Limited
Childrens Services,Children's Social Care,Children Looked After,S23-Resi-P&V/OLA-Sec Acc-Wel,Childrens Act Section 23 - Placement Fee,29/09/2017,3933886,"21,428.70",Care 4 Children Residential Services Limited
Childrens Services,Children's Social Care,Children Looked After,Staying Put,Childrens Act Section 23 - Placement Fee,29/09/2017,3934302,"1,780.29",Sunbeam Fostering Agency Ltd
Childrens Services,Children's Social Care,Children Looked After,S23 Fam Pl P&V-F/Care,Childrens Act Section 23 - Placement Fee,29/09/2017,3934303,"3,122.14",Sunbeam Fostering Agency Ltd
Childrens Services,Children's Social Care,Children Looked After,S23 Fam Pl P&V-F/Care,Childrens Act Section 23 - Placement Fee,29/09/2017,3934333,"5,101.67",National Fostering Agency
Childrens Services,Children's Social Care,Children Looked After,S23 Fam Pl P&V-F/Care,Childrens Act Section 23 - Placement Fee,29/09/2017,3934334,"3,255.00",National Fostering Agency
Childrens Services,Children's Social Care,Children Looked After,S23 Family Placements P&V,Childrens Act Section 23 - Placement Fee,29/09/2017,3934335,"3,350.79",National Fostering Agency
Childrens Services,Children's Social Care,Children Looked After,S23 Fam Pl P&V-F/Care,Childrens Act Section 23 - Placement Fee,29/09/2017,3934336,"1,448.59",National Fostering Agency
Childrens Services,Children's Social Care,Children Looked After,S23 Fam Pl P&V-F/Care,Childrens Act Section 23 - Placement Fee,29/09/2017,3934337,"3,343.66",National Fostering Agency
Childrens Services,Children's Social Care,Children Looked After,S23 Fam Pl P&V-F/Care,Childrens Act Section 23 - Placement Fee,29/09/2017,3934338,"3,454.33",National Fostering Agency
Childrens Services,Children's Social Care,Children Looked After,S23 Fam Pl P&V-F/Care,Childrens Act Section 23 - Placement Fee,29/09/2017,3937603,"5,402.70",Integrated Service Programme
Childrens Services,Children's Social Care,Children Looked After,S23 Fam Pl P&V-F/Care,Childrens Act Section 23 - Placement Fee,29/09/2017,3937604,"5,284.80",Integrated Service Programme
Childrens Services,Cultural and Related Services,Open Spaces,Victoria Park,Events & Exhibition Supplies,29/09/2017,3937630,"2,130.00",Community Link Trading Ltd
Childrens Services,No Service Specified,No Division Specified,Capital-Minor Works (SC),Building Works - Main Works,29/09/2017,3937638,"15,599.00",Carter Accomodation Ltd
Childrens Services,Children's Social Care,Children Looked After,S23-Resi-P&V/OLA-Child Home,Childrens Act Section 23 - Placement Fee,29/09/2017,3937640,"12,857.14",Area Camden LTD
Childrens Services,Cultural and Related Services,Open Spaces,Victoria Park,Events & Exhibition Supplies,29/09/2017,3937645,675.00,A1 Loo Hire
Childrens Services,Children's Social Care,Children Looked After,S23 Fam Pl P&V-F/Care,Childrens Act Section 23 - Placement Fee,29/09/2017,3937682,"3,000.00",Time For Children
Childrens Services,Children's Social Care,Children Looked After,S23 Fam Pl P&V-F/Care,Childrens Act Section 23 - Placement Fee,29/09/2017,3937683,"3,000.00",Time For Children
Childrens Services,Children's Social Care,Children Looked After,S23 Fam Pl P&V-F/Care,Childrens Act Section 23 - Placement Fee,29/09/2017,3937765,"3,000.00",Time For Children
Childrens Services,Children's Social Care,Children Looked After,S23 Fam Pl P&V-F/Care,Childrens Act Section 23 - Placement Fee,29/09/2017,3937779,"3,000.00",Time For Children
Childrens Services,Children's Social Care,Children Looked After,S23-Resi-P&V/OLA-Child Home,Childrens Act Section 23 - Placement Fee,29/09/2017,3937962,"11,935.00",Homes 2 Inspire
Childrens Services,Cultural and Related Services,Recreation & Sport,Summer Time Out Recreation,Recreational Activities,29/09/2017,3937977,-995.00,Community Link Trading Ltd
Childrens Services,Children's Social Care,Children Looked After,S23 Fam Pl P&V-F/Care,Childrens Act Section 23 - Placement Fee,29/09/2017,3938006,"3,150.00",Children First Fostering Agency LTD
Childrens Services,Children's Social Care,Children Looked After,S23 Fam Pl P&V-F/Care,Childrens Act Section 23 - Placement Fee,29/09/2017,3938007,"3,044.40",Children First Fostering Agency LTD
Childrens Services,Children's Social Care,Children Looked After,S23 Fam Pl P&V-F/Care,Childrens Act Section 23 - Placement Fee,29/09/2017,3938008,"3,071.40",Children First Fostering Agency LTD
Childrens Services,Children's Social Care,Children Looked After,S23-Resi-P&V/OLA-Child Home,Childrens Act Section 23 - Placement Fee,29/09/2017,3938060,"8,857.14",CARE Ltd
Childrens Services,Children's Social Care,Children Looked After,S23-Resi-P&V/OLA-Child Home,Childrens Act Section 23 - Placement Fee,29/09/2017,3938113,"11,957.01",Janailah Ltd
Childrens Services,Children's Social Care,Children Looked After,S23 Fam Pl P&V-F/Care,Childrens Act Section 23 - Placement Fee,29/09/2017,3938155,"3,044.40",Children First Fostering Agency LTD
Childrens Services,No Service Specified,No Division Specified,Capital-Minor Works (SC),Other External Fees - Other External Fees,29/09/2017,3938812,"7,665.00",Pollard Thomas & Edwards LTD
Childrens Services,No Service Specified,No Division Specified,Capital-Minor Works (SC),Other External Fees - Other External Fees,29/09/2017,3938813,"21,880.00",Pollard Thomas & Edwards LTD
Childrens Services,Children's Social Care,Children Looked After,S23-Other-Semi-Ind. Unit,Childrens Act Section 23 - Placement Fee,29/09/2017,3938896,"1,762.58",Pangea Support Services
Childrens Services,Children's Social Care,Children Looked After,S23-Other-Semi-Ind. Unit,Childrens Act Section 23 - Placement Fee,29/09/2017,3938907,"1,787.58",Pangea Support Services
Childrens Services,Children's Social Care,Children Looked After,S23-Other-Semi-Ind. Unit,Childrens Act Section 23 - Placement Fee,29/09/2017,3938909,"1,762.58",Pangea Support Services
Childrens Services,Children's Social Care,Children Looked After,S23-Other-Semi-Ind. Unit,Childrens Act Section 23 - Placement Fee,29/09/2017,3938911,302.00,Pangea Support Services
Childrens Services,Children's Social Care,Children Looked After,S23-Other-Semi-Ind. Unit,Childrens Act Section 23 - Placement Fee,29/09/2017,3938957,"1,762.58",Pangea Support Services
Childrens Services,Children's Social Care,Children Looked After,S23-Other-Semi-Ind. Unit,Childrens Act Section 23 - Placement Fee,29/09/2017,3938961,"1,802.58",Pangea Support Services
Childrens Services,Children's Social Care,Children Looked After,S23-Other-Semi-Ind. Unit,Childrens Act Section 23 - Placement Fee,29/09/2017,3938965,"1,762.58",Pangea Support Services
Childrens Services,Children's Social Care,Children Looked After,S23-Other-Semi-Ind. Unit,Childrens Act Section 23 - Placement Fee,29/09/2017,3938971,"1,762.58",Pangea Support Services
Childrens Services,Children's Social Care,Children Looked After,S23-Other-Semi-Ind. Unit,Childrens Act Section 23 - Placement Fee,29/09/2017,3938972,"1,762.58",Pangea Support Services
Childrens Services,Children's Social Care,Children Looked After,S23-Other-Semi-Ind. Unit,Childrens Act Section 23 - Placement Fee,29/09/2017,3938973,"1,762.58",Pangea Support Services
Childrens Services,Children's Social Care,Children Looked After,S23-Other-Semi-Ind. Unit,Childrens Act Section 23 - Placement Fee,29/09/2017,3938974,"1,919.42",Pangea Support Services
Childrens Services,Children's Social Care,Children Looked After,S23-Other-Semi-Ind. Unit,Childrens Act Section 23 - Placement Fee,29/09/2017,3938976,"1,984.01",Pangea Support Services
Childrens Services,Children's Social Care,Children Looked After,S23-Other-Semi-Ind. Unit,Childrens Act Section 23 - Placement Fee,29/09/2017,3938982,"1,762.58",Pangea Support Services
Childrens Services,Children's Social Care,Children Looked After,S23 Fam Pl P&V-F/Care,Childrens Act Section 23 - Placement Fee,29/09/2017,3939705,"5,284.80",Integrated Service Programme
Childrens Services,Education Services,Other Strategic Functions,Special Education Needs DSG,Third Party Payments - Payments to Schools,29/09/2017,3939732,"39,423.83",Doncaster Deaf Trust
Childrens Services,Children's Social Care,Children Looked After,S23-Resi-P&V/OLA-Boarding Sch,Childrens Act Section 23 - Placement Fee,29/09/2017,3939732,"39,423.83",Doncaster Deaf Trust
Childrens Services,Children's Social Care,Children Looked After,S23 Fam Pl P&V-F/Care,Childrens Act Section 23 - Placement Fee,29/09/2017,3939753,"3,188.57",Sunbeam Fostering Agency Ltd
Childrens Services,Children's Social Care,Children Looked After,S23 Fam Pl P&V-F/Care,Childrens Act Section 23 - Placement Fee,29/09/2017,3939754,"2,328.86",Sunbeam Fostering Agency Ltd
Childrens Services,Children's Social Care,Children Looked After,S23-Resi-P&V/OLA-Child Home,Childrens Act Section 23 - Placement Fee,29/09/2017,3939796,"14,914.28",Kingdom Care Childrens Homes
Childrens Services,Children's Social Care,Children Looked After,S23 Fam Pl P&V-F/Care,Childrens Act Section 23 - Placement Fee,29/09/2017,3939848,"2,296.29",Sunbeam Fostering Agency Ltd
Childrens Services,Children's Social Care,Children Looked After,S23-Resi-P&V/OLA-Boarding Sch,Childrens Act Section 23 - Placement Fee,29/09/2017,3939864,"12,400.00",Janailah Ltd
Childrens Services,Education Services,Other Strategic Functions,SLS - SEN Training SLA,Educational/Training Supplies - Resources,29/09/2017,3940396,515.00,OCR
Childrens Services,Children's Social Care,Children Looked After,S23-Other-Semi-Ind. Unit,Childrens Act Section 23 - Placement Fee,29/09/2017,3940404,"4,032.00",holibrook Care Services Ltd
Childrens Services,Children's Social Care,Children Looked After,S23 Fam Pl P&V-F/Care,Childrens Act Section 23 - Placement Fee,29/09/2017,3940426,"3,286.00",Greater London Fostering LTD
Childrens Services,Children's Social Care,Children Looked After,S23 Fam Pl P&V-F/Care,Childrens Act Section 23 - Placement Fee,29/09/2017,3940427,"3,286.00",Greater London Fostering LTD
Childrens Services,Children's Social Care,Children Looked After,S23 Fam Pl P&V-F/Care,Childrens Act Section 23 - Placement Fee,29/09/2017,3940435,"3,122.14",Sunbeam Fostering Agency Ltd
Childrens Services,Children's Social Care,Family Support Services,CNN Pool: Joint Family Support,Stationery,29/09/2017,3940436,"1,477.50",Love2Reward
Childrens Services,Education Services,Secondary Schools,PFI Hldg Account-Mulberry Scho,Payments to Private Contractors - Other Contractors,29/09/2017,3940467,"8,474.39",D4E Mulberry LTD
Childrens Services,Cultural and Related Services,Open Spaces,Stepney Green,Grounds Maintenance - Contract - Horticultural Maintenance,29/09/2017,3940776,"1,103.15",VEOLIA ENVIRONMENTAL SERVICES PLC
Childrens Services,Children's Social Care,Children Looked After,S23 Family Placements P&V,Childrens Act Section 23 - Placement Fee,29/09/2017,3941066,"2,524.80",Kent Homefinding and Fostering
Childrens Services,Cultural and Related Services,Recreation & Sport,Football Development Programme,Recreational Activities,29/09/2017,3942551,833.34,Neils Sports Trophies
Childrens Services,Children's Social Care,Children Looked After,S23-Resi-P&V/OLA-Child Home,Childrens Act Section 23 - Placement Fee,29/09/2017,3943430,"9,000.00",holibrook Care Services Ltd
Childrens Services,Children's Social Care,Children Looked After,Virtual School PPG,Third Party Payments - Payments to Schools,29/09/2017,3943524,352.00,Fleet Tutors
Childrens Services,Children's Social Care,Children Looked After,Virtual School PPG,Agency Staff - Associations,29/09/2017,3944325,920.60,Academics ltd
Childrens Services,Children's Social Care,Service Strategy,89 CA Sec 17 Chld in Need WAPP,Childrens Act Section 17 - Other Childcare Support,29/09/2017,3944490,251.10,BETHNAL GREEN SOCIAL SERVICES
Childrens Services,Children's Social Care,Service Strategy,89 CA Sec 17 Chld in Need POPS,Childrens Act Section 17 - Housing Equipmt. Grants,29/09/2017,3944490,250.00,BETHNAL GREEN SOCIAL SERVICES
Childrens Services,Children's Social Care,Service Strategy,FS&P - NRPF,Childrens Act Section 17 - Other Childcare Support,29/09/2017,3944490,422.60,BETHNAL GREEN SOCIAL SERVICES
Childrens Services,Children's Social Care,Support Service and Management Costs,Sch. Meals A/c - Mulberry,Kitchen Supplies - Catering Equipment,29/09/2017,3944546,418.52,W V Howe LTD
Childrens Services,Children's Social Care,Support Service and Management Costs,Sch. Meals A/c - Virginia,Kitchen Supplies - Catering Equipment,29/09/2017,3944548,698.23,W V Howe LTD
Childrens Services,Children's Social Care,Support Service and Management Costs,Sch. Meals A/c - Ben Jonson,Kitchen Supplies - Catering Equipment,29/09/2017,3944549,718.60,W V Howe LTD
Childrens Services,Cultural and Related Services,Open Spaces,Victoria Park,Events & Exhibition Supplies,29/09/2017,3944555,750.00,Community Link Trading Ltd
Childrens Services,Children's Social Care,Family Support Services,CNN Pool: Joint Family Support,Childrens Act Section 17 - Respite Care,29/09/2017,3944638,297.90,QALB Centre Short Break Services
Childrens Services,Children's Social Care,Family Support Services,CNN Pool: Joint Family Support,Childrens Act Section 17 - Respite Care,29/09/2017,3944647,294.00,QALB Centre Short Break Services
Childrens Services,Children's Social Care,Children Looked After,S23-Other-Semi-Ind. Unit,Childrens Act Section 23 - Placement Fee,29/09/2017,3945683,"1,221.32",Newhaven 16 Plus
Childrens Services,Education Services,Early Years,Private Voluntary & Independant Extended Funding Hours,Third Party Payments - Voluntary Associations,29/09/2017,3946015,"2,310.00",GLOBAL KIDS DAY CARE
Childrens Services,Children's Social Care,Children Looked After,S23-Other-Semi-Ind. Unit,Childrens Act Section 23 - Placement Fee,29/09/2017,3946714,"1,300.00",Real Life
Childrens Services,Children's Social Care,Support Service and Management Costs,Schools Catering,Kitchen Supplies - Food and Beverages,29/09/2017,3946717,451.60,Thomas Ridley & Son Ltd
Childrens Services,Children's Social Care,Support Service and Management Costs,Sch. Meals A/c - Central Production Unit,Kitchen Supplies - Food and Beverages,29/09/2017,3946718,"1,599.61",Thomas Ridley & Son Ltd
Childrens Services,Children's Social Care,Support Service and Management Costs,Sch. Meals A/c - P.D.C. Cateen,Kitchen Supplies - Food and Beverages,29/09/2017,3946719,419.22,Thomas Ridley & Son Ltd
Childrens Services,Children's Social Care,Support Service and Management Costs,"Mulberry Caf�		",Kitchen Supplies - Food and Beverages,29/09/2017,3946722,362.52,Thomas Ridley & Son Ltd
Childrens Services,Children's Social Care,Support Service and Management Costs,Welfare Catering,Kitchen Supplies - Food and Beverages,29/09/2017,3946724,644.18,Thomas Ridley & Son Ltd
Childrens Services,Children's Social Care,Services for young people,Outdoor,Educational/Training Supplies - Curriculum Visits/Activities,29/09/2017,3946737,740.00,Safeclimb t/a Applied Trading Ltd
Childrens Services,Children's Social Care,Services for young people,Outdoor,Educational/Training Supplies - Curriculum Visits/Activities,29/09/2017,3946750,600.00,Herts Young Mariners Base
Childrens Services,Education Services,Early Years,Queen Mary,Third Party Payments - Payments to Schools,29/09/2017,3946773,"4,860.00",ST Pauls Way Trust School
Childrens Services,Children's Social Care,Children Looked After,S23-Other-Semi-Ind. Unit,Childrens Act Section 23 - Placement Fee,29/09/2017,3946802,"1,300.00",Real Life
Childrens Services,Children's Social Care,Support Service and Management Costs,Schools Catering,Kitchen Supplies - Food and Beverages,29/09/2017,3946804,278.02,Thomas Ridley & Son Ltd
Childrens Services,Children's Social Care,Support Service and Management Costs,Sch. Meals A/c - Central Production Unit,Kitchen Supplies - Food and Beverages,29/09/2017,3946805,568.30,Thomas Ridley & Son Ltd
Childrens Services,Children's Social Care,Support Service and Management Costs,Schools Catering,Kitchen Supplies - Food and Beverages,29/09/2017,3946806,693.89,Thomas Ridley & Son Ltd
Childrens Services,Children's Social Care,Support Service and Management Costs,Welfare Catering,Kitchen Supplies - Food and Beverages,29/09/2017,3946808,775.78,Thomas Ridley & Son Ltd
Childrens Services,Children's Social Care,Support Service and Management Costs,"Mulberry Caf�		",Kitchen Supplies - Food and Beverages,29/09/2017,3946809,405.04,Thomas Ridley & Son Ltd
Childrens Services,Children's Social Care,Services for young people,Outdoor,Educational/Training Supplies - Curriculum Visits/Activities,29/09/2017,3946815,"7,899.46",Safeclimb t/a Applied Trading Ltd
Childrens Services,Children's Social Care,Support Service and Management Costs,Schools Catering,Kitchen Supplies - Food and Beverages,29/09/2017,3946823,802.96,Thomas Ridley & Son Ltd
Childrens Services,Children's Social Care,Support Service and Management Costs,Schools Catering,Kitchen Supplies - Food and Beverages,29/09/2017,3946824,546.14,Thomas Ridley & Son Ltd
Childrens Services,Children's Social Care,Support Service and Management Costs,Sch. Meals A/c - Central Production Unit,Kitchen Supplies - Food and Beverages,29/09/2017,3946825,701.51,Thomas Ridley & Son Ltd
Childrens Services,Children's Social Care,Support Service and Management Costs,Sch. Meals A/c - Central Production Unit,Kitchen Supplies - Food and Beverages,29/09/2017,3946837,"1,868.63",Thomas Ridley & Son Ltd
Childrens Services,Children's Social Care,Support Service and Management Costs,Schools Catering,Kitchen Supplies - Food and Beverages,29/09/2017,3946845,591.72,Thomas Ridley & Son Ltd
Childrens Services,Children's Social Care,Support Service and Management Costs,Schools Catering,Kitchen Supplies - Food and Beverages,29/09/2017,3946851,883.91,Thomas Ridley & Son Ltd
Childrens Services,Children's Social Care,Support Service and Management Costs,Schools Catering,Kitchen Supplies - Food and Beverages,29/09/2017,3946852,319.13,Thomas Ridley & Son Ltd
Childrens Services,Children's Social Care,Support Service and Management Costs,Schools Catering,Kitchen Supplies - Food and Beverages,29/09/2017,3946857,552.53,Thomas Ridley & Son Ltd
Childrens Services,Children's Social Care,Support Service and Management Costs,Schools Catering,Kitchen Supplies - Food and Beverages,29/09/2017,3946864,733.21,Thomas Ridley & Son Ltd
Childrens Services,Children's Social Care,Support Service and Management Costs,Schools Catering,Kitchen Supplies - Food and Beverages,29/09/2017,3946869,458.16,Thomas Ridley & Son Ltd
Childrens Services,Children's Social Care,Support Service and Management Costs,Schools Catering,Kitchen Supplies - Food and Beverages,29/09/2017,3946877,467.15,Thomas Ridley & Son Ltd
Childrens Services,Children's Social Care,Support Service and Management Costs,Schools Catering,Kitchen Supplies - Food and Beverages,29/09/2017,3946893,325.44,Thomas Ridley & Son Ltd
Childrens Services,Children's Social Care,Support Service and Management Costs,Schools Catering,Kitchen Supplies - Food and Beverages,29/09/2017,3946897,438.10,Thomas Ridley & Son Ltd
Childrens Services,Children's Social Care,Support Service and Management Costs,Schools Catering,Kitchen Supplies - Food and Beverages,29/09/2017,3946901,519.76,Thomas Ridley & Son Ltd
Childrens Services,Children's Social Care,Support Service and Management Costs,Schools Catering,Kitchen Supplies - Food and Beverages,29/09/2017,3946907,396.77,Thomas Ridley & Son Ltd
Childrens Services,Children's Social Care,Support Service and Management Costs,Schools Catering,Kitchen Supplies - Food and Beverages,29/09/2017,3946910,788.07,Thomas Ridley & Son Ltd
Childrens Services,Children's Social Care,Support Service and Management Costs,Schools Catering,Kitchen Supplies - Food and Beverages,29/09/2017,3946911,356.90,Thomas Ridley & Son Ltd
Childrens Services,Children's Social Care,Support Service and Management Costs,Schools Catering,Kitchen Supplies - Food and Beverages,29/09/2017,3946915,446.88,Thomas Ridley & Son Ltd
Childrens Services,Children's Social Care,Support Service and Management Costs,Schools Catering,Kitchen Supplies - Food and Beverages,29/09/2017,3946919,657.97,Thomas Ridley & Son Ltd
Childrens Services,Children's Social Care,Support Service and Management Costs,Schools Catering,Kitchen Supplies - Food and Beverages,29/09/2017,3946920,858.27,Thomas Ridley & Son Ltd
Childrens Services,Children's Social Care,Support Service and Management Costs,Schools Catering,Kitchen Supplies - Food and Beverages,29/09/2017,3946928,363.07,Thomas Ridley & Son Ltd
Childrens Services,Children's Social Care,Support Service and Management Costs,Schools Catering,Kitchen Supplies - Food and Beverages,29/09/2017,3946929,832.67,Thomas Ridley & Son Ltd
Childrens Services,Children's Social Care,Support Service and Management Costs,Schools Catering,Kitchen Supplies - Food and Beverages,29/09/2017,3947452,337.66,Thomas Ridley & Son Ltd
Childrens Services,Children's Social Care,Support Service and Management Costs,Schools Catering,Kitchen Supplies - Food and Beverages,29/09/2017,3947455,396.46,Thomas Ridley & Son Ltd
Childrens Services,Children's Social Care,Support Service and Management Costs,Schools Catering,Kitchen Supplies - Food and Beverages,29/09/2017,3947460,442.53,Thomas Ridley & Son Ltd
Childrens Services,Children's Social Care,Support Service and Management Costs,Schools Catering,Kitchen Supplies - Food and Beverages,29/09/2017,3947466,255.78,Thomas Ridley & Son Ltd
Childrens Services,Children's Social Care,Support Service and Management Costs,Schools Catering,Kitchen Supplies - Food and Beverages,29/09/2017,3947471,664.01,Thomas Ridley & Son Ltd
Childrens Services,Children's Social Care,Support Service and Management Costs,Schools Catering,Kitchen Supplies - Food and Beverages,29/09/2017,3947473,627.16,Thomas Ridley & Son Ltd
Childrens Services,Children's Social Care,Support Service and Management Costs,Schools Catering,Kitchen Supplies - Food and Beverages,29/09/2017,3947477,421.95,Thomas Ridley & Son Ltd
Childrens Services,Children's Social Care,Children Looked After,S23 Fam Pl P&V-F/Care,Childrens Act Section 23 - Commissioned Services,29/09/2017,3947479,964.18,The Transformed You Community Interest Company
Childrens Services,Children's Social Care,Support Service and Management Costs,Schools Catering,Kitchen Supplies - Food and Beverages,29/09/2017,3947482,432.44,Thomas Ridley & Son Ltd
Childrens Services,Children's Social Care,Support Service and Management Costs,Schools Catering,Kitchen Supplies - Food and Beverages,29/09/2017,3947486,575.36,Thomas Ridley & Son Ltd
Childrens Services,Children's Social Care,Support Service and Management Costs,Schools Catering,Kitchen Supplies - Food and Beverages,29/09/2017,3947488,372.39,Thomas Ridley & Son Ltd
Childrens Services,Children's Social Care,Support Service and Management Costs,Schools Catering,Kitchen Supplies - Food and Beverages,29/09/2017,3947490,463.36,Thomas Ridley & Son Ltd
Childrens Services,Children's Social Care,Support Service and Management Costs,Schools Catering,Kitchen Supplies - Food and Beverages,29/09/2017,3947499,641.46,Thomas Ridley & Son Ltd
Childrens Services,Children's Social Care,Support Service and Management Costs,Schools Catering,Kitchen Supplies - Food and Beverages,29/09/2017,3947502,442.01,Thomas Ridley & Son Ltd
Childrens Services,Children's Social Care,Support Service and Management Costs,Schools Catering,Kitchen Supplies - Food and Beverages,29/09/2017,3947504,327.26,Thomas Ridley & Son Ltd
Childrens Services,Children's Social Care,Support Service and Management Costs,Schools Catering,Kitchen Supplies - Food and Beverages,29/09/2017,3947510,310.58,Thomas Ridley & Son Ltd
Childrens Services,Children's Social Care,Support Service and Management Costs,Schools Catering,Kitchen Supplies - Food and Beverages,29/09/2017,3947517,275.68,Thomas Ridley & Son Ltd
Childrens Services,Children's Social Care,Support Service and Management Costs,Schools Catering,Kitchen Supplies - Food and Beverages,29/09/2017,3947521,616.16,Thomas Ridley & Son Ltd
Childrens Services,Children's Social Care,Support Service and Management Costs,Schools Catering,Kitchen Supplies - Food and Beverages,29/09/2017,3947523,451.24,Thomas Ridley & Son Ltd
Childrens Services,Children's Social Care,Support Service and Management Costs,Schools Catering,Kitchen Supplies - Food and Beverages,29/09/2017,3947524,773.24,Thomas Ridley & Son Ltd
Childrens Services,Children's Social Care,Support Service and Management Costs,Schools Catering,Kitchen Supplies - Food and Beverages,29/09/2017,3947525,928.33,Thomas Ridley & Son Ltd
Childrens Services,Cultural and Related Services,Culture & Heritage,Event Fund,Third Party Payments - Voluntary Associations,29/09/2017,3947551,"1,000.00",Sur Bandhan Society
Childrens Services,Cultural and Related Services,Culture & Heritage,Event Fund,Third Party Payments - Voluntary Associations,29/09/2017,3947552,800.00,Ice and Fire Theatre Company
Childrens Services,Cultural and Related Services,Culture & Heritage,Event Fund,Third Party Payments - Voluntary Associations,29/09/2017,3947553,"1,200.00",Teatro Vivo
Childrens Services,Children's Social Care,Other Children's and Family Services,Permanancy and Adoption Support Team 1,Subscriptions - Associations,29/09/2017,3947593,"9,944.00",Post-Adoption Centre
Childrens Services,Children's Social Care,Services for young people,Outdoor,Educational/Training Supplies - Curriculum Visits/Activities,29/09/2017,3947652,"1,000.00",Herts Young Mariners Base
Childrens Services,Children's Social Care,Children Looked After,S23 Fam Pl P&V-F/Care,Childrens Act Section 23 - Expert Assessmt/Witness Costs,29/09/2017,3947764,403.00,Psychology Experts
Childrens Services,Children's Social Care,Children Looked After,S23 Fam Pl In-Hse-S/Term F/C,Childrens Act Section 23 - Expert Assessmt/Witness Costs,29/09/2017,3947765,780.00,Core Assets Expert Services Ltd T/a Carter Brown
Childrens Services,Education Services,Early Years,Wapping C.C - SLA,Water Services - Metered,29/09/2017,3947887,396.77,CASTLE WATER
Childrens Services,Children's Social Care,Family Support Services,CNN Pool: Children Direct Paym,Social Care - Direct Payments,29/09/2017,3947944,690.86,DH TOWER HAMLETS
Childrens Services,Children's Social Care,Family Support Services,CNN Pool: Children Direct Paym,Social Care - Direct Payments,29/09/2017,3947945,674.60,DH TOWER HAMLETS
Childrens Services,Children's Social Care,Family Support Services,CNN Pool: Children Direct Paym,Social Care - Direct Payments,29/09/2017,3947951,674.60,DH TOWER HAMLETS
Childrens Services,Children's Social Care,Family Support Services,CNN Pool: Children Direct Paym,Social Care - Direct Payments,29/09/2017,3947954,929.40,DH TOWER HAMLETS
Childrens Services,Children's Social Care,Family Support Services,CNN Pool: Children Direct Paym,Social Care - Direct Payments,29/09/2017,3947955,674.56,DH TOWER HAMLETS
Childrens Services,Children's Social Care,Family Support Services,CNN Pool: Children Direct Paym,Social Care - Direct Payments,29/09/2017,3947959,674.60,DH TOWER HAMLETS
Childrens Services,Children's Social Care,Family Support Services,CNN Pool: Children Direct Paym,Social Care - Direct Payments,29/09/2017,3947966,674.60,DH TOWER HAMLETS
Childrens Services,Children's Social Care,Family Support Services,CNN Pool: Children Direct Paym,Social Care - Direct Payments,29/09/2017,3947971,"1,401.78",D D PAYROLL SERVICES
Childrens Services,Children's Social Care,Family Support Services,CNN Pool: Children Direct Paym,Social Care - Direct Payments,29/09/2017,3947973,"7,049.06",DH TOWER HAMLETS
Childrens Services,Children's Social Care,Family Support Services,CNN Pool: Children Direct Paym,Social Care - Direct Payments,29/09/2017,3947975,"1,349.20",DH TOWER HAMLETS
Childrens Services,Children's Social Care,Family Support Services,CNN Pool: Children Direct Paym,Social Care - Direct Payments,29/09/2017,3947976,898.42,DH TOWER HAMLETS
Childrens Services,Children's Social Care,Family Support Services,CNN Pool: Children Direct Paym,Social Care - Direct Payments,29/09/2017,3947977,449.73,DH TOWER HAMLETS
Childrens Services,Children's Social Care,Family Support Services,CNN Pool: Children Direct Paym,Social Care - Direct Payments,29/09/2017,3947979,674.60,DH TOWER HAMLETS
Childrens Services,Children's Social Care,Family Support Services,CNN Pool: Children Direct Paym,Social Care - Direct Payments,29/09/2017,3947983,899.42,DH TOWER HAMLETS
Childrens Services,Children's Social Care,Family Support Services,CNN Pool: Children Direct Paym,Social Care - Direct Payments,29/09/2017,3947989,674.60,DH TOWER HAMLETS
Childrens Services,Children's Social Care,Family Support Services,CNN Pool: Children Direct Paym,Social Care - Direct Payments,29/09/2017,3947991,674.56,DH TOWER HAMLETS
Childrens Services,Children's Social Care,Family Support Services,CNN Pool: Children Direct Paym,Social Care - Direct Payments,29/09/2017,3947992,674.60,DH TOWER HAMLETS
Childrens Services,Children's Social Care,Family Support Services,CNN Pool: Children Direct Paym,Social Care - Direct Payments,29/09/2017,3947993,674.60,DH TOWER HAMLETS
Childrens Services,Children's Social Care,Family Support Services,CNN Pool: Children Direct Paym,Social Care - Direct Payments,29/09/2017,3947994,929.45,DH TOWER HAMLETS
Childrens Services,Children's Social Care,Family Support Services,CNN Pool: Children Direct Paym,Social Care - Direct Payments,29/09/2017,3947995,"1,349.12",DH TOWER HAMLETS
Childrens Services,Children's Social Care,Family Support Services,CNN Pool: Children Direct Paym,Social Care - Direct Payments,29/09/2017,3947999,"15,129.58",DH TOWER HAMLETS
Childrens Services,Children's Social Care,Family Support Services,CNN Pool: Children Direct Paym,Social Care - Direct Payments,29/09/2017,3948009,899.46,DH TOWER HAMLETS
Childrens Services,Children's Social Care,Family Support Services,CNN Pool: Children Direct Paym,Social Care - Direct Payments,29/09/2017,3948011,"8,526.66",DH TOWER HAMLETS
Childrens Services,Children's Social Care,Family Support Services,CNN Pool: Children Direct Paym,Social Care - Direct Payments,29/09/2017,3948014,548.40,DH TOWER HAMLETS
Childrens Services,Children's Social Care,Family Support Services,CNN Pool: Children Direct Paym,Social Care - Direct Payments,29/09/2017,3948017,674.60,DH TOWER HAMLETS
Childrens Services,Children's Social Care,Family Support Services,CNN Pool: Children Direct Paym,Social Care - Direct Payments,29/09/2017,3948018,"2,248.66",DH TOWER HAMLETS
Childrens Services,Children's Social Care,Family Support Services,CNN Pool: Children Direct Paym,Social Care - Direct Payments,29/09/2017,3948019,"1,124.33",DH TOWER HAMLETS
Childrens Services,Children's Social Care,Family Support Services,CNN Pool: Children Direct Paym,Social Care - Direct Payments,29/09/2017,3948020,899.46,D D PAYROLL SERVICES
Childrens Services,Children's Social Care,Family Support Services,CNN Pool: Children Direct Paym,Social Care - Direct Payments,29/09/2017,3948022,929.40,DH TOWER HAMLETS
Childrens Services,Children's Social Care,Family Support Services,CNN Pool: Children Direct Paym,Social Care - Direct Payments,29/09/2017,3948023,674.60,DH TOWER HAMLETS
Childrens Services,Children's Social Care,Family Support Services,CNN Pool: Children Direct Paym,Social Care - Direct Payments,29/09/2017,3948024,674.60,DH TOWER HAMLETS
Childrens Services,Children's Social Care,Family Support Services,CNN Pool: Children Direct Paym,Social Care - Direct Payments,29/09/2017,3948025,674.60,DH TOWER HAMLETS
Childrens Services,Children's Social Care,Family Support Services,CNN Pool: Children Direct Paym,Social Care - Direct Payments,29/09/2017,3948027,674.60,DH TOWER HAMLETS
Childrens Services,Children's Social Care,Family Support Services,CNN Pool: Children Direct Paym,Social Care - Direct Payments,29/09/2017,3948028,899.46,DH TOWER HAMLETS
Childrens Services,Children's Social Care,Family Support Services,CNN Pool: Children Direct Paym,Social Care - Direct Payments,29/09/2017,3948029,"2,626.70",DH TOWER HAMLETS
Childrens Services,Children's Social Care,Family Support Services,CNN Pool: Children Direct Paym,Social Care - Direct Payments,29/09/2017,3948030,674.60,DH TOWER HAMLETS
Childrens Services,Children's Social Care,Family Support Services,CNN Pool: Children Direct Paym,Social Care - Direct Payments,29/09/2017,3948031,674.60,DH TOWER HAMLETS
Childrens Services,Children's Social Care,Family Support Services,CNN Pool: Children Direct Paym,Social Care - Direct Payments,29/09/2017,3948032,674.60,DH TOWER HAMLETS
Childrens Services,Children's Social Care,Family Support Services,CNN Pool: Children Direct Paym,Social Care - Direct Payments,29/09/2017,3948033,674.60,DH TOWER HAMLETS
Childrens Services,Children's Social Care,Family Support Services,CNN Pool: Children Direct Paym,Social Care - Direct Payments,29/09/2017,3948034,674.60,DH TOWER HAMLETS
Childrens Services,Children's Social Care,Family Support Services,CNN Pool: Children Direct Paym,Social Care - Direct Payments,29/09/2017,3948035,674.60,DH TOWER HAMLETS
Childrens Services,Children's Social Care,Family Support Services,CNN Pool: Children Direct Paym,Social Care - Direct Payments,29/09/2017,3948036,794.60,DH TOWER HAMLETS
Childrens Services,Children's Social Care,Family Support Services,CNN Pool: Children Direct Paym,Social Care - Direct Payments,29/09/2017,3948037,794.60,DH TOWER HAMLETS
Childrens Services,Children's Social Care,Children Looked After,S23-Resi-P&V/OLA-Child Home,Childrens Act Section 23 - Expert Assessmt/Witness Costs,29/09/2017,3948104,597.29,Cheshire Child Psychiatry Ltd
Childrens Services,Children's Social Care,Children Looked After,S23 Fam Pl In-Hse-S/Term F/C,Childrens Act Section 23 - Expert Assessmt/Witness Costs,29/09/2017,3948110,582.35,Psychology Experts
Childrens Services,Education Services,Other Strategic Functions,Education Psychologists GF,Training Expenses - Staff External Training (UK Based),29/09/2017,3948142,780.00,Oxford Mindfulness Centre
Childrens Services,Children's Social Care,Children Looked After,S23-Resi-P&V/OLA-Child Home,Childrens Act Section 23 - Expert Assessmt/Witness Costs,29/09/2017,3948175,488.98,EXPERT IN MIND LIMITED
Childrens Services,Children's Social Care,Children Looked After,S23 Fam Pl In-Hse-Kinshp Care,Childrens Act Section 23 - All Contact Expenses,29/09/2017,3948319,376.00,HOPE Superjobs Ltd
Childrens Services,Children's Social Care,Children Looked After,S23 Fam Pl In-Hse-Kinshp Care,Childrens Act Section 23 - All Contact Expenses,29/09/2017,3948345,"1,886.00",HOPE Superjobs Ltd
Childrens Services,Children's Social Care,Children Looked After,Leaving Care Staff,Water Services - Metered,29/09/2017,3948354,833.17,CASTLE WATER
Corporate Costs and Central Financing,Corporate & Democratic Core,Corporate Management,Corporate Management Team,Services - Professional Fees - Consultants Fees,06/09/2017,3927691,345.00,Servoca Resourcing Solutions
Corporate Costs and Central Financing,Corporate & Democratic Core,Corporate Management,Corporate Management Team,Services - Professional Fees - Consultants Fees,06/09/2017,3927867,897.00,Servoca Resourcing Solutions
Corporate Costs and Central Financing,Corporate & Democratic Core,Corporate Management,Corporate Management Team,Services - Professional Fees - Consultants Fees,06/09/2017,3927868,805.00,Servoca Resourcing Solutions
Corporate Costs and Central Financing,Corporate & Democratic Core,Corporate Management,Corporate Management Team,Services - Professional Fees - Consultants Fees,06/09/2017,3927880,816.50,Servoca Resourcing Solutions
Corporate Costs and Central Financing,Corporate & Democratic Core,Corporate Management,Corporate Management Team,Services - Professional Fees - Consultants Fees,06/09/2017,3927881,644.00,Servoca Resourcing Solutions
Corporate Costs and Central Financing,Corporate & Democratic Core,Corporate Management,Corporate Management Team,Services - Professional Fees - Consultants Fees,06/09/2017,3927888,322.00,Servoca Resourcing Solutions
Corporate Costs and Central Financing,Corporate & Democratic Core,Corporate Management,Corporate Management Team,Services - Professional Fees - Consultants Fees,06/09/2017,3927889,805.00,Servoca Resourcing Solutions
Corporate Costs and Central Financing,Corporate & Democratic Core,Corporate Management,Corporate Management Team,Services - Professional Fees - Consultants Fees,06/09/2017,3927894,805.00,Servoca Resourcing Solutions
Corporate Costs and Central Financing,Corporate & Democratic Core,Corporate Management,Corporate Management Team,Services - Professional Fees - Consultants Fees,06/09/2017,3927895,805.00,Servoca Resourcing Solutions
Corporate Costs and Central Financing,Corporate & Democratic Core,Corporate Management,Corporate Management Team,Services - Professional Fees - Consultants Fees,06/09/2017,3927899,805.00,Servoca Resourcing Solutions
Corporate Costs and Central Financing,Corporate & Democratic Core,Corporate Management,Corporate Management Team,Services - Professional Fees - Consultants Fees,06/09/2017,3927900,805.00,Servoca Resourcing Solutions
Corporate Costs and Central Financing,Corporate & Democratic Core,Corporate Management,Corporate Management Team,Services - Professional Fees - Consultants Fees,06/09/2017,3927903,644.00,Servoca Resourcing Solutions
Corporate Costs and Central Financing,Corporate & Democratic Core,Corporate Management,Corporate Management Team,Services - Professional Fees - Consultants Fees,06/09/2017,3927904,644.00,Servoca Resourcing Solutions
Corporate Costs and Central Financing,Corporate & Democratic Core,Corporate Management,Corporate Management Team,Services - Professional Fees - Consultants Fees,06/09/2017,3927909,805.00,Servoca Resourcing Solutions
Corporate Costs and Central Financing,Corporate & Democratic Core,Corporate Management,Corporate Management Team,Services - Professional Fees - Consultants Fees,06/09/2017,3927910,805.00,Servoca Resourcing Solutions
Corporate Costs and Central Financing,Corporate & Democratic Core,Democratic Representation & Management,Pension Fund Management,Pension Fund Management Exps - GMO,08/09/2017,3925016,"13,997.18",GMO UK LTD
Corporate Costs and Central Financing,Corporate & Democratic Core,Democratic Representation & Management,Pension Fund Management,Pension Fund Management Exps - GMO,08/09/2017,3925286,"5,998.78",GMO UK LTD
Corporate Costs and Central Financing,Corporate & Democratic Core,Corporate Management,Corporate Management Team,Services - Professional Fees - Consultants Fees,11/09/2017,3927912,805.00,Servoca Resourcing Solutions
Corporate Costs and Central Financing,Corporate & Democratic Core,Corporate Management,Corporate Management Team,Services - Professional Fees - Consultants Fees,11/09/2017,3927913,805.00,Servoca Resourcing Solutions
Corporate Costs and Central Financing,Corporate & Democratic Core,Corporate Management,Corporate Budget,Services - Professional Fees - Treasury Expenses,13/09/2017,3927534,"15,000.00",Arlingclose
Corporate Costs and Central Financing,Corporate & Democratic Core,Corporate Management,Corporate Budget,Services - Professional Fees - Treasury Expenses,13/09/2017,3927535,250.00,Arlingclose
Corporate Costs and Central Financing,Corporate & Democratic Core,Corporate Management,Corporate Budget,Services - Professional Fees - Legal Fees/Expenses,13/09/2017,3938250,"2,270.00",Poppleston Allen
Corporate Costs and Central Financing,Corporate & Democratic Core,Corporate Management,Corporate Budget,Services - Professional Fees - Legal Fees/Expenses,15/09/2017,3938932,"3,154.00",Poppleston Allen
Corporate Costs and Central Financing,Corporate & Democratic Core,Corporate Management,Corporate Management Team,Services - Professional Fees - Consultants Fees,18/09/2017,3927916,805.00,Servoca Resourcing Solutions
Corporate Costs and Central Financing,Corporate & Democratic Core,Corporate Management,Corporate Management Team,Services - Professional Fees - Consultants Fees,18/09/2017,3927917,805.00,Servoca Resourcing Solutions
Corporate Costs and Central Financing,Corporate & Democratic Core,Corporate Management,Corporate Budget,Services - Professional Fees - Valuation Fees,22/09/2017,3922086,"4,900.00",Carter Jonas LLP
Corporate Costs and Central Financing,Corporate & Democratic Core,Corporate Management,Corporate Management Team,Services - Professional Fees - Consultants Fees,22/09/2017,3934322,805.00,Servoca Resourcing Solutions
Corporate Costs and Central Financing,Corporate & Democratic Core,Corporate Management,Corporate Budget,Third Party Payments - Other Local Authorities,22/09/2017,3942533,"10,000.00",Maidstone Borough Council
Corporate Costs and Central Financing,Corporate & Democratic Core,Corporate Management,Corporate Budget,Agency Staff,25/09/2017,3943435,"1,000.00",LEE HECHT HARRISON PENNA LTD
Corporate Costs and Central Financing,Corporate & Democratic Core,Corporate Management,Corporate Budget,Agency Staff,25/09/2017,3943436,"2,750.00",LEE HECHT HARRISON PENNA LTD
Corporate Costs and Central Financing,Corporate & Democratic Core,Corporate Management,Corporate Budget,Audit Fees - Other,27/09/2017,3940441,"20,685.00",KPMG LLP
Corporate Costs and Central Financing,Corporate & Democratic Core,Corporate Management,Corporate Budget,Services - Professional Fees - Consultants Fees,27/09/2017,3944590,"1,000.00",Integer Advisory Limited
Corporate Costs and Central Financing,Corporate & Democratic Core,Corporate Management,Corporate Management Team,Services - Professional Fees - Consultants Fees,29/09/2017,3934323,644.00,Servoca Resourcing Solutions
Corporate Costs and Central Financing,Corporate & Democratic Core,Corporate Management,Corporate Management Team,Services - Professional Fees - Consultants Fees,29/09/2017,3934390,805.00,Servoca Resourcing Solutions
Corporate Costs and Central Financing,Corporate & Democratic Core,Democratic Representation & Management,Pension Fund Management,Administration Expenses - Admin Exps: State Street GS Performance Services PLC (WM Co),29/09/2017,3937621,"1,123.00",State Street GS Performance Services PLC
Governance,Corporate & Democratic Core,Corporate Management,Print and Design Panacea Project,Photocopier Charges - Consumables,01/09/2017,3922757,339.00,Fontain Ltd
Governance,Corporate & Democratic Core,Corporate Management,Enforcement & Litigation Team,Services - Professional Fees - Counsel's Fees,01/09/2017,3931769,350.00,39 ESSEX CHAMBERS LLP
Governance,Corporate & Democratic Core,Corporate Management,Business Team,Computing - Purchase of Software,04/09/2017,3927540,"7,750.00",CIVICA UK LTD
Governance,Corporate & Democratic Core,Corporate Management,Tower Design,Printing - External,06/09/2017,3923170,750.00,Tutaev Design
Governance,Corporate & Democratic Core,Corporate Management,Tower Design,Printing - External,06/09/2017,3924667,469.65,SLS Print LTD
Governance,Corporate & Democratic Core,Democratic Representation & Management,Strategy and Performance,Computing - Maint Agreements - Maintenance,06/09/2017,3925029,900.00,360 Systems LTD
Governance,Corporate & Democratic Core,Corporate Management,Business Team,Office Furniture/Equipment,06/09/2017,3926226,279.84,Ricoh UK
Governance,Corporate & Democratic Core,Democratic Representation & Management,Special Projects,Agency Staff,06/09/2017,3932061,"5,839.94",Comensura
Governance,Children's Social Care,Other Children's and Family Services,Childrens' Services Court Fees,Services - Professional Fees - Legal Fees/Expenses,06/09/2017,3933223,304.30,Opus 2 International Ltd
Governance,Central Services to the Public,Registration of Births Deaths & Marriages,Registrars,Uniforms & Clothing,08/09/2017,3890217,368.33,Burlington Uniforms Ltd
Governance,Central Services to the Public,Registration of Births Deaths & Marriages,Registrars,Uniforms & Clothing,08/09/2017,3901133,"1,547.30",Burlington Uniforms Ltd
Governance,Central Services to the Public,Registration of Births Deaths & Marriages,Registrars,Uniforms & Clothing,08/09/2017,3908206,389.50,Burlington Uniforms Ltd
Governance,Central Services to the Public,Registration of Births Deaths & Marriages,Registrars,Uniforms & Clothing,08/09/2017,3918905,-502.30,Burlington Uniforms Ltd
Governance,Central Services to the Public,Registration of Births Deaths & Marriages,Registrars,Uniforms & Clothing,08/09/2017,3919774,-271.65,Burlington Uniforms Ltd
Governance,Central Services to the Public,Registration of Births Deaths & Marriages,Registrars,Uniforms & Clothing,08/09/2017,3919903,-357.65,Burlington Uniforms Ltd
Governance,Central Services to the Public,Registration of Births Deaths & Marriages,Registrars,Uniforms & Clothing,08/09/2017,3919933,-719.30,Burlington Uniforms Ltd
Governance,Central Services to the Public,Registration of Births Deaths & Marriages,Registrars,Uniforms & Clothing,08/09/2017,3919953,582.10,Burlington Uniforms Ltd
Governance,Corporate & Democratic Core,Corporate Management,Tower Design,Printing - External,08/09/2017,3922953,740.00,Promo2u Ltd
Governance,Corporate & Democratic Core,Corporate Management,Tower Design,Printing - External,08/09/2017,3923052,"1,120.00",Promo2u Ltd
Governance,Corporate & Democratic Core,Corporate Management,Tower Design,Printing - External,08/09/2017,3923071,900.00,Promo2u Ltd
Governance,Central Services to the Public,Registration of Births Deaths & Marriages,Registrars,Uniforms & Clothing,08/09/2017,3925032,273.65,Burlington Uniforms Ltd
Governance,Central Services to the Public,Elections,Electoral Registration,Training Expenses - Staff External Training (UK Based),08/09/2017,3927446,"1,585.00",Association of Electoral Administrators
Governance,Corporate & Democratic Core,Corporate Management,Tower Design,Printing - External,08/09/2017,3930781,303.16,Promo2u Ltd
Governance,Corporate & Democratic Core,Corporate Management,Tower Design,Printing - External,08/09/2017,3930890,"3,980.00",Promo2u Ltd
Governance,Corporate & Democratic Core,Corporate Management,Tower Design,Printing - External,08/09/2017,3930952,640.00,Promo2u Ltd
Governance,Corporate & Democratic Core,Corporate Management,Tower Design,Printing - External,08/09/2017,3930959,"1,600.00",Promo2u Ltd
Governance,Corporate & Democratic Core,Corporate Management,Tower Design,Printing - External,08/09/2017,3930963,420.00,Promo2u Ltd
Governance,Corporate & Democratic Core,Corporate Management,Tower Design,Printing - External,08/09/2017,3930969,300.00,Promo2u Ltd
Governance,Corporate & Democratic Core,Corporate Management,Tower Design,Printing - External,08/09/2017,3930973,"1,340.00",Promo2u Ltd
Governance,Corporate & Democratic Core,Corporate Management,Tower Design,Printing - External,08/09/2017,3930977,440.00,Promo2u Ltd
Governance,Corporate & Democratic Core,Corporate Management,Print and Design Panacea Project,Photocopier Charges - Consumables,08/09/2017,3931922,676.00,Fontain Ltd
Governance,Corporate & Democratic Core,Corporate Management,Print and Design Panacea Project,Photocopier Charges - Consumables,08/09/2017,3931959,314.00,Fontain Ltd
Governance,Corporate & Democratic Core,Corporate Management,Print and Design Panacea Project,Events & Exhibition Supplies,08/09/2017,3932239,795.00,Fluid Branding LTD
Governance,Corporate & Democratic Core,Corporate Management,Tower Design,Printing - External,11/09/2017,3923003,458.36,Cubiquity Ltd
Governance,Corporate & Democratic Core,Corporate Management,Tower Design,Printing - External,11/09/2017,3923064,-618.20,Cubiquity Ltd
Governance,Corporate & Democratic Core,Corporate Management,"Our East End						",Services - Professional Fees - Design Fees,11/09/2017,3924840,250.00,Walk East CIC
Governance,Corporate & Democratic Core,Democratic Representation & Management,One Tower Hamlets,Third Party Payments - Voluntary Associations,11/09/2017,3933826,"2,500.00",Alternative Arts
Governance,Central Services to the Public,Elections,Individual Electoral Reg. Funding,Printing - External,11/09/2017,3937609,580.58,Financial Data Management
Governance,Corporate & Democratic Core,Corporate Management,External Communications,Services - Professional Fees - Consultants Fees,13/09/2017,3925294,"9,900.00",The Campaign Company
Governance,Corporate & Democratic Core,Corporate Management,Business Team,Stationery,13/09/2017,3927219,595.20,Ovenden Papers LTD
Governance,Central Services to the Public,Elections,Electoral Registration,Training Expenses - Staff External Training (UK Based),13/09/2017,3927710,390.00,Dod's Parliamentary Communications
Governance,Corporate & Democratic Core,Corporate Management,Print and Design Panacea Project,Photocopier Charges - Consumables,13/09/2017,3931962,276.00,Fontain Ltd
Governance,Children's Social Care,Support Service and Management Costs,"Policy, Programmes and Community Insight		",Training Expenses - Staff External Training (UK Based),13/09/2017,3937955,740.00,GovNet Communications
Governance,Central Services to the Public,Registration of Births Deaths & Marriages,Registrars,Tools and Equipment - Purchase,15/09/2017,3939077,"1,140.00",MAYORS CHARITY ACCOUNT
Governance,Corporate & Democratic Core,Corporate Management,Business Team,Stationery,18/09/2017,3927402,443.44,Office Depot (Catalogue)
Governance,Corporate & Democratic Core,Democratic Representation & Management,Complaints,Subscriptions - Associations,20/09/2017,3926266,555.18,Coram Voice
Governance,Corporate & Democratic Core,Corporate Management,Tower Design,Printing - External,20/09/2017,3927537,340.20,Cubiquity Ltd
Governance,Corporate & Democratic Core,Democratic Representation & Management,Strategy and Performance,Training Expenses - Staff External Training (UK Based),20/09/2017,3940433,"2,775.00",Centre For Public Scrutiny LTD
Governance,Central Services to the Public,Registration of Births Deaths & Marriages,Registrars,Computing - Purchase of Hardware,20/09/2017,3942550,916.50,INSIGHT DIRECT (UK) LTD
Governance,Corporate & Democratic Core,Corporate Management,Tower Design,Printing - External,22/09/2017,3927705,358.76,Cubiquity Ltd
Governance,Corporate & Democratic Core,Corporate Management,Print and Design Panacea Project,Books - General Purchases,22/09/2017,3930189,"3,700.00",Medialink World LTD
Governance,Corporate & Democratic Core,Corporate Management,Tower Design,Printing - External,22/09/2017,3930308,"7,226.00",Good Impressions
Governance,Corporate & Democratic Core,Corporate Management,Business Team,Computing - Licences - Software,22/09/2017,3930794,"3,600.00",CIVICA UK LTD
Governance,Central Services to the Public,Elections,Electoral Registration,Training Expenses - Staff External Training (UK Based),22/09/2017,3937636,"1,585.00",Association of Electoral Administrators
Governance,Corporate & Democratic Core,Democratic Representation & Management,Complaints,Subscriptions - Associations,22/09/2017,3940795,321.63,Coram Voice
Governance,Corporate & Democratic Core,Democratic Representation & Management,Complaints,Subscriptions - Associations,22/09/2017,3940840,864.53,Coram Voice
Governance,Corporate & Democratic Core,Democratic Representation & Management,Complaints,Subscriptions - Associations,22/09/2017,3940855,"1,059.96",Coram Voice
Governance,Corporate & Democratic Core,Corporate Management,Corporate Campaigns,Services - Professional Fees - Consultants Fees,22/09/2017,3944379,"2,750.00",Commina Ltd
Governance,Central Services to the Public,Elections,Individual Electoral Reg. Funding,Printing - External,25/09/2017,3944654,385.06,Financial Data Management
Governance,Corporate & Democratic Core,Democratic Representation & Management,Improvement Budget,Room Hire,27/09/2017,3930875,"2,695.00",Greenwich Leisure LTD
Governance,Corporate & Democratic Core,Corporate Management,Business Team,Office Furniture/Equipment,27/09/2017,3938835,"2,041.00",Unique Office Solutions
Governance,Corporate & Democratic Core,Democratic Representation & Management,One Tower Hamlets,Third Party Payments - Voluntary Associations,27/09/2017,3942495,"4,000.00",Numbi Arts
Governance,Corporate & Democratic Core,Corporate Management,Tower Design,Services - Professional Fees - Design Fees,29/09/2017,3931904,"1,745.00",Panther Print & Design LTD
Governance,Corporate & Democratic Core,Corporate Management,Business Team,Books - General Purchases,29/09/2017,3932950,337.00,Thomson Reuters
Governance,Corporate & Democratic Core,Democratic Representation & Management,Corporate Costs,Third Party Payments - Voluntary Associations,29/09/2017,3941026,"2,239.85",Solace Group
Governance,Central Services to the Public,Elections,Annual Canvass,Printing - External,29/09/2017,3944523,"34,411.66",Financial Data Management
Health Adults and Community,Adult Social Care,Physical Support - adults (18-64),Public Health � Healthy Young Adults,Third Party Payments - Other Establishments,01/09/2017,3843587,"244,578.67",Barts Health NHS Trust
Health Adults and Community,Adult Social Care,Physical Support - adults (18-64),Public Health � Healthy Young Adults,Third Party Payments - Other Establishments,01/09/2017,3845657,"-16,520.00",Imperial College Healthcare NHS Trust
Health Adults and Community,Adult Social Care,Physical Support - adults (18-64),Public Health � Healthy Young Adults,Third Party Payments - Other Establishments,01/09/2017,3865380,"-5,182.00",Imperial College Healthcare NHS Trust
Health Adults and Community,Adult Social Care,Physical Support - adults (18-64),Public Health � Healthy Young Adults,Third Party Payments - Other Establishments,01/09/2017,3877832,"2,436.00",Barking Havering & Redbridge University NHS Trust
Health Adults and Community,Adult Social Care,Physical Support - adults (18-64),Public Health � Healthy Young Adults,Third Party Payments - Other Establishments,01/09/2017,3891954,"14,418.00",Imperial College Healthcare NHS Trust
Health Adults and Community,Adult Social Care,Physical Support - adults (18-64),Public Health � Healthy Young Adults,Third Party Payments - Other Establishments,01/09/2017,3898571,440.49,Whittington Health NHS Trust
Health Adults and Community,Adult Social Care,Physical Support - adults (18-64),Public Health � Healthy Young Adults,Third Party Payments - Other Establishments,01/09/2017,3898666,"-11,491.00",Imperial College Healthcare NHS Trust
Health Adults and Community,Adult Social Care,Physical Support - adults (18-64),Public Health � Healthy Young Adults,Third Party Payments - Other Establishments,01/09/2017,3904866,"14,418.00",Imperial College Healthcare NHS Trust
Health Adults and Community,Adult Social Care,Physical Support - adults (18-64),Public Health � Healthy Young Adults,Third Party Payments - Other Establishments,01/09/2017,3910668,"14,418.00",Imperial College Healthcare NHS Trust
Health Adults and Community,Adult Social Care,Physical Support - adults (18-64),Public Health � Healthy Young Adults,Third Party Payments - Other Establishments,01/09/2017,3913251,"14,418.00",Imperial College Healthcare NHS Trust
Health Adults and Community,Adult Social Care,Physical Support - adults (18-64),Public Health � Healthy Young Adults,Third Party Payments - Other Establishments,01/09/2017,3920253,"-3,711.33",Barts Health NHS Trust
Health Adults and Community,Adult Social Care,Physical Support - adults (18-64),Public Health � Healthy Young Adults,Third Party Payments - Other Establishments,01/09/2017,3920938,"14,418.00",Imperial College Healthcare NHS Trust
Health Adults and Community,Adult Social Care,Support with Memory and Cognition - adults (18-64),Generic Care Packages SW Team - PS,Social Care - Homecare,01/09/2017,3922288,"13,918.11",Active Assistance
Health Adults and Community,Public Health,Substance Misuse,,Client Treatment Services,01/09/2017,3923275,"36,880.65",Providence Row Charity
Health Adults and Community,No Service Specified,No Division Specified,Community Equipment Store,Community Equipment  Supplies - Aids and Appliances,01/09/2017,3924419,"123,223.18",Community Equipment Services - London Borough of Croydon
Health Adults and Community,Public Health,Miscellaneous Public Health Services,Public Health - Director,Agency Staff - Health - Salary Recharge,01/09/2017,3929357,"4,623.25",Health Education England
Health Adults and Community,No Service Specified,No Division Specified,Community Equipment Store,Healthy & Safety Supplies,01/09/2017,3929421,480.42,ACTION ON HEARING LOSS
Health Adults and Community,Adult Social Care,Support with Memory and Cognition - adults (18-64),Cmht Bethnal Green,Social Care - Supported Living,01/09/2017,3929501,"2,214.29",SHANTI HEALTHCARE LTD
Health Adults and Community,Adult Social Care,Support with Memory and Cognition - adults (18-64),Generic Care Packages NE Team-SMC,Social Care - Residential Care,01/09/2017,3929515,"2,880.03",Essex County Council
Health Adults and Community,Adult Social Care,Support with Memory and Cognition - adults (18-64),Generic Care Packages SW Team - PS,Social Care - Residential Care,01/09/2017,3930067,330.91,BRENTWOOD CARE CENTRE
Health Adults and Community,Adult Social Care,Support with Memory and Cognition - adults (18-64),Generic Care Packages SW Team - PS,Social Care - Nursing Care,01/09/2017,3930072,"3,223.07",Catchpole Court Care Home
Health Adults and Community,Adult Social Care,Support with Memory and Cognition - adults (18-64),Generic Care Packages NE Team -PS,Social Care - Nursing Care,01/09/2017,3930081,-691.97,TOPCARE LTD
Health Adults and Community,Adult Social Care,Support with Memory and Cognition - adults (18-64),Generic Care Packages NE Team -PS,Social Care - Respite Care Residential,01/09/2017,3930081,"3,985.72",TOPCARE LTD
Health Adults and Community,Adult Social Care,Support with Memory and Cognition - adults (18-64),Generic Care Packages NE Team-SMC,Social Care - Nursing Care,01/09/2017,3930084,"2,145.86",TOPCARE LTD
Health Adults and Community,Adult Social Care,Support with Memory and Cognition - adults (18-64),Generic Care Packages SE Team -PS,Social Care - Nursing Care,01/09/2017,3930096,"2,303.52",Sunhill Court
Health Adults and Community,Adult Social Care,Physical Support - adults (18-64),Adult Protection Team,Services - Professional Fees - Financial Services Fees,01/09/2017,3930389,"1,591.80",VOICEABILITY
Health Adults and Community,Adult Social Care,Physical Support - adults (18-64),Adult Protection Team,Services - Professional Fees - Financial Services Fees,01/09/2017,3930392,280.00,VOICEABILITY
Health Adults and Community,Adult Social Care,Physical Support - adults (18-64),Adult Protection Team,Services - Professional Fees - Financial Services Fees,01/09/2017,3930393,"1,136.80",VOICEABILITY
Health Adults and Community,Adult Social Care,Support with Memory and Cognition - adults (18-64),Generic Care Packages SW Team - PS,Social Care - Home Care (Short Term),01/09/2017,3930418,273.00,London Care PLC
Health Adults and Community,Adult Social Care,Support with Memory and Cognition - adults (18-64),Generic Care Packages NW Team -PS,Social Care - Residential Care,01/09/2017,3930479,"3,764.29",OULTON PARK CARE CENTRE
Health Adults and Community,Adult Social Care,Support with Memory and Cognition - adults (18-64),Generic Care Packages NE Team -PS,Social Care - Nursing Care,01/09/2017,3930704,"3,100.00",TOPCARE LTD
Health Adults and Community,Adult Social Care,Support with Memory and Cognition - adults (18-64),CLDS Longer Term Support Teams,Social Care - Residential Care,01/09/2017,3930713,"3,912.51",OUTLOOK HOUSE
Health Adults and Community,Adult Social Care,Physical Support - adults (18-64),Public Health � Healthy Young Adults,Payments to Private Contractors - Other Contractors,01/09/2017,3930798,300.40,Sai Chemist
Health Adults and Community,Adult Social Care,Physical Support - adults (18-64),Public Health � Healthy Middle Age & Older People.,Payments to Private Contractors - Other Contractors,01/09/2017,3930799,317.53,Sai Chemist
Health Adults and Community,Adult Social Care,Physical Support - adults (18-64),Public Health � Healthy Young Adults,Payments to Private Contractors - Other Contractors,01/09/2017,3930800,445.50,T/A MAYORS CHEMIST
Health Adults and Community,Adult Social Care,Physical Support - adults (18-64),Public Health � Healthy Middle Age & Older People.,Payments to Private Contractors - Other Contractors,01/09/2017,3930802,367.67,Day Lewis Plc
Health Adults and Community,Adult Social Care,Physical Support - adults (18-64),Public Health � Healthy Young Adults,Payments to Private Contractors - Other Contractors,01/09/2017,3930805,283.70,Guardian Pharmacy t/a Nash Chemist
Health Adults and Community,Adult Social Care,Physical Support - adults (18-64),Public Health � Healthy Middle Age & Older People.,Payments to Private Contractors - Other Contractors,01/09/2017,3930806,461.32,Guardian Pharmacy t/a Nash Chemist
Health Adults and Community,Adult Social Care,Physical Support - adults (18-64),Public Health � Healthy Young Adults,Payments to Private Contractors - Other Contractors,01/09/2017,3930807,626.20,Pristine Health t/a Bell Pharmacy Bow
Health Adults and Community,Adult Social Care,Physical Support - adults (18-64),Public Health � Healthy Young Adults,Payments to Private Contractors - Other Contractors,01/09/2017,3930809,728.70,FLORIDA PHARMACY
Health Adults and Community,Adult Social Care,Physical Support - adults (18-64),Public Health � Healthy Middle Age & Older People.,Payments to Private Contractors - Other Contractors,01/09/2017,3930810,769.28,FLORIDA PHARMACY
Health Adults and Community,Adult Social Care,Physical Support - adults (18-64),Public Health � Healthy Middle Age & Older People.,Payments to Private Contractors - Other Contractors,01/09/2017,3930813,282.12,MILDCARE LTD
Health Adults and Community,Adult Social Care,Physical Support - adults (18-64),Public Health � Healthy Middle Age & Older People.,Payments to Private Contractors - Other Contractors,01/09/2017,3930825,"1,053.12",Guardian Pharmacy t/a Lansbury Chemist
Health Adults and Community,Adult Social Care,Physical Support - adults (18-64),Public Health � Healthy Middle Age & Older People.,Payments to Private Contractors - Other Contractors,01/09/2017,3930833,945.16,SINCLAIR PHARMACY
Health Adults and Community,Adult Social Care,Physical Support - adults (18-64),Public Health � Healthy Middle Age & Older People.,Payments to Private Contractors - Other Contractors,01/09/2017,3930836,"1,000.72",Ali's Pharmacy
Health Adults and Community,Adult Social Care,Physical Support - adults (18-64),Public Health � Healthy Middle Age & Older People.,Payments to Private Contractors - Other Contractors,01/09/2017,3930860,871.21,Meraj Ltd
Health Adults and Community,Adult Social Care,Physical Support - adults (18-64),Public Health � Healthy Middle Age & Older People.,Payments to Private Contractors - Other Contractors,01/09/2017,3930864,"1,162.97",AR Parmar Ltd
Health Adults and Community,Adult Social Care,Physical Support - adults (18-64),Public Health � Healthy Middle Age & Older People.,Payments to Private Contractors - Other Contractors,01/09/2017,3930866,704.17,Jaypharm Chemist
Health Adults and Community,Adult Social Care,Physical Support - adults (18-64),Public Health � Healthy Middle Age & Older People.,Payments to Private Contractors - Other Contractors,01/09/2017,3930870,519.50,Docklands Pharmacy
Health Adults and Community,Adult Social Care,Physical Support - adults (18-64),Public Health � Healthy Middle Age & Older People.,Payments to Private Contractors - Other Contractors,01/09/2017,3930872,"1,314.95",Green Light Pharmacy
Health Adults and Community,Adult Social Care,Physical Support - adults (18-64),Public Health � Healthy Middle Age & Older People.,Payments to Private Contractors - Other Contractors,01/09/2017,3930874,354.20,Green Light Pharmacy Hannaford
Health Adults and Community,No Service Specified,No Division Specified,Community Equipment Store,Rent Charges,01/09/2017,3931612,389.94,Workspace Group PLC
Health Adults and Community,Adult Social Care,Support with Memory and Cognition - adults (18-64),Generic Care Packages NE Team -PS,Social Care - Respite Care,01/09/2017,3931787,"2,423.11",GATEWAY HOUSING ASSOCIATION
Health Adults and Community,Adult Social Care,Support with Memory and Cognition - adults (18-64),Cmht For Older People,Social Care - Residential Care,01/09/2017,3931790,"3,493.24",Neem Tree Care Centre
Health Adults and Community,Adult Social Care,Support with Memory and Cognition - adults (18-64),Generic Care Packages SE Team -PS,Social Care - Home Care (Short Term),01/09/2017,3931792,309.91,CARE SOLUTION BUREAU
Health Adults and Community,Adult Social Care,Support with Memory and Cognition - adults (18-64),Generic Care Packages SE Team -PS,Social Care - Home Care (Short Term),01/09/2017,3931796,328.41,CARE SOLUTION BUREAU
Health Adults and Community,Adult Social Care,Support with Memory and Cognition - adults (18-64),Generic Care Packages NE Team -PS,Social Care - Homecare,01/09/2017,3931797,259.00,CARE SOLUTION BUREAU
Health Adults and Community,Adult Social Care,Support with Memory and Cognition - adults (18-64),Generic Care Packages SE Team -PS,Social Care - Home Care (Short Term),01/09/2017,3931803,420.98,CARE SOLUTION BUREAU
Health Adults and Community,Adult Social Care,Support with Memory and Cognition - adults (18-64),Cmht Bow / Poplar North,Social Care - Homecare,01/09/2017,3931809,447.13,Carewatch Newham Ltd
Health Adults and Community,Adult Social Care,Support with Memory and Cognition - adults (18-64),Cmht Bow / Poplar North,Social Care - Homecare,01/09/2017,3931810,405.44,Carewatch Newham Ltd
Health Adults and Community,Adult Social Care,Support with Memory and Cognition - adults (18-64),Cmht Bow / Poplar North,Social Care - Homecare,01/09/2017,3931811,405.44,Carewatch Newham Ltd
Health Adults and Community,Adult Social Care,Support with Memory and Cognition - adults (18-64),Cmht Bow / Poplar North,Social Care - Homecare,01/09/2017,3931812,405.44,Carewatch Newham Ltd
Health Adults and Community,Adult Social Care,Support with Memory and Cognition - adults (18-64),Cmht Bow / Poplar North,Social Care - Homecare,01/09/2017,3931813,419.42,Carewatch Newham Ltd
Health Adults and Community,Adult Social Care,Support with Memory and Cognition - adults (18-64),Cmht Bow / Poplar North,Social Care - Homecare,01/09/2017,3931814,405.44,Carewatch Newham Ltd
Health Adults and Community,Adult Social Care,Support with Memory and Cognition - adults (18-64),Cmht Bow / Poplar North,Social Care - Homecare,01/09/2017,3931815,405.44,Carewatch Newham Ltd
Health Adults and Community,Adult Social Care,Support with Memory and Cognition - adults (18-64),Cmht Bow / Poplar North,Social Care - Homecare,01/09/2017,3931816,419.42,Carewatch Newham Ltd
Health Adults and Community,Adult Social Care,Support with Memory and Cognition - adults (18-64),Cmht Bow / Poplar North,Social Care - Homecare,01/09/2017,3931817,408.22,Carewatch Newham Ltd
Health Adults and Community,Adult Social Care,Support with Memory and Cognition - adults (18-64),Cmht Bow / Poplar North,Social Care - Homecare,01/09/2017,3931819,405.44,Carewatch Newham Ltd
Health Adults and Community,Adult Social Care,Support with Memory and Cognition - adults (18-64),Cmht For Older People,Social Care - Homecare,01/09/2017,3931820,702.24,Carewatch Newham Ltd
Health Adults and Community,Adult Social Care,Support with Memory and Cognition - adults (18-64),Cmht Bow / Poplar North,Social Care - Homecare,01/09/2017,3931821,405.44,Carewatch Newham Ltd
Health Adults and Community,Adult Social Care,Support with Memory and Cognition - adults (18-64),Cmht For Older People,Social Care - Homecare,01/09/2017,3931822,702.24,Carewatch Newham Ltd
Health Adults and Community,Adult Social Care,Support with Memory and Cognition - adults (18-64),Cmht Bow / Poplar North,Social Care - Homecare,01/09/2017,3931823,416.96,Carewatch Newham Ltd
Health Adults and Community,Adult Social Care,Support with Memory and Cognition - adults (18-64),Cmht For Older People,Social Care - Homecare,01/09/2017,3931824,702.24,Carewatch Newham Ltd
Health Adults and Community,Adult Social Care,Support with Memory and Cognition - adults (18-64),Cmht Bow / Poplar North,Social Care - Homecare,01/09/2017,3931825,405.44,Carewatch Newham Ltd
Health Adults and Community,Adult Social Care,Support with Memory and Cognition - adults (18-64),Cmht For Older People,Social Care - Homecare,01/09/2017,3931826,702.24,Carewatch Newham Ltd
Health Adults and Community,Adult Social Care,Support with Memory and Cognition - adults (18-64),Cmht Bow / Poplar North,Social Care - Homecare,01/09/2017,3931827,405.44,Carewatch Newham Ltd
Health Adults and Community,Adult Social Care,Support with Memory and Cognition - adults (18-64),Cmht For Older People,Social Care - Homecare,01/09/2017,3931828,702.24,Carewatch Newham Ltd
Health Adults and Community,Adult Social Care,Support with Memory and Cognition - adults (18-64),Cmht Bow / Poplar North,Social Care - Homecare,01/09/2017,3931829,424.98,Carewatch Newham Ltd
Health Adults and Community,Adult Social Care,Support with Memory and Cognition - adults (18-64),Cmht Bow / Poplar North,Social Care - Homecare,01/09/2017,3931830,419.42,Carewatch Newham Ltd
Health Adults and Community,Adult Social Care,Support with Memory and Cognition - adults (18-64),Cmht For Older People,Social Care - Homecare,01/09/2017,3931831,587.59,Carewatch Newham Ltd
Health Adults and Community,Adult Social Care,Support with Memory and Cognition - adults (18-64),Cmht Bow / Poplar North,Social Care - Homecare,01/09/2017,3931832,405.44,Carewatch Newham Ltd
Health Adults and Community,Adult Social Care,Support with Memory and Cognition - adults (18-64),Cmht Bow / Poplar North,Social Care - Homecare,01/09/2017,3931834,417.99,Carewatch Newham Ltd
Health Adults and Community,Adult Social Care,Support with Memory and Cognition - adults (18-64),Cmht For Older People,Social Care - Homecare,01/09/2017,3931835,702.24,Carewatch Newham Ltd
Health Adults and Community,Adult Social Care,Support with Memory and Cognition - adults (18-64),Cmht Bow / Poplar North,Social Care - Homecare,01/09/2017,3931836,405.44,Carewatch Newham Ltd
Health Adults and Community,Adult Social Care,Support with Memory and Cognition - adults (18-64),Cmht For Older People,Social Care - Homecare,01/09/2017,3931837,702.24,Carewatch Newham Ltd
Health Adults and Community,Adult Social Care,Support with Memory and Cognition - adults (18-64),Generic Care Packages NW Team -PS,Social Care - Homecare,01/09/2017,3931838,"1,203.72",Carewatch Newham Ltd
Health Adults and Community,Adult Social Care,Support with Memory and Cognition - adults (18-64),Cmht Bow / Poplar North,Social Care - Homecare,01/09/2017,3931839,405.44,Carewatch Newham Ltd
Health Adults and Community,Adult Social Care,Support with Memory and Cognition - adults (18-64),Cmht For Older People,Social Care - Homecare,01/09/2017,3931840,702.24,Carewatch Newham Ltd
Health Adults and Community,Adult Social Care,Support with Memory and Cognition - adults (18-64),Cmht Bow / Poplar North,Social Care - Homecare,01/09/2017,3931841,419.42,Carewatch Newham Ltd
Health Adults and Community,Adult Social Care,Support with Memory and Cognition - adults (18-64),Cmht For Older People,Social Care - Homecare,01/09/2017,3931842,644.91,Carewatch Newham Ltd
Health Adults and Community,Adult Social Care,Support with Memory and Cognition - adults (18-64),Generic Care Packages NW Team -PS,Social Care - Homecare,01/09/2017,3931843,"1,089.08",Carewatch Newham Ltd
Health Adults and Community,Adult Social Care,Support with Memory and Cognition - adults (18-64),Cmht For Older People,Social Care - Homecare,01/09/2017,3931844,759.57,Carewatch Newham Ltd
Health Adults and Community,Adult Social Care,Support with Memory and Cognition - adults (18-64),Cmht Bow / Poplar North,Social Care - Homecare,01/09/2017,3931845,414.18,Carewatch Newham Ltd
Health Adults and Community,Adult Social Care,Support with Memory and Cognition - adults (18-64),Cmht For Older People,Social Care - Homecare,01/09/2017,3931846,702.24,Carewatch Newham Ltd
Health Adults and Community,Adult Social Care,Support with Memory and Cognition - adults (18-64),Cmht Bow / Poplar North,Social Care - Homecare,01/09/2017,3931847,440.64,Carewatch Newham Ltd
Health Adults and Community,Adult Social Care,Support with Memory and Cognition - adults (18-64),Cmht For Older People,Social Care - Homecare,01/09/2017,3931848,702.24,Carewatch Newham Ltd
Health Adults and Community,Adult Social Care,Support with Memory and Cognition - adults (18-64),Cmht Bow / Poplar North,Social Care - Homecare,01/09/2017,3931849,433.40,Carewatch Newham Ltd
Health Adults and Community,Adult Social Care,Support with Memory and Cognition - adults (18-64),Cmht For Older People,Social Care - Homecare,01/09/2017,3931850,702.24,Carewatch Newham Ltd
Health Adults and Community,Adult Social Care,Support with Memory and Cognition - adults (18-64),Cmht Bow / Poplar North,Social Care - Homecare,01/09/2017,3931851,420.42,Carewatch Newham Ltd
Health Adults and Community,Adult Social Care,Support with Memory and Cognition - adults (18-64),Cmht For Older People,Social Care - Homecare,01/09/2017,3931852,702.24,Carewatch Newham Ltd
Health Adults and Community,Adult Social Care,Support with Memory and Cognition - adults (18-64),Cmht Bow / Poplar North,Social Care - Homecare,01/09/2017,3931853,419.42,Carewatch Newham Ltd
Health Adults and Community,Adult Social Care,Support with Memory and Cognition - adults (18-64),Cmht For Older People,Social Care - Homecare,01/09/2017,3931854,702.24,Carewatch Newham Ltd
Health Adults and Community,Adult Social Care,Support with Memory and Cognition - adults (18-64),Cmht Bow / Poplar North,Social Care - Homecare,01/09/2017,3931855,419.42,Carewatch Newham Ltd
Health Adults and Community,Adult Social Care,Support with Memory and Cognition - adults (18-64),Cmht For Older People,Social Care - Homecare,01/09/2017,3931856,702.24,Carewatch Newham Ltd
Health Adults and Community,Adult Social Care,Support with Memory and Cognition - adults (18-64),Cmht Bow / Poplar North,Social Care - Homecare,01/09/2017,3931857,419.42,Carewatch Newham Ltd
Health Adults and Community,Adult Social Care,Support with Memory and Cognition - adults (18-64),Cmht For Older People,Social Care - Homecare,01/09/2017,3931858,702.24,Carewatch Newham Ltd
Health Adults and Community,Adult Social Care,Support with Memory and Cognition - adults (18-64),Cmht Bow / Poplar North,Social Care - Homecare,01/09/2017,3931859,419.42,Carewatch Newham Ltd
Health Adults and Community,Adult Social Care,Support with Memory and Cognition - adults (18-64),Cmht For Older People,Social Care - Homecare,01/09/2017,3931860,702.24,Carewatch Newham Ltd
Health Adults and Community,Adult Social Care,Support with Memory and Cognition - adults (18-64),Cmht For Older People,Social Care - Homecare,01/09/2017,3931861,573.26,Carewatch Newham Ltd
Health Adults and Community,Adult Social Care,Support with Memory and Cognition - adults (18-64),Cmht Bow / Poplar North,Social Care - Homecare,01/09/2017,3931862,419.09,Carewatch Newham Ltd
Health Adults and Community,Adult Social Care,Support with Memory and Cognition - adults (18-64),Generic Care Packages SE Team -AS,Social Care - Prevention & Support,01/09/2017,3931863,830.53,Circle Housing - C33
Health Adults and Community,Adult Social Care,Support with Memory and Cognition - adults (18-64),Generic Care Packages SE Team -AS,Social Care - Prevention & Support,01/09/2017,3931864,830.53,Circle Housing - C33
Health Adults and Community,Adult Social Care,Support with Memory and Cognition - adults (18-64),Generic Care Packages SE Team-SMC,Social Care - Residential Care,01/09/2017,3931865,546.43,EXCELCARE HOLDING PLC
Health Adults and Community,Adult Social Care,Support with Memory and Cognition - adults (18-64),Generic Care Packages NE Team -PS,Social Care - Residential Care,01/09/2017,3931866,546.43,EXCELCARE HOLDING PLC
Health Adults and Community,Adult Social Care,Support with Memory and Cognition - adults (18-64),Generic Care Packages NE Team -PS,Social Care - Residential Care,01/09/2017,3931867,546.43,EXCELCARE HOLDING PLC
Health Adults and Community,Adult Social Care,Support with Memory and Cognition - adults (18-64),Generic Care Packages SE Team -PS,Social Care - Residential Care,01/09/2017,3931868,546.43,EXCELCARE HOLDING PLC
Health Adults and Community,Adult Social Care,Support with Memory and Cognition - adults (18-64),Generic Care Packages SE Team -PS,Social Care - Residential Care,01/09/2017,3931869,546.43,EXCELCARE HOLDING PLC
Health Adults and Community,Adult Social Care,Support with Memory and Cognition - adults (18-64),Generic Care Packages NW Team -PS,Social Care - Residential Care,01/09/2017,3931871,"-12,786.43",EXCELCARE HOLDING PLC
Health Adults and Community,Adult Social Care,Support with Memory and Cognition - adults (18-64),Generic Care Packages SE Team -PS,Social Care - Residential Care,01/09/2017,3931872,"4,089.00",SANCTUARY CARE LTD
Health Adults and Community,Adult Social Care,Support with Memory and Cognition - adults (18-64),Generic Care Packages SE Team -PS,Social Care - Prevention & Support,01/09/2017,3931872,"1,718.86",SANCTUARY CARE LTD
Health Adults and Community,Adult Social Care,Support with Memory and Cognition - adults (18-64),Generic Care Packages SW Team - PS,Social Care - Nursing Care,01/09/2017,3931873,"3,196.28",SANCTUARY CARE LTD
Health Adults and Community,Adult Social Care,Support with Memory and Cognition - adults (18-64),Generic Care Packages NW Team -PS,Social Care - Residential Care,01/09/2017,3931874,"13,332.86",EXCELCARE HOLDING PLC
Health Adults and Community,Adult Social Care,Support with Memory and Cognition - adults (18-64),Generic Care Packages SE Team -PS,Social Care - Direct Payments,01/09/2017,3931876,765.00,DH TOWER HAMLETS
Health Adults and Community,Adult Social Care,Support with Memory and Cognition - adults (18-64),Cmht For Older People,Social Care - Residential Care,01/09/2017,3931878,"2,267.61",JEWISH CARE
Health Adults and Community,Adult Social Care,Physical Support - adults (18-64),"Carers & Cross Cutting Issues		",Social Care - Homecare,01/09/2017,3931879,"24,017.48",CARE SOLUTION BUREAU
Health Adults and Community,Adult Social Care,Support with Memory and Cognition - adults (18-64),CLDS Transition,Social Care - Supported Living,01/09/2017,3931880,"7,081.34",Transitions Living
Health Adults and Community,Adult Social Care,Physical Support - adults (18-64),Public Health � Healthy Children & Adolescents,Third Party Payments - Voluntary Associations,04/09/2017,3873825,"21,500.00",Play Association Tower Hamlets
Health Adults and Community,Adult Social Care,Physical Support - adults (18-64),Public Health � Healthy Middle Age & Older People.,Payments to Private Contractors - Other Contractors,04/09/2017,3896591,"2,412.96",Medichem (Bright Bridge Ltd)
Health Adults and Community,Adult Social Care,Physical Support - adults (18-64),Public Health � Healthy 0-5 year olds,Third Party Payments - Voluntary Associations,04/09/2017,3913214,"18,150.33",Toyhouse
Health Adults and Community,Adult Social Care,Physical Support - adults (18-64),Public Health � Healthy Children & Adolescents,Third Party Payments - Other Establishments,04/09/2017,3913692,"102,115.50",Mytime Active
Health Adults and Community,Adult Social Care,Support with Memory and Cognition - adults (18-64),CLDS Transition,Social Care - Prevention & Support,04/09/2017,3923740,"1,177.20",Outward Housing
Health Adults and Community,Adult Social Care,Support with Memory and Cognition - adults (18-64),Cmht Bow / Poplar North,Social Care - Prevention & Support,04/09/2017,3923741,313.92,Outward Housing
Health Adults and Community,Adult Social Care,Support with Memory and Cognition - adults (18-64),CLDS Longer Term Support Teams,Social Care - Prevention & Support,04/09/2017,3923742,"3,395.52",Outward Housing
Health Adults and Community,Adult Social Care,Support with Memory and Cognition - adults (18-64),CLDS Longer Term Support Teams,Social Care - Prevention & Support,04/09/2017,3923743,"1,334.16",Outward Housing
